Body Name,Body,Service Label,Transaction Number,Date,Expenditure Category,Supplier Name,Supplier Classification,Amount
Lancs Fire & Rescue Service,E6123,Fire,106370973,01-Apr-20,Cleaning Materials,FLAMEPRO GLOBAL LTD,CLOTHING PROTECTIVE, 10.00 
Lancs Fire & Rescue Service,E6123,Fire,106370973,01-Apr-20,Cleaning Materials,FLAMEPRO GLOBAL LTD,CLOTHING PROTECTIVE," 1,900.00 "
Lancs Fire & Rescue Service,E6123,Fire,106340646,02-Apr-20,Computer Hardware,CDW LTD,ICT MAINTENANCE," 88,694.90 "
Lancs Fire & Rescue Service,E6123,Fire,106347165,02-Apr-20,Photographic,WAREHOUSE EXPRESS LTD T/A WEX PHOTO VIDEO,FACIL&MGMT RETAIL, 298.01 
Lancs Fire & Rescue Service,E6123,Fire,106347165,02-Apr-20,Photographic,WAREHOUSE EXPRESS LTD T/A WEX PHOTO VIDEO,FACIL&MGMT RETAIL,(15.99)
Lancs Fire & Rescue Service,E6123,Fire,106347165,02-Apr-20,Photographic,WAREHOUSE EXPRESS LTD T/A WEX PHOTO VIDEO,FACIL&MGMT RETAIL,(25.67)
Lancs Fire & Rescue Service,E6123,Fire,106347165,02-Apr-20,Photographic,WAREHOUSE EXPRESS LTD T/A WEX PHOTO VIDEO,FACIL&MGMT RETAIL,(57.43)
Lancs Fire & Rescue Service,E6123,Fire,106347165,02-Apr-20,Photographic,WAREHOUSE EXPRESS LTD T/A WEX PHOTO VIDEO,FACIL&MGMT RETAIL,(298.01)
Lancs Fire & Rescue Service,E6123,Fire,106347165,02-Apr-20,Photographic,WAREHOUSE EXPRESS LTD T/A WEX PHOTO VIDEO,FACIL&MGMT RETAIL,(69.99)
Lancs Fire & Rescue Service,E6123,Fire,106347165,02-Apr-20,Photographic,WAREHOUSE EXPRESS LTD T/A WEX PHOTO VIDEO,FACIL&MGMT RETAIL,(32.99)
Lancs Fire & Rescue Service,E6123,Fire,106347165,02-Apr-20,Photographic,WAREHOUSE EXPRESS LTD T/A WEX PHOTO VIDEO,FACIL&MGMT RETAIL, 0.01 
Lancs Fire & Rescue Service,E6123,Fire,106347165,02-Apr-20,Photographic,WAREHOUSE EXPRESS LTD T/A WEX PHOTO VIDEO,FACIL&MGMT RETAIL,(191.47)
Lancs Fire & Rescue Service,E6123,Fire,106347165,02-Apr-20,Photographic,WAREHOUSE EXPRESS LTD T/A WEX PHOTO VIDEO,FACIL&MGMT RETAIL,(0.01)
Lancs Fire & Rescue Service,E6123,Fire,106347165,02-Apr-20,Photographic,WAREHOUSE EXPRESS LTD T/A WEX PHOTO VIDEO,FACIL&MGMT RETAIL, 191.47 
Lancs Fire & Rescue Service,E6123,Fire,106347165,02-Apr-20,Photographic,WAREHOUSE EXPRESS LTD T/A WEX PHOTO VIDEO,FACIL&MGMT RETAIL, 15.99 
Lancs Fire & Rescue Service,E6123,Fire,106347165,02-Apr-20,Photographic,WAREHOUSE EXPRESS LTD T/A WEX PHOTO VIDEO,FACIL&MGMT RETAIL, 32.99 
Lancs Fire & Rescue Service,E6123,Fire,106347165,02-Apr-20,Photographic,WAREHOUSE EXPRESS LTD T/A WEX PHOTO VIDEO,FACIL&MGMT RETAIL, 69.99 
Lancs Fire & Rescue Service,E6123,Fire,106347165,02-Apr-20,Photographic,WAREHOUSE EXPRESS LTD T/A WEX PHOTO VIDEO,FACIL&MGMT RETAIL, 298.01 
Lancs Fire & Rescue Service,E6123,Fire,106347165,02-Apr-20,Photographic,WAREHOUSE EXPRESS LTD T/A WEX PHOTO VIDEO,FACIL&MGMT RETAIL, 57.43 
Lancs Fire & Rescue Service,E6123,Fire,106347165,02-Apr-20,Photographic,WAREHOUSE EXPRESS LTD T/A WEX PHOTO VIDEO,FACIL&MGMT RETAIL, 25.67 
Lancs Fire & Rescue Service,E6123,Fire,106347165,02-Apr-20,Photographic,WAREHOUSE EXPRESS LTD T/A WEX PHOTO VIDEO,FACIL&MGMT RETAIL, 15.99 
Lancs Fire & Rescue Service,E6123,Fire,106347165,02-Apr-20,Photographic,WAREHOUSE EXPRESS LTD T/A WEX PHOTO VIDEO,FACIL&MGMT RETAIL, 191.47 
Lancs Fire & Rescue Service,E6123,Fire,106347165,02-Apr-20,Photographic,WAREHOUSE EXPRESS LTD T/A WEX PHOTO VIDEO,FACIL&MGMT RETAIL, 32.99 
Lancs Fire & Rescue Service,E6123,Fire,106347165,02-Apr-20,Photographic,WAREHOUSE EXPRESS LTD T/A WEX PHOTO VIDEO,FACIL&MGMT RETAIL, 69.99 
Lancs Fire & Rescue Service,E6123,Fire,106347165,02-Apr-20,Photographic,WAREHOUSE EXPRESS LTD T/A WEX PHOTO VIDEO,FACIL&MGMT RETAIL, 57.43 
Lancs Fire & Rescue Service,E6123,Fire,106347165,02-Apr-20,Photographic,WAREHOUSE EXPRESS LTD T/A WEX PHOTO VIDEO,FACIL&MGMT RETAIL, 25.67 
Lancs Fire & Rescue Service,E6123,Fire,106355031,02-Apr-20,Computer Software,SAPPHIRE,ICT CONSUMABLES, 200.00 
Lancs Fire & Rescue Service,E6123,Fire,106355031,02-Apr-20,Computer Software,SAPPHIRE,ICT CONSUMABLES," 1,300.00 "
Lancs Fire & Rescue Service,E6123,Fire,106360324,02-Apr-20,Protective Clothing,SAFEQUIP LTD,HEALTH&SAFETY PRODUCTS, 110.10 
Lancs Fire & Rescue Service,E6123,Fire,106360324,02-Apr-20,Protective Clothing,SAFEQUIP LTD,HEALTH&SAFETY PRODUCTS, 10.00 
Lancs Fire & Rescue Service,E6123,Fire,106360324,02-Apr-20,Protective Clothing,SAFEQUIP LTD,HEALTH&SAFETY PRODUCTS,(52.00)
Lancs Fire & Rescue Service,E6123,Fire,106360324,02-Apr-20,Protective Clothing,SAFEQUIP LTD,HEALTH&SAFETY PRODUCTS,(707.00)
Lancs Fire & Rescue Service,E6123,Fire,106360324,02-Apr-20,Protective Clothing,SAFEQUIP LTD,HEALTH&SAFETY PRODUCTS, 707.00 
Lancs Fire & Rescue Service,E6123,Fire,106360324,02-Apr-20,Protective Clothing,SAFEQUIP LTD,HEALTH&SAFETY PRODUCTS, 52.00 
Lancs Fire & Rescue Service,E6123,Fire,106360324,02-Apr-20,Protective Clothing,SAFEQUIP LTD,HEALTH&SAFETY PRODUCTS, 146.80 
Lancs Fire & Rescue Service,E6123,Fire,106360324,02-Apr-20,Protective Clothing,SAFEQUIP LTD,HEALTH&SAFETY PRODUCTS, 62.40 
Lancs Fire & Rescue Service,E6123,Fire,106360324,02-Apr-20,Protective Clothing,SAFEQUIP LTD,HEALTH&SAFETY PRODUCTS, 52.00 
Lancs Fire & Rescue Service,E6123,Fire,106360324,02-Apr-20,Protective Clothing,SAFEQUIP LTD,HEALTH&SAFETY PRODUCTS, 111.00 
Lancs Fire & Rescue Service,E6123,Fire,106360324,02-Apr-20,Protective Clothing,SAFEQUIP LTD,HEALTH&SAFETY PRODUCTS, 259.00 
Lancs Fire & Rescue Service,E6123,Fire,106360324,02-Apr-20,Protective Clothing,SAFEQUIP LTD,HEALTH&SAFETY PRODUCTS, 185.00 
Lancs Fire & Rescue Service,E6123,Fire,106360324,02-Apr-20,Protective Clothing,SAFEQUIP LTD,HEALTH&SAFETY PRODUCTS, 707.00 
Lancs Fire & Rescue Service,E6123,Fire,106362080,02-Apr-20,Fire - Op Equip Repairs,PENNINE MARINE LTD,TRANSPORT MAINTENANCE," 1,145.00 "
Lancs Fire & Rescue Service,E6123,Fire,106362347,02-Apr-20,Professional Services,VCA LTD,CONSULTANCY MANAGEMENT," 10,602.50 "
Lancs Fire & Rescue Service,E6123,Fire,106362364,02-Apr-20,Car Allowances,LEX AUTOLEASE LTD,TRANSPORT FLEET MGMT, 462.23 
Lancs Fire & Rescue Service,E6123,Fire,106362364,02-Apr-20,Car Allowances,LEX AUTOLEASE LTD,TRANSPORT FLEET MGMT,(35.87)
Lancs Fire & Rescue Service,E6123,Fire,106362364,02-Apr-20,Car Allowances,LEX AUTOLEASE LTD,TRANSPORT FLEET MGMT,(462.23)
Lancs Fire & Rescue Service,E6123,Fire,106362364,02-Apr-20,Car Allowances,LEX AUTOLEASE LTD,TRANSPORT FLEET MGMT, 462.23 
Lancs Fire & Rescue Service,E6123,Fire,106362375,02-Apr-20,Fire - Operational Equipment,HUMAN SPIRIT LTD,TRAINING," 1,680.00 "
Lancs Fire & Rescue Service,E6123,Fire,106369666,02-Apr-20,Fire - Op Equip Repairs,SEDDONS (PLANT & ENGINEERS) LTD,VEHICLES FUEL, 225.00 
Lancs Fire & Rescue Service,E6123,Fire,106369666,02-Apr-20,Fire - Op Equip Repairs,SEDDONS (PLANT & ENGINEERS) LTD,VEHICLES FUEL, 11.39 
Lancs Fire & Rescue Service,E6123,Fire,106369666,02-Apr-20,Fire - Op Equip Repairs,SEDDONS (PLANT & ENGINEERS) LTD,VEHICLES FUEL, 16.56 
Lancs Fire & Rescue Service,E6123,Fire,106369666,02-Apr-20,Fire - Op Equip Repairs,SEDDONS (PLANT & ENGINEERS) LTD,VEHICLES FUEL, 236.28 
Lancs Fire & Rescue Service,E6123,Fire,106369666,02-Apr-20,Fire - Op Equip Repairs,SEDDONS (PLANT & ENGINEERS) LTD,VEHICLES FUEL, 84.48 
Lancs Fire & Rescue Service,E6123,Fire,106369666,02-Apr-20,Fire - Op Equip Repairs,SEDDONS (PLANT & ENGINEERS) LTD,VEHICLES FUEL, 28.60 
Lancs Fire & Rescue Service,E6123,Fire,106369666,02-Apr-20,Fire - Op Equip Repairs,SEDDONS (PLANT & ENGINEERS) LTD,VEHICLES FUEL, 65.00 
Lancs Fire & Rescue Service,E6123,Fire,106369666,02-Apr-20,Fire - Op Equip Repairs,SEDDONS (PLANT & ENGINEERS) LTD,VEHICLES FUEL, 295.50 
Lancs Fire & Rescue Service,E6123,Fire,106369667,02-Apr-20,Photographic,WAREHOUSE EXPRESS LTD T/A WEX PHOTO VIDEO,FACIL&MGMT RETAIL, 325.00 
Lancs Fire & Rescue Service,E6123,Fire,106369667,02-Apr-20,Photographic,WAREHOUSE EXPRESS LTD T/A WEX PHOTO VIDEO,FACIL&MGMT RETAIL, 4.16 
Lancs Fire & Rescue Service,E6123,Fire,106369667,02-Apr-20,Photographic,WAREHOUSE EXPRESS LTD T/A WEX PHOTO VIDEO,FACIL&MGMT RETAIL," 1,745.45 "
Lancs Fire & Rescue Service,E6123,Fire,106369670,02-Apr-20,Fire - Operational Equipment,DELTA FIRE,HEALTH&SAFETY PRODUCTS," 11,400.00 "
Lancs Fire & Rescue Service,E6123,Fire,106369671,02-Apr-20,Fire - Training Props,ABBY WELDING LTD,WORKS BUILDINGS, 563.20 
Lancs Fire & Rescue Service,E6123,Fire,106369680,02-Apr-20,Medical Fees,DRS.DIRECT,MEDICAL SERVICES, 900.00 
Lancs Fire & Rescue Service,E6123,Fire,106369693,02-Apr-20,Course Providers,ABBY WELDING LTD,WORKS BUILDINGS, 832.50 
Lancs Fire & Rescue Service,E6123,Fire,106369825,02-Apr-20,Repairs & Maintenance General,HARDACRES PLUMBERS (NW) LTD,WORKS BUILDINGS, 852.63 
Lancs Fire & Rescue Service,E6123,Fire,106369832,02-Apr-20,Delegated Grounds Maintenance,LANCASHIRE COUNTY COUNCIL,LOCAL GOVERNMENT," 7,052.57 "
Lancs Fire & Rescue Service,E6123,Fire,106369836,02-Apr-20,Programmed Work,WEST LANCASHIRE ELECTRICAL CONTRACTORS LTD,BUILDING MATS&SVCS ELEC, 436.65 
Lancs Fire & Rescue Service,E6123,Fire,106369844,02-Apr-20,Repairs & Maintenance General,WEST LANCASHIRE ELECTRICAL CONTRACTORS LTD,BUILDING MATS&SVCS ELEC," 1,589.82 "
Lancs Fire & Rescue Service,E6123,Fire,106369849,02-Apr-20,Vehicle Purchase,EMERGENCY ONE UK LTD,TRANSPORT REPAIR," 35,763.00 "
Lancs Fire & Rescue Service,E6123,Fire,106369855,02-Apr-20,Vehicle Purchase,EMERGENCY ONE UK LTD,TRANSPORT REPAIR," 35,763.00 "
Lancs Fire & Rescue Service,E6123,Fire,106369864,02-Apr-20,Repairs & Maintenance General,HARDACRES PLUMBERS (NW) LTD,WORKS BUILDINGS, 464.28 
Lancs Fire & Rescue Service,E6123,Fire,106369872,02-Apr-20,Professional Services,LANCASHIRE COUNTY COUNCIL,LOCAL GOVERNMENT," 5,768.09 "
Lancs Fire & Rescue Service,E6123,Fire,106369880,02-Apr-20,Repairs & Maintenance General,BID GROUP LTD,BUILDING MATS&SVCS GEN, 420.00 
Lancs Fire & Rescue Service,E6123,Fire,106369984,02-Apr-20,Vehicle & Plant R&M (External),OTRA LTD,VEHICLES MAINTENANCE, 418.16 
Lancs Fire & Rescue Service,E6123,Fire,106372265,02-Apr-20,Consumable Materials,MDS HEALTHCARE LTD,MEDICAL SERVICES," 2,800.00 "
Lancs Fire & Rescue Service,E6123,Fire,Apr20-CC08,02-Apr-20,Protective Clothing,SMH PRODUCTS LTD,CLOTHING PROTECTIVE, 865.50 
Lancs Fire & Rescue Service,E6123,Fire,106339344,03-Apr-20,Course Providers,UNIVERSITY OF CENTRAL LANCASHIRE,HR TRAINING&CONFERENCES," 2,325.00 "
Lancs Fire & Rescue Service,E6123,Fire,106339347,03-Apr-20,Recruitment - Advertising,CABINET OFFICE,GOVERNMENT, 495.00 
Lancs Fire & Rescue Service,E6123,Fire,106358747,03-Apr-20,Health� Safety & Environment Equipment,HERO DISTRIBUTION UK,HEALTH&SAFETY PRODUCTS," 2,100.00 "
Lancs Fire & Rescue Service,E6123,Fire,106358747,03-Apr-20,Health� Safety & Environment Equipment,HERO DISTRIBUTION UK,HEALTH&SAFETY PRODUCTS, 100.00 
Lancs Fire & Rescue Service,E6123,Fire,106362360,03-Apr-20,Course Providers,SKILLS FOR JUSTICE ENTERPRISES LTD (PART OF WORKFORCE DEVELOPMENT TRUST LTD),EDUCATION SERVICES," 3,700.00 "
Lancs Fire & Rescue Service,E6123,Fire,106362360,03-Apr-20,Course Providers,SKILLS FOR JUSTICE ENTERPRISES LTD (PART OF WORKFORCE DEVELOPMENT TRUST LTD),EDUCATION SERVICES, 180.00 
Lancs Fire & Rescue Service,E6123,Fire,106362360,03-Apr-20,Course Providers,SKILLS FOR JUSTICE ENTERPRISES LTD (PART OF WORKFORCE DEVELOPMENT TRUST LTD),EDUCATION SERVICES, 240.00 
Lancs Fire & Rescue Service,E6123,Fire,106362360,03-Apr-20,Course Providers,SKILLS FOR JUSTICE ENTERPRISES LTD (PART OF WORKFORCE DEVELOPMENT TRUST LTD),EDUCATION SERVICES," 3,700.00 "
Lancs Fire & Rescue Service,E6123,Fire,106362360,03-Apr-20,Course Providers,SKILLS FOR JUSTICE ENTERPRISES LTD (PART OF WORKFORCE DEVELOPMENT TRUST LTD),EDUCATION SERVICES, 450.00 
Lancs Fire & Rescue Service,E6123,Fire,106362360,03-Apr-20,Course Providers,SKILLS FOR JUSTICE ENTERPRISES LTD (PART OF WORKFORCE DEVELOPMENT TRUST LTD),EDUCATION SERVICES,(420.00)
Lancs Fire & Rescue Service,E6123,Fire,106362360,03-Apr-20,Course Providers,SKILLS FOR JUSTICE ENTERPRISES LTD (PART OF WORKFORCE DEVELOPMENT TRUST LTD),EDUCATION SERVICES,"(3,700.00)"
Lancs Fire & Rescue Service,E6123,Fire,106362360,03-Apr-20,Course Providers,SKILLS FOR JUSTICE ENTERPRISES LTD (PART OF WORKFORCE DEVELOPMENT TRUST LTD),EDUCATION SERVICES,(450.00)
Lancs Fire & Rescue Service,E6123,Fire,106362360,03-Apr-20,Course Providers,SKILLS FOR JUSTICE ENTERPRISES LTD (PART OF WORKFORCE DEVELOPMENT TRUST LTD),EDUCATION SERVICES, 450.00 
Lancs Fire & Rescue Service,E6123,Fire,106362360,03-Apr-20,Course Providers,SKILLS FOR JUSTICE ENTERPRISES LTD (PART OF WORKFORCE DEVELOPMENT TRUST LTD),EDUCATION SERVICES, 420.00 
Lancs Fire & Rescue Service,E6123,Fire,106368465,03-Apr-20,Chg - Audit Fees (Internal),LANCASHIRE COUNTY COUNCIL,LOCAL GOVERNMENT," 13,000.00 "
Lancs Fire & Rescue Service,E6123,Fire,106368467,03-Apr-20,Course Providers,ILM,TRAINING," 1,529.00 "
Lancs Fire & Rescue Service,E6123,Fire,106368470,03-Apr-20,Professional Services,JENKINS DESIGN SERVICES LTD,CONSULTANCY CONSTRUCTION, 440.00 
Lancs Fire & Rescue Service,E6123,Fire,106368472,03-Apr-20,Professional Services,FORBES SOLICITORS,LEGAL SVCS GENERAL, 800.00 
Lancs Fire & Rescue Service,E6123,Fire,106368473,03-Apr-20,Works Fees (External),EQUILIBRIUM ARCHITECTS LTD,CONSULTANCY CONSTRUCTION," 2,212.50 "
Lancs Fire & Rescue Service,E6123,Fire,106368474,03-Apr-20,Repairs & Maintenance General,WEST LANCASHIRE ELECTRICAL CONTRACTORS LTD,BUILDING MATS&SVCS ELEC, 698.84 
Lancs Fire & Rescue Service,E6123,Fire,106368475,03-Apr-20,Repairs & Maintenance General,THE JAMES MERCER GROUP LIMITED,BUILDING MATS&SVCS GEN, 610.16 
Lancs Fire & Rescue Service,E6123,Fire,106368476,03-Apr-20,Repairs & Maintenance General,THE JAMES MERCER GROUP LIMITED,BUILDING MATS&SVCS GEN," 1,585.64 "
Lancs Fire & Rescue Service,E6123,Fire,106368493,03-Apr-20,Service Contracts,BID GROUP LTD,BUILDING MATS&SVCS GEN," 1,800.00 "
Lancs Fire & Rescue Service,E6123,Fire,106368495,03-Apr-20,Equipment General,MILLERS (UK) LTD,BUILDING MATS&SVCS GEN," 1,250.00 "
Lancs Fire & Rescue Service,E6123,Fire,106368497,03-Apr-20,Programmed Work,HARDACRES PLUMBERS (NW) LTD,WORKS BUILDINGS," 1,651.00 "
Lancs Fire & Rescue Service,E6123,Fire,106368498,03-Apr-20,Professional Services,IKG CONSULTING LIMITED,CONSULTANCY BUSINESS," 2,460.80 "
Lancs Fire & Rescue Service,E6123,Fire,106369830,03-Apr-20,Professional Services,AMCAT (UK) LTD,HR PROFESSIONAL&ADVISORY," 1,120.60 "
Lancs Fire & Rescue Service,E6123,Fire,106369830,03-Apr-20,Professional Services,AMCAT (UK) LTD,HR PROFESSIONAL&ADVISORY," 1,098.00 "
Lancs Fire & Rescue Service,E6123,Fire,106369830,03-Apr-20,Professional Services,AMCAT (UK) LTD,HR PROFESSIONAL&ADVISORY,"(1,098.00)"
Lancs Fire & Rescue Service,E6123,Fire,106383744,06-Apr-20,Protective Clothing,CMT EQUIPMENT LTD,HIGHWAY EQUIPM & MATERIAL," 8,794.80 "
Lancs Fire & Rescue Service,E6123,Fire,Apr20-CC06,06-Apr-20,Protective Clothing,H.C.SLINGSBY PLC,CLOTHING PROTECTIVE, 536.26 
Lancs Fire & Rescue Service,E6123,Fire,Apr20-CC07,06-Apr-20,Protective Clothing,SMH PRODUCTS LTD,CLOTHING PROTECTIVE, 510.00 
Lancs Fire & Rescue Service,E6123,Fire,106270258,07-Apr-20,ICT Support Services (External),CIVICA UK LTD,ICT SOFTWARE," 6,060.00 "
Lancs Fire & Rescue Service,E6123,Fire,106348200,07-Apr-20,Works Fees (External),LK CONSULT LTD,NOT CLASSIFIED," 7,425.00 "
Lancs Fire & Rescue Service,E6123,Fire,106362084,07-Apr-20,Fire Operational Communications,LARS COMMUNICATION,ICT MAINTENANCE, 800.00 
Lancs Fire & Rescue Service,E6123,Fire,106362349,07-Apr-20,Fire - Breathing Apparatus,GAS CONTROL EQUIPMENT,FRS SPECIALIST EQUIPMENT," 1,928.76 "
Lancs Fire & Rescue Service,E6123,Fire,106369690,07-Apr-20,Computer Software,SAPPHIRE,ICT CONSUMABLES, 400.00 
Lancs Fire & Rescue Service,E6123,Fire,106369690,07-Apr-20,Computer Software,SAPPHIRE,ICT CONSUMABLES," 2,600.00 "
Lancs Fire & Rescue Service,E6123,Fire,106370535,07-Apr-20,Course Providers,REDACTED,EDUCATION SERVICES, 100.00 
Lancs Fire & Rescue Service,E6123,Fire,106370535,07-Apr-20,Course Providers,REDACTED,EDUCATION SERVICES, 650.00 
Lancs Fire & Rescue Service,E6123,Fire,106370535,07-Apr-20,Course Providers,REDACTED,EDUCATION SERVICES, 56.00 
Lancs Fire & Rescue Service,E6123,Fire,106370536,07-Apr-20,Fire - Training Props,ABBY WELDING LTD,WORKS BUILDINGS," 1,705.50 "
Lancs Fire & Rescue Service,E6123,Fire,106370537,07-Apr-20,Fire - Training Props,ABBY WELDING LTD,WORKS BUILDINGS," 1,650.00 "
Lancs Fire & Rescue Service,E6123,Fire,106370567,07-Apr-20,Computer Software,SAPPHIRE,ICT CONSUMABLES," 1,500.00 "
Lancs Fire & Rescue Service,E6123,Fire,106370567,07-Apr-20,Computer Software,SAPPHIRE,ICT CONSUMABLES, 400.00 
Lancs Fire & Rescue Service,E6123,Fire,106370567,07-Apr-20,Computer Software,SAPPHIRE,ICT CONSUMABLES, 200.00 
Lancs Fire & Rescue Service,E6123,Fire,106370567,07-Apr-20,Computer Software,SAPPHIRE,ICT CONSUMABLES," 1,300.00 "
Lancs Fire & Rescue Service,E6123,Fire,106371413,07-Apr-20,Repairs & Maintenance General,THE JAMES MERCER GROUP LIMITED,BUILDING MATS&SVCS GEN," 1,172.40 "
Lancs Fire & Rescue Service,E6123,Fire,106371420,07-Apr-20,Service Contracts,KJB SECURITY,FACIL&MGMT SECURITY, 560.00 
Lancs Fire & Rescue Service,E6123,Fire,106371424,07-Apr-20,Service Contracts,KJB SECURITY,FACIL&MGMT SECURITY, 420.00 
Lancs Fire & Rescue Service,E6123,Fire,106371425,07-Apr-20,Repairs & Maintenance General,BID GROUP LTD,BUILDING MATS&SVCS GEN, 520.00 
Lancs Fire & Rescue Service,E6123,Fire,106371426,07-Apr-20,Programmed Work,ABBY WELDING LTD,WORKS BUILDINGS," 1,609.50 "
Lancs Fire & Rescue Service,E6123,Fire,106371428,07-Apr-20,Service Contracts,KJB SECURITY,FACIL&MGMT SECURITY, 840.00 
Lancs Fire & Rescue Service,E6123,Fire,106371429,07-Apr-20,Service Contracts,KJB SECURITY,FACIL&MGMT SECURITY, 980.00 
Lancs Fire & Rescue Service,E6123,Fire,106372751,07-Apr-20,Consumable Materials,HEALTHMED SUPPLIES,MEDICAL SERVICES, 25.98 
Lancs Fire & Rescue Service,E6123,Fire,106372751,07-Apr-20,Consumable Materials,HEALTHMED SUPPLIES,MEDICAL SERVICES, 75.00 
Lancs Fire & Rescue Service,E6123,Fire,106372751,07-Apr-20,Consumable Materials,HEALTHMED SUPPLIES,MEDICAL SERVICES, 485.00 
Lancs Fire & Rescue Service,E6123,Fire,Apr20-CC04,07-Apr-20,Protective Clothing,BEACON INTERNATIONAL UK L,ICT CONSUMABLES, 790.56 
Lancs Fire & Rescue Service,E6123,Fire,Apr20-CC05,07-Apr-20,Protective Clothing,WWW.SAFETYINDUSTRIES.C,CLOTHING PROTECTIVE, 738.00 
Lancs Fire & Rescue Service,E6123,Fire,106383650,08-Apr-20,Protective Clothing,HUNTER APPAREL SOLUTIONS LTD,CLOTHING PERSONAL," 171,200.00 "
Lancs Fire & Rescue Service,E6123,Fire,106387835,08-Apr-20,PFI - Capital Charge,MERSEYSIDE FIRE & RESCUE AUTHORITY,LOCAL GOVERNMENT," 154,259.79 "
Lancs Fire & Rescue Service,E6123,Fire,Apr20-CC03,08-Apr-20,Computer Exp General,BFD LTD,CLOTHING PROTECTIVE," 1,800.00 "
Lancs Fire & Rescue Service,E6123,Fire,106390041,09-Apr-20,Protective Clothing,HUNTER APPAREL SOLUTIONS LTD,CLOTHING PERSONAL," 21,890.00 "
Lancs Fire & Rescue Service,E6123,Fire,106390043,09-Apr-20,Protective Clothing,HUNTER APPAREL SOLUTIONS LTD,CLOTHING PERSONAL," 57,625.00 "
Lancs Fire & Rescue Service,E6123,Fire,106390052,09-Apr-20,Protective Clothing,SSI ENERGY LTD,NOT CLASSIFIED," 27,730.00 "
Lancs Fire & Rescue Service,E6123,Fire,106348231,14-Apr-20,Computer Hardware,CDW LTD,ICT MAINTENANCE, 30.00 
Lancs Fire & Rescue Service,E6123,Fire,106348231,14-Apr-20,Computer Hardware,CDW LTD,ICT MAINTENANCE," 3,681.60 "
Lancs Fire & Rescue Service,E6123,Fire,106348238,14-Apr-20,Mobile Phone Costs,EVERYTHING EVERYWHERE LTD,TELEPHONE SERVICES," 1,728.11 "
Lancs Fire & Rescue Service,E6123,Fire,106354990,14-Apr-20,Programmed Work,NETWORK RAIL INFRASTRUCTURE LTD,TRANSPORT MAINTENANCE," 3,277.25 "
Lancs Fire & Rescue Service,E6123,Fire,106355024,14-Apr-20,Vehicle Purchase,PRIMARY PLAY UK LTD,BUILDING MATS&SVCS GEN," 2,840.27 "
Lancs Fire & Rescue Service,E6123,Fire,106355045,14-Apr-20,Service Contracts,KNOWSLEY BUILDING & ENVIRONMENTAL SERVICES LTD,ENVIRON MONITORING," 2,484.00 "
Lancs Fire & Rescue Service,E6123,Fire,106355046,14-Apr-20,Service Contracts,KNOWSLEY BUILDING & ENVIRONMENTAL SERVICES LTD,ENVIRON MONITORING," 2,160.00 "
Lancs Fire & Rescue Service,E6123,Fire,106355047,14-Apr-20,Service Contracts,KNOWSLEY BUILDING & ENVIRONMENTAL SERVICES LTD,ENVIRON MONITORING," 2,016.00 "
Lancs Fire & Rescue Service,E6123,Fire,106355048,14-Apr-20,Service Contracts,KNOWSLEY BUILDING & ENVIRONMENTAL SERVICES LTD,ENVIRON MONITORING," 1,242.00 "
Lancs Fire & Rescue Service,E6123,Fire,106355049,14-Apr-20,Service Contracts,KNOWSLEY BUILDING & ENVIRONMENTAL SERVICES LTD,ENVIRON MONITORING," 2,700.00 "
Lancs Fire & Rescue Service,E6123,Fire,106355050,14-Apr-20,Service Contracts,KNOWSLEY BUILDING & ENVIRONMENTAL SERVICES LTD,ENVIRON MONITORING," 1,152.00 "
Lancs Fire & Rescue Service,E6123,Fire,106355051,14-Apr-20,Service Contracts,KNOWSLEY BUILDING & ENVIRONMENTAL SERVICES LTD,ENVIRON MONITORING, 804.00 
Lancs Fire & Rescue Service,E6123,Fire,106355053,14-Apr-20,Service Contracts,KNOWSLEY BUILDING & ENVIRONMENTAL SERVICES LTD,ENVIRON MONITORING," 2,952.00 "
Lancs Fire & Rescue Service,E6123,Fire,106369874,14-Apr-20,Programmed Work,DLP SERVICES NORTHERN LTD,BUILDING MATS&SVCS GEN, 927.16 
Lancs Fire & Rescue Service,E6123,Fire,106371545,14-Apr-20,Gas,CORONA ENERGY,UTILITIES GAS," 3,850.13 "
Lancs Fire & Rescue Service,E6123,Fire,106371546,14-Apr-20,Gas,CORONA ENERGY,UTILITIES GAS, 629.73 
Lancs Fire & Rescue Service,E6123,Fire,106371547,14-Apr-20,Gas,CORONA ENERGY,UTILITIES GAS," 2,551.95 "
Lancs Fire & Rescue Service,E6123,Fire,106371551,14-Apr-20,Gas,CORONA ENERGY,UTILITIES GAS, 859.84 
Lancs Fire & Rescue Service,E6123,Fire,106371552,14-Apr-20,Gas,CORONA ENERGY,UTILITIES GAS, 460.56 
Lancs Fire & Rescue Service,E6123,Fire,106373795,14-Apr-20,Gas,CORONA ENERGY,UTILITIES GAS," 1,383.67 "
Lancs Fire & Rescue Service,E6123,Fire,106373800,14-Apr-20,Gas,CORONA ENERGY,UTILITIES GAS, 601.70 
Lancs Fire & Rescue Service,E6123,Fire,106373802,14-Apr-20,Gas,CORONA ENERGY,UTILITIES GAS, 580.97 
Lancs Fire & Rescue Service,E6123,Fire,106373803,14-Apr-20,Gas,CORONA ENERGY,UTILITIES GAS, 576.05 
Lancs Fire & Rescue Service,E6123,Fire,106373805,14-Apr-20,Gas,CORONA ENERGY,UTILITIES GAS, 421.91 
Lancs Fire & Rescue Service,E6123,Fire,106373809,14-Apr-20,Gas,CORONA ENERGY,UTILITIES GAS," 1,568.55 "
Lancs Fire & Rescue Service,E6123,Fire,106373814,14-Apr-20,Rates,BLACKBURN WITH DARWEN BOROUGH COUNCIL,LOCAL GOVERNMENT," 28,416.00 "
Lancs Fire & Rescue Service,E6123,Fire,106373815,14-Apr-20,Rates,BLACKBURN WITH DARWEN BOROUGH COUNCIL,LOCAL GOVERNMENT," 71,168.00 "
Lancs Fire & Rescue Service,E6123,Fire,106373816,14-Apr-20,Rates,BLACKPOOL COUNCIL,LOCAL GOVERNMENT," 16,716.50 "
Lancs Fire & Rescue Service,E6123,Fire,106373817,14-Apr-20,Rates,BLACKPOOL COUNCIL,LOCAL GOVERNMENT," 54,784.00 "
Lancs Fire & Rescue Service,E6123,Fire,106373819,14-Apr-20,Rates,BLACKPOOL COUNCIL,LOCAL GOVERNMENT," 23,203.50 "
Lancs Fire & Rescue Service,E6123,Fire,106373821,14-Apr-20,Rates,BURNLEY BOROUGH COUNCIL,LOCAL GOVERNMENT," 7,395.48 "
Lancs Fire & Rescue Service,E6123,Fire,106373824,14-Apr-20,Rates,BURNLEY BOROUGH COUNCIL,LOCAL GOVERNMENT," 78,336.00 "
Lancs Fire & Rescue Service,E6123,Fire,106373827,14-Apr-20,Rates,CHORLEY BOROUGH COUNCIL,LOCAL GOVERNMENT," 215,040.00 "
Lancs Fire & Rescue Service,E6123,Fire,106373829,14-Apr-20,Rates,FYLDE BOROUGH COUNCIL,LOCAL GOVERNMENT," 7,244.55 "
Lancs Fire & Rescue Service,E6123,Fire,106373830,14-Apr-20,Rates,FYLDE BOROUGH COUNCIL,LOCAL GOVERNMENT," 39,936.00 "
Lancs Fire & Rescue Service,E6123,Fire,106373860,14-Apr-20,Rates,PENDLE BOROUGH COUNCIL,LOCAL GOVERNMENT," 7,244.55 "
Lancs Fire & Rescue Service,E6123,Fire,106373863,14-Apr-20,Rates,PENDLE BOROUGH COUNCIL,LOCAL GOVERNMENT," 11,227.50 "
Lancs Fire & Rescue Service,E6123,Fire,106373865,14-Apr-20,Rates,PENDLE BOROUGH COUNCIL,LOCAL GOVERNMENT," 8,732.50 "
Lancs Fire & Rescue Service,E6123,Fire,106373867,14-Apr-20,Rates,PRESTON CITY COUNCIL,LOCAL GOVERNMENT," 77,312.00 "
Lancs Fire & Rescue Service,E6123,Fire,106373869,14-Apr-20,Rates,PRESTON CITY COUNCIL,LOCAL GOVERNMENT," 49,408.00 "
Lancs Fire & Rescue Service,E6123,Fire,106373872,14-Apr-20,Rates,RIBBLE VALLEY BOROUGH COUNCIL,LOCAL GOVERNMENT," 6,611.75 "
Lancs Fire & Rescue Service,E6123,Fire,106373874,14-Apr-20,Rates,RIBBLE VALLEY BOROUGH COUNCIL,LOCAL GOVERNMENT," 13,223.50 "
Lancs Fire & Rescue Service,E6123,Fire,106373877,14-Apr-20,Rates,ROSSENDALE BOROUGH COUNCIL,LOCAL GOVERNMENT," 6,112.75 "
Lancs Fire & Rescue Service,E6123,Fire,106373879,14-Apr-20,Rates,ROSSENDALE BOROUGH COUNCIL,LOCAL GOVERNMENT," 43,264.00 "
Lancs Fire & Rescue Service,E6123,Fire,106373882,14-Apr-20,Rates,ROSSENDALE BOROUGH COUNCIL,LOCAL GOVERNMENT," 12,475.00 "
Lancs Fire & Rescue Service,E6123,Fire,106373885,14-Apr-20,Rates,SOUTH RIBBLE BOROUGH COUNCIL,LOCAL GOVERNMENT," 13,348.25 "
Lancs Fire & Rescue Service,E6123,Fire,106373886,14-Apr-20,Rates,SOUTH RIBBLE BOROUGH COUNCIL,LOCAL GOVERNMENT," 18,962.00 "
Lancs Fire & Rescue Service,E6123,Fire,106373888,14-Apr-20,Rates,SOUTH RIBBLE BOROUGH COUNCIL,LOCAL GOVERNMENT," 46,848.00 "
Lancs Fire & Rescue Service,E6123,Fire,106373889,14-Apr-20,Rates,WEST LANCASHIRE BOROUGH COUNCIL,LOCAL GOVERNMENT," 22,704.50 "
Lancs Fire & Rescue Service,E6123,Fire,106373892,14-Apr-20,Rates,WEST LANCASHIRE BOROUGH COUNCIL,LOCAL GOVERNMENT," 7,859.25 "
Lancs Fire & Rescue Service,E6123,Fire,106373893,14-Apr-20,Rates,WEST LANCASHIRE BOROUGH COUNCIL,LOCAL GOVERNMENT," 26,624.00 "
Lancs Fire & Rescue Service,E6123,Fire,106373896,14-Apr-20,Water,UNITED UTILITIES WATER PLC,UTILITIES WATER, 612.72 
Lancs Fire & Rescue Service,E6123,Fire,106373898,14-Apr-20,Rents - Premises,WEST LANCASHIRE BOROUGH COUNCIL,LOCAL GOVERNMENT," 1,010.50 "
Lancs Fire & Rescue Service,E6123,Fire,106373899,14-Apr-20,Rents - Premises,PRESTON CITY COUNCIL,LOCAL GOVERNMENT, 912.50 
Lancs Fire & Rescue Service,E6123,Fire,106373905,14-Apr-20,Electricity,NPOWER,UTILITIES ELECTRICITY, 503.17 
Lancs Fire & Rescue Service,E6123,Fire,106374817,14-Apr-20,Electricity,NPOWER,UTILITIES ELECTRICITY," 4,276.28 "
Lancs Fire & Rescue Service,E6123,Fire,106374818,14-Apr-20,Electricity,NPOWER,UTILITIES ELECTRICITY," 1,231.69 "
Lancs Fire & Rescue Service,E6123,Fire,106374820,14-Apr-20,Electricity,NPOWER,UTILITIES ELECTRICITY," 1,866.76 "
Lancs Fire & Rescue Service,E6123,Fire,106374820,14-Apr-20,Electricity,NPOWER,UTILITIES ELECTRICITY," 1,865.76 "
Lancs Fire & Rescue Service,E6123,Fire,106374820,14-Apr-20,Electricity,NPOWER,UTILITIES ELECTRICITY,"(1,866.76)"
Lancs Fire & Rescue Service,E6123,Fire,106374823,14-Apr-20,Electricity,NPOWER,UTILITIES ELECTRICITY," 5,947.05 "
Lancs Fire & Rescue Service,E6123,Fire,106374826,14-Apr-20,Electricity,NPOWER,UTILITIES ELECTRICITY, 581.71 
Lancs Fire & Rescue Service,E6123,Fire,106374831,14-Apr-20,Electricity,NPOWER,UTILITIES ELECTRICITY, 738.59 
Lancs Fire & Rescue Service,E6123,Fire,106374835,14-Apr-20,Electricity,NPOWER,UTILITIES ELECTRICITY, 642.62 
Lancs Fire & Rescue Service,E6123,Fire,106374840,14-Apr-20,Electricity,NPOWER,UTILITIES ELECTRICITY, 473.72 
Lancs Fire & Rescue Service,E6123,Fire,106374844,14-Apr-20,Electricity,NPOWER,UTILITIES ELECTRICITY, 487.36 
Lancs Fire & Rescue Service,E6123,Fire,106374845,14-Apr-20,Electricity,NPOWER,UTILITIES ELECTRICITY, 640.83 
Lancs Fire & Rescue Service,E6123,Fire,106374847,14-Apr-20,Electricity,NPOWER,UTILITIES ELECTRICITY, 536.42 
Lancs Fire & Rescue Service,E6123,Fire,106374849,14-Apr-20,Electricity,NPOWER,UTILITIES ELECTRICITY, 517.35 
Lancs Fire & Rescue Service,E6123,Fire,106374863,14-Apr-20,Electricity,NPOWER,UTILITIES ELECTRICITY, 649.12 
Lancs Fire & Rescue Service,E6123,Fire,106374864,14-Apr-20,Electricity,NPOWER,UTILITIES ELECTRICITY, 621.28 
Lancs Fire & Rescue Service,E6123,Fire,106374865,14-Apr-20,Electricity,NPOWER,UTILITIES ELECTRICITY, 720.63 
Lancs Fire & Rescue Service,E6123,Fire,106374866,14-Apr-20,Electricity,NPOWER,UTILITIES ELECTRICITY, 858.13 
Lancs Fire & Rescue Service,E6123,Fire,106374908,14-Apr-20,Electricity,NPOWER,UTILITIES ELECTRICITY, 893.73 
Lancs Fire & Rescue Service,E6123,Fire,106374919,14-Apr-20,Electricity,NPOWER,UTILITIES ELECTRICITY,(532.94)
Lancs Fire & Rescue Service,E6123,Fire,106374921,14-Apr-20,Electricity,NPOWER,UTILITIES ELECTRICITY,(530.64)
Lancs Fire & Rescue Service,E6123,Fire,106374922,14-Apr-20,Electricity,NPOWER,UTILITIES ELECTRICITY, 897.64 
Lancs Fire & Rescue Service,E6123,Fire,106374927,14-Apr-20,Vehicle & Plant Insurance Below Excess,RED ROSE WINDSCREENS LIMITED,FRS SPECIALIST EQUIPMENT, 568.00 
Lancs Fire & Rescue Service,E6123,Fire,106374940,14-Apr-20,Vehicle & Plant R&M (External),EMERGENCY ONE UK LTD,TRANSPORT REPAIR," 1,860.00 "
Lancs Fire & Rescue Service,E6123,Fire,106374941,14-Apr-20,Vehicle & Plant R&M (External),ROSENBAUER UK LTD,FRS SPECIALIST VEHICLES," 2,702.64 "
Lancs Fire & Rescue Service,E6123,Fire,106374943,14-Apr-20,Diesel,STANDARD FUEL OILS LTD,UTILITIES HEATING OIL," 2,204.25 "
Lancs Fire & Rescue Service,E6123,Fire,106374945,14-Apr-20,Diesel,STANDARD FUEL OILS LTD,UTILITIES HEATING OIL," 1,058.04 "
Lancs Fire & Rescue Service,E6123,Fire,106374946,14-Apr-20,Diesel,STANDARD FUEL OILS LTD,UTILITIES HEATING OIL, 881.70 
Lancs Fire & Rescue Service,E6123,Fire,106374947,14-Apr-20,Fire - Operational Equipment,WILSONS CONTRACTORS & ENGINEERS,BUILDING MATS&SVCS GEN," 1,047.00 "
Lancs Fire & Rescue Service,E6123,Fire,106374949,14-Apr-20,Gas,CORONA ENERGY,UTILITIES GAS, 864.98 
Lancs Fire & Rescue Service,E6123,Fire,106374951,14-Apr-20,Gas,CORONA ENERGY,UTILITIES GAS, 796.77 
Lancs Fire & Rescue Service,E6123,Fire,106381539,14-Apr-20,Course Providers,REDACTED,EDUCATION SERVICES, 706.00 
Lancs Fire & Rescue Service,E6123,Fire,106381590,14-Apr-20,Professional Services,FORBES SOLICITORS,LEGAL SVCS GENERAL, 966.00 
Lancs Fire & Rescue Service,E6123,Fire,106381591,14-Apr-20,Service Contracts,HARVEY ENVIRONMENTAL SERVICES,ENVIRON PEST CONTROL," 2,392.92 "
Lancs Fire & Rescue Service,E6123,Fire,106381592,14-Apr-20,Programmed Work,CENTRAL POWER SERVICES LTD,VEHICLES HEAVY CONST," 4,890.00 "
Lancs Fire & Rescue Service,E6123,Fire,106381601,14-Apr-20,Fire - Op Equip Repairs,FIRE HOSETECH LTD,HEALTH&SAFETY PRODUCTS, 520.00 
Lancs Fire & Rescue Service,E6123,Fire,106381616,14-Apr-20,Training Expenses (External),PINKSTON WATERSPORTS,TRAINING, 210.00 
Lancs Fire & Rescue Service,E6123,Fire,106381616,14-Apr-20,Training Expenses (External),PINKSTON WATERSPORTS,TRAINING, 210.00 
Lancs Fire & Rescue Service,E6123,Fire,106381616,14-Apr-20,Training Expenses (External),PINKSTON WATERSPORTS,TRAINING, 85.00 
Lancs Fire & Rescue Service,E6123,Fire,106381616,14-Apr-20,Training Expenses (External),PINKSTON WATERSPORTS,TRAINING, 210.00 
Lancs Fire & Rescue Service,E6123,Fire,106381616,14-Apr-20,Training Expenses (External),PINKSTON WATERSPORTS,TRAINING, 100.00 
Lancs Fire & Rescue Service,E6123,Fire,106381619,14-Apr-20,Consumable Materials,PILKINGTON OILS,UTILITIES HEATING OIL," 1,014.00 "
Lancs Fire & Rescue Service,E6123,Fire,106381623,14-Apr-20,Professional Services,HUMAN SPIRIT LTD,TRAINING, 250.00 
Lancs Fire & Rescue Service,E6123,Fire,106381623,14-Apr-20,Professional Services,HUMAN SPIRIT LTD,TRAINING, 250.00 
Lancs Fire & Rescue Service,E6123,Fire,106381623,14-Apr-20,Professional Services,HUMAN SPIRIT LTD,TRAINING, 57.60 
Lancs Fire & Rescue Service,E6123,Fire,106381623,14-Apr-20,Professional Services,HUMAN SPIRIT LTD,TRAINING, 250.00 
Lancs Fire & Rescue Service,E6123,Fire,106381623,14-Apr-20,Professional Services,HUMAN SPIRIT LTD,TRAINING, 57.60 
Lancs Fire & Rescue Service,E6123,Fire,106381623,14-Apr-20,Professional Services,HUMAN SPIRIT LTD,TRAINING, 250.00 
Lancs Fire & Rescue Service,E6123,Fire,106381623,14-Apr-20,Professional Services,HUMAN SPIRIT LTD,TRAINING, 125.00 
Lancs Fire & Rescue Service,E6123,Fire,106383819,14-Apr-20,Computer Equipment (Hardware),VIRGIN MEDIA LTD,ICT TELECOMMS FIXED," 27,100.00 "
Lancs Fire & Rescue Service,E6123,Fire,106383823,14-Apr-20,Consumable Materials,HEALTHMED SUPPLIES,MEDICAL SERVICES, 776.00 
Lancs Fire & Rescue Service,E6123,Fire,106383823,14-Apr-20,Consumable Materials,HEALTHMED SUPPLIES,MEDICAL SERVICES, 43.92 
Lancs Fire & Rescue Service,E6123,Fire,106383823,14-Apr-20,Consumable Materials,HEALTHMED SUPPLIES,MEDICAL SERVICES, 21.96 
Lancs Fire & Rescue Service,E6123,Fire,106383823,14-Apr-20,Consumable Materials,HEALTHMED SUPPLIES,MEDICAL SERVICES, 194.00 
Lancs Fire & Rescue Service,E6123,Fire,106383823,14-Apr-20,Consumable Materials,HEALTHMED SUPPLIES,MEDICAL SERVICES," 1,164.00 "
Lancs Fire & Rescue Service,E6123,Fire,106383823,14-Apr-20,Consumable Materials,HEALTHMED SUPPLIES,MEDICAL SERVICES, 22.98 
Lancs Fire & Rescue Service,E6123,Fire,106384281,14-Apr-20,Computer Hardware,IDHAMMAR SYSTEMS LTD,CONSULTANCY IT," 3,276.00 "
Lancs Fire & Rescue Service,E6123,Fire,106388679,14-Apr-20,Professional Services,LAVAT CONSULTING LTD. T/A PSTAX,CONSULTANCY FINANCIAL," 2,531.70 "
Lancs Fire & Rescue Service,E6123,Fire,106388681,14-Apr-20,Consumable Materials,HEALTHMED SUPPLIES,MEDICAL SERVICES," 4,850.00 "
Lancs Fire & Rescue Service,E6123,Fire,106388681,14-Apr-20,Consumable Materials,HEALTHMED SUPPLIES,MEDICAL SERVICES," 2,425.00 "
Lancs Fire & Rescue Service,E6123,Fire,106388681,14-Apr-20,Consumable Materials,HEALTHMED SUPPLIES,MEDICAL SERVICES," 1,455.00 "
Lancs Fire & Rescue Service,E6123,Fire,106391919,14-Apr-20,Protective Clothing,HUNTER APPAREL SOLUTIONS LTD,CLOTHING PERSONAL," 32,790.00 "
Lancs Fire & Rescue Service,E6123,Fire,106391919,14-Apr-20,Protective Clothing,HUNTER APPAREL SOLUTIONS LTD,CLOTHING PERSONAL,"(27,325.00)"
Lancs Fire & Rescue Service,E6123,Fire,106391919,14-Apr-20,Protective Clothing,HUNTER APPAREL SOLUTIONS LTD,CLOTHING PERSONAL," 27,325.00 "
Lancs Fire & Rescue Service,E6123,Fire,106391920,14-Apr-20,Protective Clothing,OC INNOVATIONS,MEDICAL CONSUMABLES," 15,015.00 "
Lancs Fire & Rescue Service,E6123,Fire,106354986,17-Apr-20,Fire - Op Equip Repairs,OTRA LTD,VEHICLES MAINTENANCE, 750.00 
Lancs Fire & Rescue Service,E6123,Fire,106355054,17-Apr-20,Service Contracts,KNOWSLEY BUILDING & ENVIRONMENTAL SERVICES LTD,ENVIRON MONITORING," 2,750.00 "
Lancs Fire & Rescue Service,E6123,Fire,106355056,17-Apr-20,Service Contracts,KNOWSLEY BUILDING & ENVIRONMENTAL SERVICES LTD,ENVIRON MONITORING," 2,200.00 "
Lancs Fire & Rescue Service,E6123,Fire,106355057,17-Apr-20,Service Contracts,KNOWSLEY BUILDING & ENVIRONMENTAL SERVICES LTD,ENVIRON MONITORING," 2,200.00 "
Lancs Fire & Rescue Service,E6123,Fire,106355058,17-Apr-20,Service Contracts,KNOWSLEY BUILDING & ENVIRONMENTAL SERVICES LTD,ENVIRON MONITORING," 1,375.00 "
Lancs Fire & Rescue Service,E6123,Fire,106355059,17-Apr-20,Service Contracts,KNOWSLEY BUILDING & ENVIRONMENTAL SERVICES LTD,ENVIRON MONITORING," 2,750.00 "
Lancs Fire & Rescue Service,E6123,Fire,106355062,17-Apr-20,Service Contracts,KNOWSLEY BUILDING & ENVIRONMENTAL SERVICES LTD,ENVIRON MONITORING," 1,100.00 "
Lancs Fire & Rescue Service,E6123,Fire,106355064,17-Apr-20,Service Contracts,KNOWSLEY BUILDING & ENVIRONMENTAL SERVICES LTD,ENVIRON MONITORING, 825.00 
Lancs Fire & Rescue Service,E6123,Fire,106355067,17-Apr-20,Service Contracts,KNOWSLEY BUILDING & ENVIRONMENTAL SERVICES LTD,ENVIRON MONITORING," 2,200.00 "
Lancs Fire & Rescue Service,E6123,Fire,106356615,17-Apr-20,Vehicle & Plant R&M (External),OTRA LTD,VEHICLES MAINTENANCE, 569.88 
Lancs Fire & Rescue Service,E6123,Fire,106356657,17-Apr-20,Vehicle & Plant Insurance Below Excess,JAMES ALPE LTD,VEHICLES PARTS," 7,034.58 "
Lancs Fire & Rescue Service,E6123,Fire,106356662,17-Apr-20,Vehicle & Plant R&M (External),OTRA LTD,VEHICLES MAINTENANCE," 1,264.00 "
Lancs Fire & Rescue Service,E6123,Fire,106362090,17-Apr-20,Course Providers,CHESHIRE TRAINING SOLUTIONS,TRAINING, 484.00 
Lancs Fire & Rescue Service,E6123,Fire,106362090,17-Apr-20,Course Providers,CHESHIRE TRAINING SOLUTIONS,TRAINING, 225.00 
Lancs Fire & Rescue Service,E6123,Fire,106362090,17-Apr-20,Course Providers,CHESHIRE TRAINING SOLUTIONS,TRAINING," 2,475.00 "
Lancs Fire & Rescue Service,E6123,Fire,106362090,17-Apr-20,Course Providers,CHESHIRE TRAINING SOLUTIONS,TRAINING, 450.00 
Lancs Fire & Rescue Service,E6123,Fire,106362090,17-Apr-20,Course Providers,CHESHIRE TRAINING SOLUTIONS,TRAINING,(225.00)
Lancs Fire & Rescue Service,E6123,Fire,106362090,17-Apr-20,Course Providers,CHESHIRE TRAINING SOLUTIONS,TRAINING,(484.00)
Lancs Fire & Rescue Service,E6123,Fire,106362090,17-Apr-20,Course Providers,CHESHIRE TRAINING SOLUTIONS,TRAINING, 450.00 
Lancs Fire & Rescue Service,E6123,Fire,106362090,17-Apr-20,Course Providers,CHESHIRE TRAINING SOLUTIONS,TRAINING,(450.00)
Lancs Fire & Rescue Service,E6123,Fire,106362090,17-Apr-20,Course Providers,CHESHIRE TRAINING SOLUTIONS,TRAINING,"(2,475.00)"
Lancs Fire & Rescue Service,E6123,Fire,106362090,17-Apr-20,Course Providers,CHESHIRE TRAINING SOLUTIONS,TRAINING," 2,475.00 "
Lancs Fire & Rescue Service,E6123,Fire,106362090,17-Apr-20,Course Providers,CHESHIRE TRAINING SOLUTIONS,TRAINING, 484.00 
Lancs Fire & Rescue Service,E6123,Fire,106362090,17-Apr-20,Course Providers,CHESHIRE TRAINING SOLUTIONS,TRAINING, 225.00 
Lancs Fire & Rescue Service,E6123,Fire,106370540,17-Apr-20,Computer Hardware,CDW LTD,ICT MAINTENANCE," 1,602.86 "
Lancs Fire & Rescue Service,E6123,Fire,106370583,17-Apr-20,Professional Services,REED BUSINESS INFORMATION LTD,HR PROFESSIONAL&ADVISORY," 6,821.75 "
Lancs Fire & Rescue Service,E6123,Fire,106371553,17-Apr-20,Transport Insurance,MAPS LEGAL ASSISTANCE,LEGAL SVCS SPECIALIST," 1,859.76 "
Lancs Fire & Rescue Service,E6123,Fire,106381544,17-Apr-20,Computer Software,COMPUTER AIDED DEVELOPMENT CORPORATION LTD,ICT SOFTWARE, 350.00 
Lancs Fire & Rescue Service,E6123,Fire,106381544,17-Apr-20,Computer Software,COMPUTER AIDED DEVELOPMENT CORPORATION LTD,ICT SOFTWARE, 350.00 
Lancs Fire & Rescue Service,E6123,Fire,106381544,17-Apr-20,Computer Software,COMPUTER AIDED DEVELOPMENT CORPORATION LTD,ICT SOFTWARE, 205.00 
Lancs Fire & Rescue Service,E6123,Fire,106381544,17-Apr-20,Computer Software,COMPUTER AIDED DEVELOPMENT CORPORATION LTD,ICT SOFTWARE," 2,820.00 "
Lancs Fire & Rescue Service,E6123,Fire,106381544,17-Apr-20,Computer Software,COMPUTER AIDED DEVELOPMENT CORPORATION LTD,ICT SOFTWARE," 1,135.00 "
Lancs Fire & Rescue Service,E6123,Fire,106381544,17-Apr-20,Computer Software,COMPUTER AIDED DEVELOPMENT CORPORATION LTD,ICT SOFTWARE," 1,980.00 "
Lancs Fire & Rescue Service,E6123,Fire,106383604,17-Apr-20,Fire Support Staff,LANCASHIRE COUNTY PENSION FUND,FINANCIAL BANKING," 623,500.00 "
Lancs Fire & Rescue Service,E6123,Fire,106387746,17-Apr-20,Mobile Phone Costs,O2 (UK) LTD,ICT TELECOMMS MOBILE," 5,523.18 "
Lancs Fire & Rescue Service,E6123,Fire,106387747,17-Apr-20,Fire Mobs Airwave costs,HOME OFFICE,GOVERNMENT," 41,162.47 "
Lancs Fire & Rescue Service,E6123,Fire,106387747,17-Apr-20,Fire Mobs Airwave costs,HOME OFFICE,GOVERNMENT," 1,787.11 "
Lancs Fire & Rescue Service,E6123,Fire,106388683,17-Apr-20,Fire - Op Equip Repairs,SHAWCITY LTD (502140),HEALTH&SAFETY PRODUCTS, 555.60 
Lancs Fire & Rescue Service,E6123,Fire,106390012,17-Apr-20,Other Expenses,MILLERS OF LONGTON LTD,VEHICLES MAINTENANCE, 160.00 
Lancs Fire & Rescue Service,E6123,Fire,106390012,17-Apr-20,Petrol,MILLERS OF LONGTON LTD,VEHICLES MAINTENANCE," 1,606.25 "
Lancs Fire & Rescue Service,E6123,Fire,106390012,17-Apr-20,Petrol,MILLERS OF LONGTON LTD,VEHICLES MAINTENANCE, 68.40 
Lancs Fire & Rescue Service,E6123,Fire,106390015,17-Apr-20,Diesel,MILLERS OF LONGTON LTD,VEHICLES MAINTENANCE, 187.50 
Lancs Fire & Rescue Service,E6123,Fire,106390015,17-Apr-20,Lubricants,MILLERS OF LONGTON LTD,VEHICLES MAINTENANCE, 20.00 
Lancs Fire & Rescue Service,E6123,Fire,106390015,17-Apr-20,Other Expenses,MILLERS OF LONGTON LTD,VEHICLES MAINTENANCE, 525.00 
Lancs Fire & Rescue Service,E6123,Fire,106390015,17-Apr-20,Petrol,MILLERS OF LONGTON LTD,VEHICLES MAINTENANCE, 24.00 
Lancs Fire & Rescue Service,E6123,Fire,106390018,17-Apr-20,Repairs & Maintenance General,P.G.B ROOFING,BUILDING MATS&SVCS ROOF, 888.97 
Lancs Fire & Rescue Service,E6123,Fire,106390021,17-Apr-20,Water,WATER PLUS LTD,UTILITIES WATER, 49.63 
Lancs Fire & Rescue Service,E6123,Fire,106390021,17-Apr-20,Water,WATER PLUS LTD,UTILITIES WATER," 10,977.44 "
Lancs Fire & Rescue Service,E6123,Fire,106390032,17-Apr-20,Professional Services,IKG CONSULTING LIMITED,CONSULTANCY BUSINESS," 1,140.00 "
Lancs Fire & Rescue Service,E6123,Fire,106390033,17-Apr-20,Professional Services,RICHARD L THOMAS ASSOCIATES LTD,CONSULTANCY BUSINESS," 1,901.00 "
Lancs Fire & Rescue Service,E6123,Fire,106390034,17-Apr-20,Professional Services,RICHARD L THOMAS ASSOCIATES LTD,CONSULTANCY BUSINESS, 960.00 
Lancs Fire & Rescue Service,E6123,Fire,106390035,17-Apr-20,Repairs & Maintenance General,BID GROUP LTD,BUILDING MATS&SVCS GEN, 705.00 
Lancs Fire & Rescue Service,E6123,Fire,106390037,17-Apr-20,Professional Services,RICHARD L THOMAS ASSOCIATES LTD,CONSULTANCY BUSINESS," 1,474.00 "
Lancs Fire & Rescue Service,E6123,Fire,106390047,17-Apr-20,Consumable Materials,SELLES MEDICAL LIMITED,MEDICAL SERVICES, 595.00 
Lancs Fire & Rescue Service,E6123,Fire,106390051,17-Apr-20,Consumable Materials,THOMAS KNEALE & CO LTD,CATERING EQPMT&UTENSILS," 1,187.50 "
Lancs Fire & Rescue Service,E6123,Fire,106390051,17-Apr-20,Consumable Materials,THOMAS KNEALE & CO LTD,CATERING EQPMT&UTENSILS, 834.00 
Lancs Fire & Rescue Service,E6123,Fire,106390051,17-Apr-20,Consumable Materials,THOMAS KNEALE & CO LTD,CATERING EQPMT&UTENSILS, 738.36 
Lancs Fire & Rescue Service,E6123,Fire,106390071,17-Apr-20,Professional Services,SPECIALIST COMPUTER CENTRE,ICT SOFTWARE," 1,444.58 "
Lancs Fire & Rescue Service,E6123,Fire,106391912,17-Apr-20,Computer Software,EXCELERATE TECHNOLOGY LTD,ICT SOFTWARE," 4,606.80 "
Lancs Fire & Rescue Service,E6123,Fire,106391913,17-Apr-20,Computer Software,EXCELERATE TECHNOLOGY LTD,ICT SOFTWARE," 1,320.00 "
Lancs Fire & Rescue Service,E6123,Fire,106391939,17-Apr-20,Fire - Breathing Apparatus,CYCLINDER TESTING SALES UK LTD,HEALTH&SAFETY PRODUCTS, 462.00 
Lancs Fire & Rescue Service,E6123,Fire,106391940,17-Apr-20,Computer Software,ALIGNED ASSETS LTD,HR TRAINING&CONFERENCES," 3,382.40 "
Lancs Fire & Rescue Service,E6123,Fire,106391940,17-Apr-20,Computer Software,ALIGNED ASSETS LTD,HR TRAINING&CONFERENCES," 1,674.23 "
Lancs Fire & Rescue Service,E6123,Fire,106391940,17-Apr-20,Computer Software,ALIGNED ASSETS LTD,HR TRAINING&CONFERENCES," 5,583.38 "
Lancs Fire & Rescue Service,E6123,Fire,106391940,17-Apr-20,Computer Software,ALIGNED ASSETS LTD,HR TRAINING&CONFERENCES," 3,908.03 "
Lancs Fire & Rescue Service,E6123,Fire,106398981,17-Apr-20,Protective Clothing,OC INNOVATIONS,MEDICAL CONSUMABLES, 30.00 
Lancs Fire & Rescue Service,E6123,Fire,106398981,17-Apr-20,Protective Clothing,OC INNOVATIONS,MEDICAL CONSUMABLES," 8,640.00 "
Lancs Fire & Rescue Service,E6123,Fire,106399011,17-Apr-20,Police - Analyst Fees,FLUID BRANDING LTD,FACIL&MGMT PR&IMAGE," 10,920.00 "
Lancs Fire & Rescue Service,E6123,Fire,Apr20-CC01,17-Apr-20,Protective Clothing,SMH PRODUCTS LTD,CLOTHING PROTECTIVE, 732.00 
Lancs Fire & Rescue Service,E6123,Fire,Apr20-CC02,17-Apr-20,Protective Clothing,MEDICAL TRADE,CLOTHING PROTECTIVE," 3,462.60 "
Lancs Fire & Rescue Service,E6123,Fire,106362081,21-Apr-20,Fire - Op Equip Repairs,PENNINE MARINE LTD,TRANSPORT MAINTENANCE, 475.98 
Lancs Fire & Rescue Service,E6123,Fire,106362369,21-Apr-20,Protective Clothing,BALLYCLARE LHD LTD,CLOTHING PERSONAL," 1,628.64 "
Lancs Fire & Rescue Service,E6123,Fire,106362374,21-Apr-20,Course Providers,THE MYERS BRIGGS CO LTD,CONSULTANCY MANAGEMENT, 502.50 
Lancs Fire & Rescue Service,E6123,Fire,106362374,21-Apr-20,Course Providers,THE MYERS BRIGGS CO LTD,CONSULTANCY MANAGEMENT, 7.50 
Lancs Fire & Rescue Service,E6123,Fire,106365024,21-Apr-20,Protective Clothing,BALLYCLARE LHD LTD,CLOTHING PERSONAL," 2,985.84 "
Lancs Fire & Rescue Service,E6123,Fire,106391944,21-Apr-20,Fire - Op Equip Repairs,HOLMATRO UK LTD,VEHICLES PARTS, 17.50 
Lancs Fire & Rescue Service,E6123,Fire,106391944,21-Apr-20,Fire - Op Equip Repairs,HOLMATRO UK LTD,VEHICLES PARTS," 1,424.00 "
Lancs Fire & Rescue Service,E6123,Fire,106391944,21-Apr-20,Fire - Op Equip Repairs,HOLMATRO UK LTD,VEHICLES PARTS, 173.20 
Lancs Fire & Rescue Service,E6123,Fire,106392457,21-Apr-20,Fire - Op Equip Repairs,WILLIAM MOORE & SON LTD,FRS SPECIALIST EQUIPMENT," 2,033.34 "
Lancs Fire & Rescue Service,E6123,Fire,106392460,21-Apr-20,"Vehicles, Repairs & Maintenance",LANCASHIRE COUNTY COUNCIL,LOCAL GOVERNMENT," 106,949.65 "
Lancs Fire & Rescue Service,E6123,Fire,106392460,21-Apr-20,"Vehicles, Repairs & Maintenance",LANCASHIRE COUNTY COUNCIL,LOCAL GOVERNMENT," 25,424.96 "
Lancs Fire & Rescue Service,E6123,Fire,106392460,21-Apr-20,"Vehicles, Repairs & Maintenance",LANCASHIRE COUNTY COUNCIL,LOCAL GOVERNMENT," 6,525.61 "
Lancs Fire & Rescue Service,E6123,Fire,106392460,21-Apr-20,"Vehicles, Repairs & Maintenance",LANCASHIRE COUNTY COUNCIL,LOCAL GOVERNMENT," 55,169.07 "
Lancs Fire & Rescue Service,E6123,Fire,106392462,21-Apr-20,Consumable Materials,SELLES MEDICAL LIMITED,MEDICAL SERVICES, 892.50 
Lancs Fire & Rescue Service,E6123,Fire,106395269,21-Apr-20,Course Providers,XACT CONSULTANCY & TRAINING LTD,TRAINING," 1,580.00 "
Lancs Fire & Rescue Service,E6123,Fire,106395269,21-Apr-20,Course Providers,XACT CONSULTANCY & TRAINING LTD,TRAINING, 646.00 
Lancs Fire & Rescue Service,E6123,Fire,106395985,21-Apr-20,Stocks And Stores - General,COMPASS FUEL OILS LTD,VEHICLES MAINTENANCE, 450.00 
Lancs Fire & Rescue Service,E6123,Fire,106395986,21-Apr-20,Stocks And Stores - General,THOMAS KNEALE & CO LTD,CATERING EQPMT&UTENSILS," 3,471.68 "
Lancs Fire & Rescue Service,E6123,Fire,106395987,21-Apr-20,Stocks And Stores - General,THOMAS KNEALE & CO LTD,CATERING EQPMT&UTENSILS," 1,106.08 "
Lancs Fire & Rescue Service,E6123,Fire,106395989,21-Apr-20,Stocks And Stores - General,KEELA INTERNATIONAL LTD,CLOTHING PERSONAL," 1,853.76 "
Lancs Fire & Rescue Service,E6123,Fire,106395992,21-Apr-20,Stocks And Stores - General,SOUTHCOMBE BROTHERS LTD,CLOTHING PERSONAL," 1,495.50 "
Lancs Fire & Rescue Service,E6123,Fire,106395993,21-Apr-20,Stocks And Stores - General,BENNETT SAFETYWARE LTD,CLOTHING PERSONAL," 1,092.50 "
Lancs Fire & Rescue Service,E6123,Fire,106395995,21-Apr-20,Stocks And Stores - General,AUTOMOTIVE TOOLS & SUPPLIES LTD,BUILDING MATS&SVCS GEN, 690.00 
Lancs Fire & Rescue Service,E6123,Fire,106395996,21-Apr-20,Stocks And Stores - General,AUTOMOTIVE TOOLS & SUPPLIES LTD,BUILDING MATS&SVCS GEN, 445.20 
Lancs Fire & Rescue Service,E6123,Fire,106395997,21-Apr-20,Postage & Carriage,BETE LTD,HEALTH&SAFETY PRODUCTS, 30.00 
Lancs Fire & Rescue Service,E6123,Fire,106395997,21-Apr-20,Stocks And Stores - General,BETE LTD,HEALTH&SAFETY PRODUCTS," 2,887.50 "
Lancs Fire & Rescue Service,E6123,Fire,106395998,21-Apr-20,Postage & Carriage,FIRE LADDERS LTD,HEALTH&SAFETY PRODUCTS, 50.00 
Lancs Fire & Rescue Service,E6123,Fire,106395998,21-Apr-20,Stocks And Stores - General,FIRE LADDERS LTD,HEALTH&SAFETY PRODUCTS," 3,120.00 "
Lancs Fire & Rescue Service,E6123,Fire,106396000,21-Apr-20,Stocks And Stores - General,DRAEGER SAFETY UK LTD,HEALTH&SAFETY PRODUCTS, 912.00 
Lancs Fire & Rescue Service,E6123,Fire,106396002,21-Apr-20,Postage & Carriage,WRAY BROS LIMITED,CLEANING&JANITORIAL SVCS, 1.56 
Lancs Fire & Rescue Service,E6123,Fire,106396002,21-Apr-20,Stocks And Stores - General,WRAY BROS LIMITED,CLEANING&JANITORIAL SVCS, 534.78 
Lancs Fire & Rescue Service,E6123,Fire,106396004,21-Apr-20,Postage & Carriage,WRAY BROS LIMITED,CLEANING&JANITORIAL SVCS, 3.20 
Lancs Fire & Rescue Service,E6123,Fire,106396004,21-Apr-20,Stocks And Stores - General,WRAY BROS LIMITED,CLEANING&JANITORIAL SVCS, 767.60 
Lancs Fire & Rescue Service,E6123,Fire,106396011,21-Apr-20,Stocks And Stores - General,WELDBANK PLASTIC CO LTD,BUILDING MATS&SVCS GEN," 1,030.00 "
Lancs Fire & Rescue Service,E6123,Fire,106396012,21-Apr-20,Postage & Carriage,BHW PRINT GROUP LTD T/A HASLAM PRINTERS,MEDIA AND MARKETING, 0.35 
Lancs Fire & Rescue Service,E6123,Fire,106396012,21-Apr-20,Stocks And Stores - General,BHW PRINT GROUP LTD T/A HASLAM PRINTERS,MEDIA AND MARKETING," 1,904.65 "
Lancs Fire & Rescue Service,E6123,Fire,106397774,21-Apr-20,Fire - Op equip R&D,WILLIAM MOORE & SON LTD,FRS SPECIALIST EQUIPMENT," 1,790.00 "
Lancs Fire & Rescue Service,E6123,Fire,106397776,21-Apr-20,Service Contracts,FUTURE TECHNOLOGY SERVICES LTD,BUILDING MATS&SVCS ELEC," 6,771.00 "
Lancs Fire & Rescue Service,E6123,Fire,106397778,21-Apr-20,Repairs & Maintenance General,HARDACRES PLUMBERS (NW) LTD,WORKS BUILDINGS," 1,339.23 "
Lancs Fire & Rescue Service,E6123,Fire,106397785,21-Apr-20,Programmed Work,PUMP SERVICE & TECHNOLOGY UK LTD,FRS SPECIALIST EQUIPMENT," 1,654.00 "
Lancs Fire & Rescue Service,E6123,Fire,106397789,21-Apr-20,Service Contracts,FUTURE TECHNOLOGY SERVICES LTD,BUILDING MATS&SVCS ELEC," 6,500.00 "
Lancs Fire & Rescue Service,E6123,Fire,106397791,21-Apr-20,Fire - Op Equip Repairs,HOLMATRO UK LTD,VEHICLES PARTS, 53.10 
Lancs Fire & Rescue Service,E6123,Fire,106397791,21-Apr-20,Fire - Op Equip Repairs,HOLMATRO UK LTD,VEHICLES PARTS, 117.00 
Lancs Fire & Rescue Service,E6123,Fire,106397791,21-Apr-20,Fire - Op Equip Repairs,HOLMATRO UK LTD,VEHICLES PARTS," 2,082.00 "
Lancs Fire & Rescue Service,E6123,Fire,106397791,21-Apr-20,Fire - Op Equip Repairs,HOLMATRO UK LTD,VEHICLES PARTS, 17.50 
Lancs Fire & Rescue Service,E6123,Fire,106397791,21-Apr-20,Fire - Op Equip Repairs,HOLMATRO UK LTD,VEHICLES PARTS, 16.30 
Lancs Fire & Rescue Service,E6123,Fire,106406826,21-Apr-20,Protective Clothing,SSI ENERGY LTD,NOT CLASSIFIED," 19,965.60 "
Lancs Fire & Rescue Service,E6123,Fire,106362087,24-Apr-20,Course Providers,UCLAN BUSINESS SERVICES LTD,HR TRAINING&CONFERENCES," 4,000.00 "
Lancs Fire & Rescue Service,E6123,Fire,106362366,24-Apr-20,Fire - Op Equip Repairs,OTRA LTD,VEHICLES MAINTENANCE, 454.00 
Lancs Fire & Rescue Service,E6123,Fire,106369684,24-Apr-20,Other Expenses,ROWAN DISPLAYS LTD,UNCLASSIFIED, 184.77 
Lancs Fire & Rescue Service,E6123,Fire,106369684,24-Apr-20,Other Expenses,ROWAN DISPLAYS LTD,UNCLASSIFIED, 246.36 
Lancs Fire & Rescue Service,E6123,Fire,106369684,24-Apr-20,Other Expenses,ROWAN DISPLAYS LTD,UNCLASSIFIED, 225.83 
Lancs Fire & Rescue Service,E6123,Fire,106369684,24-Apr-20,Other Expenses,ROWAN DISPLAYS LTD,UNCLASSIFIED, 190.40 
Lancs Fire & Rescue Service,E6123,Fire,106369684,24-Apr-20,Other Expenses,ROWAN DISPLAYS LTD,UNCLASSIFIED, 12.95 
Lancs Fire & Rescue Service,E6123,Fire,106370542,24-Apr-20,Computer Software,SOFTCAT LTD,ICT CALL SYSTEMS," 3,061.08 "
Lancs Fire & Rescue Service,E6123,Fire,106371104,24-Apr-20,Computer Hardware,CDW LTD,ICT MAINTENANCE," 7,299.16 "
Lancs Fire & Rescue Service,E6123,Fire,106371104,24-Apr-20,Computer Hardware,CDW LTD,ICT MAINTENANCE," 1,078.95 "
Lancs Fire & Rescue Service,E6123,Fire,106374932,24-Apr-20,Vehicle & Plant R&M (External),OTRA LTD,VEHICLES MAINTENANCE, 471.20 
Lancs Fire & Rescue Service,E6123,Fire,106392465,24-Apr-20,Course Providers,TRAINING & COACHING FOR EXCELLENCE LTD,TRAINING, 550.00 
Lancs Fire & Rescue Service,E6123,Fire,106392465,24-Apr-20,Course Providers,TRAINING & COACHING FOR EXCELLENCE LTD,TRAINING, 96.00 
Lancs Fire & Rescue Service,E6123,Fire,106392465,24-Apr-20,Course Providers,TRAINING & COACHING FOR EXCELLENCE LTD,TRAINING, 21.60 
Lancs Fire & Rescue Service,E6123,Fire,106392465,24-Apr-20,Course Providers,TRAINING & COACHING FOR EXCELLENCE LTD,TRAINING,(21.60)
Lancs Fire & Rescue Service,E6123,Fire,106392465,24-Apr-20,Course Providers,TRAINING & COACHING FOR EXCELLENCE LTD,TRAINING, 21.60 
Lancs Fire & Rescue Service,E6123,Fire,106395266,24-Apr-20,Computer Software,SOFTCAT LTD,ICT CALL SYSTEMS," 6,840.00 "
Lancs Fire & Rescue Service,E6123,Fire,106396713,24-Apr-20,Computer Software,CYLIX LTD,TRAINING," 3,081.00 "
Lancs Fire & Rescue Service,E6123,Fire,106397498,24-Apr-20,Vehicle & Plant Insurance Below Excess,TRAVELERS INSURANCE COMPANY LTD,FINANCIAL� INSURANCE," 17,682.82 "
Lancs Fire & Rescue Service,E6123,Fire,106397505,24-Apr-20,Waste Collection Charges,SUEZ RECYCLING & RECOVERY UK LTD,ENVIRON WASTE MGMT," 2,773.88 "
Lancs Fire & Rescue Service,E6123,Fire,106397596,24-Apr-20,Fire - Op Equip Repairs,FIRE HOSETECH LTD,HEALTH&SAFETY PRODUCTS, 260.00 
Lancs Fire & Rescue Service,E6123,Fire,106397596,24-Apr-20,Fire - Op Equip Repairs,FIRE HOSETECH LTD,HEALTH&SAFETY PRODUCTS, 25.00 
Lancs Fire & Rescue Service,E6123,Fire,106397596,24-Apr-20,Fire - Op Equip Repairs,FIRE HOSETECH LTD,HEALTH&SAFETY PRODUCTS, 289.00 
Lancs Fire & Rescue Service,E6123,Fire,106397596,24-Apr-20,Fire - Op Equip Repairs,FIRE HOSETECH LTD,HEALTH&SAFETY PRODUCTS, 90.00 
Lancs Fire & Rescue Service,E6123,Fire,106397597,24-Apr-20,Fire - Hydrants,FIRE HOSETECH LTD,HEALTH&SAFETY PRODUCTS, 710.00 
Lancs Fire & Rescue Service,E6123,Fire,106397598,24-Apr-20,Computer Software,EFIRESERVICE LTD,CONSULTANCY IT," 1,000.00 "
Lancs Fire & Rescue Service,E6123,Fire,106397599,24-Apr-20,Subscriptions,THE POLICE & CRIME COMMISSIONER FOR LANCASHIRE,POLICING," 7,917.00 "
Lancs Fire & Rescue Service,E6123,Fire,106397599,24-Apr-20,Subscriptions,THE POLICE & CRIME COMMISSIONER FOR LANCASHIRE,POLICING, 20.00 
Lancs Fire & Rescue Service,E6123,Fire,106397602,24-Apr-20,Consumable Materials,SELLES MEDICAL LIMITED,MEDICAL SERVICES, 434.91 
Lancs Fire & Rescue Service,E6123,Fire,106397603,24-Apr-20,Fire - Op Equip Repairs,HEIGHTEC GROUP LTD,HEALTH&SAFETY PRODUCTS, 43.69 
Lancs Fire & Rescue Service,E6123,Fire,106397603,24-Apr-20,Fire - Op Equip Repairs,HEIGHTEC GROUP LTD,HEALTH&SAFETY PRODUCTS, 454.07 
Lancs Fire & Rescue Service,E6123,Fire,106397603,24-Apr-20,Fire - Op Equip Repairs,HEIGHTEC GROUP LTD,HEALTH&SAFETY PRODUCTS, 54.23 
Lancs Fire & Rescue Service,E6123,Fire,106397603,24-Apr-20,Fire - Op Equip Repairs,HEIGHTEC GROUP LTD,HEALTH&SAFETY PRODUCTS, 353.60 
Lancs Fire & Rescue Service,E6123,Fire,106405001,24-Apr-20,Professional Services,REDACTED,CONSULTANCY MANAGEMENT," 1,262.50 "
Lancs Fire & Rescue Service,E6123,Fire,106405359,24-Apr-20,Fire - Op equip R&D,WILLIAM MOORE & SON LTD,FRS SPECIALIST EQUIPMENT, 629.37 
Lancs Fire & Rescue Service,E6123,Fire,106405359,24-Apr-20,Fire - Op equip R&D,WILLIAM MOORE & SON LTD,FRS SPECIALIST EQUIPMENT,(0.50)
Lancs Fire & Rescue Service,E6123,Fire,106405359,24-Apr-20,Fire - Op equip R&D,WILLIAM MOORE & SON LTD,FRS SPECIALIST EQUIPMENT, 150.00 
Lancs Fire & Rescue Service,E6123,Fire,106405359,24-Apr-20,Fire - Op equip R&D,WILLIAM MOORE & SON LTD,FRS SPECIALIST EQUIPMENT," 1,939.14 "
Lancs Fire & Rescue Service,E6123,Fire,106405359,24-Apr-20,Fire - Op equip R&D,WILLIAM MOORE & SON LTD,FRS SPECIALIST EQUIPMENT," 3,149.37 "
Lancs Fire & Rescue Service,E6123,Fire,106405359,24-Apr-20,Fire - Op equip R&D,WILLIAM MOORE & SON LTD,FRS SPECIALIST EQUIPMENT, 87.50 
Lancs Fire & Rescue Service,E6123,Fire,106405359,24-Apr-20,Fire - Op equip R&D,WILLIAM MOORE & SON LTD,FRS SPECIALIST EQUIPMENT," 1,102.50 "
Lancs Fire & Rescue Service,E6123,Fire,106405359,24-Apr-20,Fire - Op equip R&D,WILLIAM MOORE & SON LTD,FRS SPECIALIST EQUIPMENT," 2,670.00 "
Lancs Fire & Rescue Service,E6123,Fire,106405359,24-Apr-20,Fire - Op equip R&D,WILLIAM MOORE & SON LTD,FRS SPECIALIST EQUIPMENT," 17,010.00 "
Lancs Fire & Rescue Service,E6123,Fire,106405359,24-Apr-20,Fire - Op equip R&D,WILLIAM MOORE & SON LTD,FRS SPECIALIST EQUIPMENT," 10,017.00 "
Lancs Fire & Rescue Service,E6123,Fire,106405359,24-Apr-20,Fire - Op equip R&D,WILLIAM MOORE & SON LTD,FRS SPECIALIST EQUIPMENT," 7,497.00 "
Lancs Fire & Rescue Service,E6123,Fire,106405359,24-Apr-20,Fire - Op equip R&D,WILLIAM MOORE & SON LTD,FRS SPECIALIST EQUIPMENT," 10,647.00 "
Lancs Fire & Rescue Service,E6123,Fire,106405359,24-Apr-20,Fire - Op equip R&D,WILLIAM MOORE & SON LTD,FRS SPECIALIST EQUIPMENT," 2,520.00 "
Lancs Fire & Rescue Service,E6123,Fire,106405359,24-Apr-20,Fire - Op equip R&D,WILLIAM MOORE & SON LTD,FRS SPECIALIST EQUIPMENT, 629.37 
Lancs Fire & Rescue Service,E6123,Fire,106405359,24-Apr-20,Fire - Op equip R&D,WILLIAM MOORE & SON LTD,FRS SPECIALIST EQUIPMENT, 440.37 
Lancs Fire & Rescue Service,E6123,Fire,106327480,28-Apr-20,Course Providers,MERSEYSIDE FIRE & RESCUE AUTHORITY,LOCAL GOVERNMENT,"(1,273.00)"
Lancs Fire & Rescue Service,E6123,Fire,106368460,28-Apr-20,Medical Fees,ORGANISATIONAL HEALTHCARE LTD,HEALTH&SAFETY SERVICES," 2,100.00 "
Lancs Fire & Rescue Service,E6123,Fire,106370548,28-Apr-20,Computer Hardware,CDW LTD,ICT MAINTENANCE," 1,477.67 "
Lancs Fire & Rescue Service,E6123,Fire,106370586,28-Apr-20,Computer Software,ROCKET SOFTWARE UK LTD,ICT SOFTWARE," 7,429.35 "
Lancs Fire & Rescue Service,E6123,Fire,106371108,28-Apr-20,Computer Hardware,INSIGHT DIRECT (UK) LTD,ICT SOFTWARE," 1,999.80 "
Lancs Fire & Rescue Service,E6123,Fire,106374923,28-Apr-20,Vehicle & Plant R&M (External),STEADPLAN LTD,VEHICLES MAINTENANCE," 1,349.55 "
Lancs Fire & Rescue Service,E6123,Fire,106381559,28-Apr-20,Furniture General,OFFICE FURNITURE ONLINE,FURNITURE OFFICE, 567.00 
Lancs Fire & Rescue Service,E6123,Fire,106381597,28-Apr-20,Diesel,ALLSTAR BUSINESS SOLUTIONS LTD,VEHICLES FUEL," 20,271.18 "
Lancs Fire & Rescue Service,E6123,Fire,106381597,28-Apr-20,Petrol,ALLSTAR BUSINESS SOLUTIONS LTD,VEHICLES FUEL, 988.97 
Lancs Fire & Rescue Service,E6123,Fire,106383832,28-Apr-20,Computer Hardware,CDW LTD,ICT MAINTENANCE," 20,806.00 "
Lancs Fire & Rescue Service,E6123,Fire,106384282,28-Apr-20,Agency Staff,MERSEYSIDE FIRE & RESCUE AUTHORITY,LOCAL GOVERNMENT," 20,538.89 "
Lancs Fire & Rescue Service,E6123,Fire,106405391,28-Apr-20,Computer Software,BYTES SOFTWARE SERVICES LTD,ICT SOFTWARE, 292.00 
Lancs Fire & Rescue Service,E6123,Fire,106405391,28-Apr-20,Computer Software,BYTES SOFTWARE SERVICES LTD,ICT SOFTWARE," 3,792.00 "
Lancs Fire & Rescue Service,E6123,Fire,106405391,28-Apr-20,Computer Software,BYTES SOFTWARE SERVICES LTD,ICT SOFTWARE, 664.00 
Lancs Fire & Rescue Service,E6123,Fire,106405391,28-Apr-20,Computer Software,BYTES SOFTWARE SERVICES LTD,ICT SOFTWARE," 2,052.00 "
Lancs Fire & Rescue Service,E6123,Fire,106405391,28-Apr-20,Computer Software,BYTES SOFTWARE SERVICES LTD,ICT SOFTWARE, 584.00 
Lancs Fire & Rescue Service,E6123,Fire,106405392,28-Apr-20,Computer Hardware,DELL COMPUTER CORPORATION LTD,ICT SOFTWARE, 417.65 
Lancs Fire & Rescue Service,E6123,Fire,106405394,28-Apr-20,Computer Software,BYTES SOFTWARE SERVICES LTD,ICT SOFTWARE," 1,274.68 "
Lancs Fire & Rescue Service,E6123,Fire,106405396,28-Apr-20,Fire Mobs Paging Equipment,PAGEONE COMMUNICATIONS LTD,ICT CALL SYSTEMS, 750.00 
Lancs Fire & Rescue Service,E6123,Fire,106405396,28-Apr-20,Fire Mobs Paging Equipment,PAGEONE COMMUNICATIONS LTD,ICT CALL SYSTEMS, 0.45 
Lancs Fire & Rescue Service,E6123,Fire,106405397,28-Apr-20,Computer Software,RICARDO-AEA LTD,CONSULTANCY BUSINESS," 13,410.00 "
Lancs Fire & Rescue Service,E6123,Fire,106407162,28-Apr-20,Fire - Operational Equipment,DRAEGER SAFETY UK LTD,HEALTH&SAFETY PRODUCTS, 540.00 
Lancs Fire & Rescue Service,E6123,Fire,106407176,28-Apr-20,Cleaning Materials,WRAY BROS LIMITED,CLEANING&JANITORIAL SVCS, 19.70 
Lancs Fire & Rescue Service,E6123,Fire,106407176,28-Apr-20,Cleaning Materials,WRAY BROS LIMITED,CLEANING&JANITORIAL SVCS, 492.00 
Lancs Fire & Rescue Service,E6123,Fire,106407176,28-Apr-20,Cleaning Materials,WRAY BROS LIMITED,CLEANING&JANITORIAL SVCS, 372.80 
Lancs Fire & Rescue Service,E6123,Fire,106407179,28-Apr-20,Consumable Materials,WRAY BROS LIMITED,CLEANING&JANITORIAL SVCS, 520.00 
Lancs Fire & Rescue Service,E6123,Fire,106407185,28-Apr-20,Consumable Materials,SLATER SAFETY SUPPLIES,HEALTH&SAFETY PRODUCTS," 1,908.00 "
Lancs Fire & Rescue Service,E6123,Fire,106407186,28-Apr-20,Computer Software,IDHAMMAR SYSTEMS LTD,CONSULTANCY IT," 8,659.93 "
Lancs Fire & Rescue Service,E6123,Fire,106408303,28-Apr-20,Vehicle & Plant R&M (External),ANGLOCO LIMITED,VEHICLES INDUSTRIAL," 6,186.00 "
Lancs Fire & Rescue Service,E6123,Fire,106408977,28-Apr-20,Fire - Op Equip Repairs,DELTA FIRE,HEALTH&SAFETY PRODUCTS," 2,250.00 "
Lancs Fire & Rescue Service,E6123,Fire,106408980,28-Apr-20,Consumable Materials,ARCO LTD,CLOTHING PROTECTIVE," 4,236.73 "
Lancs Fire & Rescue Service,E6123,Fire,106408982,28-Apr-20,Professional Services,AVC WISE LTD,CONSULTANCY FINANCIAL, 564.67 
Lancs Fire & Rescue Service,E6123,Fire,106408993,28-Apr-20,Professional Services,MERSEYSIDE FIRE & RESCUE AUTHORITY,LOCAL GOVERNMENT," 1,667.33 "
Lancs Fire & Rescue Service,E6123,Fire,106409099,28-Apr-20,Fire Prosecution Costs,FUTURE TECHNOLOGY SERVICES LTD,BUILDING MATS&SVCS ELEC, 816.00 
Lancs Fire & Rescue Service,E6123,Fire,106409101,28-Apr-20,Laundry,BERENDSEN UK LTD,CLEANING&JAN LAUNDRYMAINT," 7,251.05 "
Lancs Fire & Rescue Service,E6123,Fire,106409113,28-Apr-20,Course Providers,PRINCE'S TRUST TRADING LTD,HR TRAINING&CONFERENCES," 1,000.00 "
Lancs Fire & Rescue Service,E6123,Fire,106409115,28-Apr-20,Clothing & Uniform,OC INNOVATIONS,MEDICAL CONSUMABLES," 29,245.00 "
Lancs Fire & Rescue Service,E6123,Fire,106409123,28-Apr-20,Computer Software,SOFTCAT LTD,ICT CALL SYSTEMS," 6,865.21 "
Lancs Fire & Rescue Service,E6123,Fire,106409671,28-Apr-20,Vehicle & Plant R&M (External),JAMES HART (CHORLEY) LTD,TRANSPORT MAINTENANCE," 1,013.48 "
Lancs Fire & Rescue Service,E6123,Fire,106420788,29-Apr-20,Protective Clothing,ELITE PLASTICS LTD,BUILDING MATS&SVCS GEN, 576.00 
Lancs Fire & Rescue Service,E6123,Fire,106291793,01-May-20,Works Fees (External),TWC CONSULTING (PROPERTY SERVICES) LIMITED,CONSULTANCY CONSTRUCTION," 2,750.00 "
Lancs Fire & Rescue Service,E6123,Fire,106331551,01-May-20,Professional Services,CIPFA BUSINESS LTD (FORMERLY INSTITUTE OF PUBLIC FINANCE LTD),FINANCIAL ACCOUNTANCY," 6,200.97 "
Lancs Fire & Rescue Service,E6123,Fire,106331551,01-May-20,Professional Services,CIPFA BUSINESS LTD (FORMERLY INSTITUTE OF PUBLIC FINANCE LTD),FINANCIAL ACCOUNTANCY," 6,200.97 "
Lancs Fire & Rescue Service,E6123,Fire,106331551,01-May-20,Professional Services,CIPFA BUSINESS LTD (FORMERLY INSTITUTE OF PUBLIC FINANCE LTD),FINANCIAL ACCOUNTANCY,"(6,200.97)"
Lancs Fire & Rescue Service,E6123,Fire,106373895,01-May-20,Rents - Premises,SOUTH RIBBLE BOROUGH COUNCIL,LOCAL GOVERNMENT," 10,094.52 "
Lancs Fire & Rescue Service,E6123,Fire,106381582,01-May-20,Service Contracts,CITRON HYGIENE,ENVIRON WASTE MGMT," 2,307.00 "
Lancs Fire & Rescue Service,E6123,Fire,106383830,01-May-20,Computer Hardware,CDW LTD,ICT MAINTENANCE," 4,770.18 "
Lancs Fire & Rescue Service,E6123,Fire,106383836,01-May-20,Computer Hardware,CDW LTD,ICT MAINTENANCE," 18,465.60 "
Lancs Fire & Rescue Service,E6123,Fire,106383840,01-May-20,Computer Hardware,INSIGHT DIRECT (UK) LTD,ICT SOFTWARE," 1,139.85 "
Lancs Fire & Rescue Service,E6123,Fire,106383842,01-May-20,Computer Hardware,INSIGHT DIRECT (UK) LTD,ICT SOFTWARE, 969.90 
Lancs Fire & Rescue Service,E6123,Fire,106391929,01-May-20,Protective Clothing,BALLYCLARE LHD LTD,CLOTHING PERSONAL, 271.44 
Lancs Fire & Rescue Service,E6123,Fire,106391929,01-May-20,Protective Clothing,BALLYCLARE LHD LTD,CLOTHING PERSONAL," 7,600.32 "
Lancs Fire & Rescue Service,E6123,Fire,106391929,01-May-20,Protective Clothing,BALLYCLARE LHD LTD,CLOTHING PERSONAL," 1,085.76 "
Lancs Fire & Rescue Service,E6123,Fire,106391931,01-May-20,Protective Clothing,BALLYCLARE LHD LTD,CLOTHING PERSONAL," 18,879.48 "
Lancs Fire & Rescue Service,E6123,Fire,106391931,01-May-20,Protective Clothing,BALLYCLARE LHD LTD,CLOTHING PERSONAL," 9,090.12 "
Lancs Fire & Rescue Service,E6123,Fire,106391935,01-May-20,Protective Clothing,BALLYCLARE LHD LTD,CLOTHING PERSONAL," 1,628.64 "
Lancs Fire & Rescue Service,E6123,Fire,106391935,01-May-20,Protective Clothing,BALLYCLARE LHD LTD,CLOTHING PERSONAL, 271.44 
Lancs Fire & Rescue Service,E6123,Fire,106391935,01-May-20,Protective Clothing,BALLYCLARE LHD LTD,CLOTHING PERSONAL," 1,085.76 "
Lancs Fire & Rescue Service,E6123,Fire,106391935,01-May-20,Protective Clothing,BALLYCLARE LHD LTD,CLOTHING PERSONAL," 12,757.68 "
Lancs Fire & Rescue Service,E6123,Fire,106391935,01-May-20,Protective Clothing,BALLYCLARE LHD LTD,CLOTHING PERSONAL," 1,357.20 "
Lancs Fire & Rescue Service,E6123,Fire,106391935,01-May-20,Protective Clothing,BALLYCLARE LHD LTD,CLOTHING PERSONAL," 2,714.40 "
Lancs Fire & Rescue Service,E6123,Fire,106397267,01-May-20,Protective Clothing,BALLYCLARE LHD LTD,CLOTHING PERSONAL," 1,165.40 "
Lancs Fire & Rescue Service,E6123,Fire,106397267,01-May-20,Protective Clothing,BALLYCLARE LHD LTD,CLOTHING PERSONAL," 5,127.76 "
Lancs Fire & Rescue Service,E6123,Fire,106397267,01-May-20,Protective Clothing,BALLYCLARE LHD LTD,CLOTHING PERSONAL,"(1,165.40)"
Lancs Fire & Rescue Service,E6123,Fire,106397267,01-May-20,Protective Clothing,BALLYCLARE LHD LTD,CLOTHING PERSONAL," 1,165.40 "
Lancs Fire & Rescue Service,E6123,Fire,106397267,01-May-20,Protective Clothing,BALLYCLARE LHD LTD,CLOTHING PERSONAL,"(6,293.16)"
Lancs Fire & Rescue Service,E6123,Fire,106397267,01-May-20,Protective Clothing,BALLYCLARE LHD LTD,CLOTHING PERSONAL, 466.16 
Lancs Fire & Rescue Service,E6123,Fire,106397267,01-May-20,Protective Clothing,BALLYCLARE LHD LTD,CLOTHING PERSONAL," 6,293.16 "
Lancs Fire & Rescue Service,E6123,Fire,106397267,01-May-20,Protective Clothing,BALLYCLARE LHD LTD,CLOTHING PERSONAL," 4,195.44 "
Lancs Fire & Rescue Service,E6123,Fire,106397267,01-May-20,Protective Clothing,BALLYCLARE LHD LTD,CLOTHING PERSONAL," 22,142.60 "
Lancs Fire & Rescue Service,E6123,Fire,106397271,01-May-20,Protective Clothing,BALLYCLARE LHD LTD,CLOTHING PERSONAL," 4,071.60 "
Lancs Fire & Rescue Service,E6123,Fire,106408978,01-May-20,Course Providers,SKILLS FOR JUSTICE ENTERPRISES LTD (PART OF WORKFORCE DEVELOPMENT TRUST LTD),EDUCATION SERVICES, 120.00 
Lancs Fire & Rescue Service,E6123,Fire,106408978,01-May-20,Course Providers,SKILLS FOR JUSTICE ENTERPRISES LTD (PART OF WORKFORCE DEVELOPMENT TRUST LTD),EDUCATION SERVICES, 150.00 
Lancs Fire & Rescue Service,E6123,Fire,106408978,01-May-20,Course Providers,SKILLS FOR JUSTICE ENTERPRISES LTD (PART OF WORKFORCE DEVELOPMENT TRUST LTD),EDUCATION SERVICES, 30.00 
Lancs Fire & Rescue Service,E6123,Fire,106408978,01-May-20,Course Providers,SKILLS FOR JUSTICE ENTERPRISES LTD (PART OF WORKFORCE DEVELOPMENT TRUST LTD),EDUCATION SERVICES,(150.00)
Lancs Fire & Rescue Service,E6123,Fire,106408978,01-May-20,Course Providers,SKILLS FOR JUSTICE ENTERPRISES LTD (PART OF WORKFORCE DEVELOPMENT TRUST LTD),EDUCATION SERVICES,(30.00)
Lancs Fire & Rescue Service,E6123,Fire,106408978,01-May-20,Course Providers,SKILLS FOR JUSTICE ENTERPRISES LTD (PART OF WORKFORCE DEVELOPMENT TRUST LTD),EDUCATION SERVICES, 480.00 
Lancs Fire & Rescue Service,E6123,Fire,106408978,01-May-20,Course Providers,SKILLS FOR JUSTICE ENTERPRISES LTD (PART OF WORKFORCE DEVELOPMENT TRUST LTD),EDUCATION SERVICES,(480.00)
Lancs Fire & Rescue Service,E6123,Fire,106408978,01-May-20,Course Providers,SKILLS FOR JUSTICE ENTERPRISES LTD (PART OF WORKFORCE DEVELOPMENT TRUST LTD),EDUCATION SERVICES, 30.00 
Lancs Fire & Rescue Service,E6123,Fire,106408978,01-May-20,Course Providers,SKILLS FOR JUSTICE ENTERPRISES LTD (PART OF WORKFORCE DEVELOPMENT TRUST LTD),EDUCATION SERVICES, 210.00 
Lancs Fire & Rescue Service,E6123,Fire,106408978,01-May-20,Course Providers,SKILLS FOR JUSTICE ENTERPRISES LTD (PART OF WORKFORCE DEVELOPMENT TRUST LTD),EDUCATION SERVICES, 150.00 
Lancs Fire & Rescue Service,E6123,Fire,106408979,01-May-20,Protective Clothing,SAFEQUIP LTD,HEALTH&SAFETY PRODUCTS, 31.20 
Lancs Fire & Rescue Service,E6123,Fire,106408979,01-May-20,Protective Clothing,SAFEQUIP LTD,HEALTH&SAFETY PRODUCTS, 31.20 
Lancs Fire & Rescue Service,E6123,Fire,106408979,01-May-20,Protective Clothing,SAFEQUIP LTD,HEALTH&SAFETY PRODUCTS, 110.10 
Lancs Fire & Rescue Service,E6123,Fire,106408979,01-May-20,Protective Clothing,SAFEQUIP LTD,HEALTH&SAFETY PRODUCTS, 73.40 
Lancs Fire & Rescue Service,E6123,Fire,106408979,01-May-20,Protective Clothing,SAFEQUIP LTD,HEALTH&SAFETY PRODUCTS, 282.80 
Lancs Fire & Rescue Service,E6123,Fire,106408979,01-May-20,Protective Clothing,SAFEQUIP LTD,HEALTH&SAFETY PRODUCTS, 74.00 
Lancs Fire & Rescue Service,E6123,Fire,106408979,01-May-20,Protective Clothing,SAFEQUIP LTD,HEALTH&SAFETY PRODUCTS, 74.00 
Lancs Fire & Rescue Service,E6123,Fire,106408979,01-May-20,Protective Clothing,SAFEQUIP LTD,HEALTH&SAFETY PRODUCTS, 148.00 
Lancs Fire & Rescue Service,E6123,Fire,106408979,01-May-20,Protective Clothing,SAFEQUIP LTD,HEALTH&SAFETY PRODUCTS, 10.00 
Lancs Fire & Rescue Service,E6123,Fire,106409100,01-May-20,Consumable Materials,J & J INTERNATIONAL ENTERPRISES LTD,MEDICAL EQUIPMENT, 624.00 
Lancs Fire & Rescue Service,E6123,Fire,106409102,01-May-20,Laundry,BERENDSEN UK LTD,CLEANING&JAN LAUNDRYMAINT," 7,250.31 "
Lancs Fire & Rescue Service,E6123,Fire,106409105,01-May-20,Other Local Authorities,MERSEYSIDE FIRE & RESCUE AUTHORITY,LOCAL GOVERNMENT," 7,884.00 "
Lancs Fire & Rescue Service,E6123,Fire,106409118,01-May-20,Service Contracts,CENTRAL POWER SERVICES LTD,VEHICLES HEAVY CONST," 3,146.36 "
Lancs Fire & Rescue Service,E6123,Fire,106409120,01-May-20,Service Contracts,CENTRAL POWER SERVICES LTD,VEHICLES HEAVY CONST," 4,745.04 "
Lancs Fire & Rescue Service,E6123,Fire,106409747,01-May-20,Rents - Premises,SOUTH RIBBLE BOROUGH COUNCIL,LOCAL GOVERNMENT,"(2,480.68)"
Lancs Fire & Rescue Service,E6123,Fire,106409747,01-May-20,Rents - Premises,SOUTH RIBBLE BOROUGH COUNCIL,LOCAL GOVERNMENT, 842.76 
Lancs Fire & Rescue Service,E6123,Fire,106409747,01-May-20,Rents - Premises,SOUTH RIBBLE BOROUGH COUNCIL,LOCAL GOVERNMENT,(842.76)
Lancs Fire & Rescue Service,E6123,Fire,106409748,01-May-20,Rents - Premises,SOUTH RIBBLE BOROUGH COUNCIL,LOCAL GOVERNMENT,(842.76)
Lancs Fire & Rescue Service,E6123,Fire,106410238,01-May-20,Fire Mobs Paging Equipment,PAGEONE COMMUNICATIONS LTD,ICT CALL SYSTEMS," 1,823.12 "
Lancs Fire & Rescue Service,E6123,Fire,106410247,01-May-20,Computer Hardware,MAGELLAN WORLD LTD,ICT REPROGRAPHICS EQT," 1,020.00 "
Lancs Fire & Rescue Service,E6123,Fire,106410251,01-May-20,Computer Hardware,TENSOR TIME SYSTEMS LLP,ICT HARDWARE," 4,754.76 "
Lancs Fire & Rescue Service,E6123,Fire,106410251,01-May-20,Computer Software,TENSOR TIME SYSTEMS LLP,ICT HARDWARE," 2,583.12 "
Lancs Fire & Rescue Service,E6123,Fire,106411023,01-May-20,Computer Expenditure General,CIVICA UK LTD,ICT SOFTWARE," 8,995.00 "
Lancs Fire & Rescue Service,E6123,Fire,106411033,01-May-20,Repairs & Maintenance General,BID GROUP LTD,BUILDING MATS&SVCS GEN, 582.00 
Lancs Fire & Rescue Service,E6123,Fire,106411036,01-May-20,Repairs & Maintenance General,HARDACRES PLUMBERS (NW) LTD,WORKS BUILDINGS, 800.62 
Lancs Fire & Rescue Service,E6123,Fire,106411039,01-May-20,Consumable Materials,NEILLS MATERIALS LTD,CLEANING&JANITORIAL MATS, 100.00 
Lancs Fire & Rescue Service,E6123,Fire,106411039,01-May-20,Consumable Materials,NEILLS MATERIALS LTD,CLEANING&JANITORIAL MATS, 270.00 
Lancs Fire & Rescue Service,E6123,Fire,106411039,01-May-20,Consumable Materials,NEILLS MATERIALS LTD,CLEANING&JANITORIAL MATS," 2,600.00 "
Lancs Fire & Rescue Service,E6123,Fire,106411040,01-May-20,Cleaning Materials,WRAY BROS LIMITED,CLEANING&JANITORIAL SVCS, 565.39 
Lancs Fire & Rescue Service,E6123,Fire,106411044,01-May-20,Consumable Materials,WELDBANK PLASTIC CO LTD,BUILDING MATS&SVCS GEN, 820.68 
Lancs Fire & Rescue Service,E6123,Fire,106411045,01-May-20,Consumable Materials,WELDBANK PLASTIC CO LTD,BUILDING MATS&SVCS GEN," 2,800.00 "
Lancs Fire & Rescue Service,E6123,Fire,106411046,01-May-20,Consumable Materials,WELDBANK PLASTIC CO LTD,BUILDING MATS&SVCS GEN," 2,310.00 "
Lancs Fire & Rescue Service,E6123,Fire,106411047,01-May-20,Consumable Materials,WELDBANK PLASTIC CO LTD,BUILDING MATS&SVCS GEN," 3,050.00 "
Lancs Fire & Rescue Service,E6123,Fire,106411048,01-May-20,Consumable Materials,SLATER SAFETY SUPPLIES,HEALTH&SAFETY PRODUCTS," 6,678.00 "
Lancs Fire & Rescue Service,E6123,Fire,106411050,01-May-20,Pensions Services SLA,LANCASHIRE COUNTY COUNCIL,LOCAL GOVERNMENT," 21,802.00 "
Lancs Fire & Rescue Service,E6123,Fire,106411156,01-May-20,Stocks And Stores - General,COMPASS FUEL OILS LTD,VEHICLES MAINTENANCE, 450.00 
Lancs Fire & Rescue Service,E6123,Fire,106411158,01-May-20,Stocks And Stores - General,SAANRO INTERNATIONAL LTD,CLEANING&JANITORIAL MATS, 421.94 
Lancs Fire & Rescue Service,E6123,Fire,106411171,01-May-20,Stocks And Stores - General,GOLIATH FOOTWEAR LTD,CLOTHING SAFETYFOOTWARE, 583.62 
Lancs Fire & Rescue Service,E6123,Fire,106411174,01-May-20,Stocks And Stores - General,CARDIAC SCIENCE HOLDINGS (UK) LTD,MEDICAL SERVICES, 460.00 
Lancs Fire & Rescue Service,E6123,Fire,106411175,01-May-20,Postage & Carriage,RELIANCE MEDICAL LTD,MEDICAL CONSUMABLES, 0.10 
Lancs Fire & Rescue Service,E6123,Fire,106411175,01-May-20,Stocks And Stores - General,RELIANCE MEDICAL LTD,MEDICAL CONSUMABLES, 682.81 
Lancs Fire & Rescue Service,E6123,Fire,106411180,01-May-20,Stocks And Stores - General,AUTOMOTIVE TOOLS & SUPPLIES LTD,BUILDING MATS&SVCS GEN, 493.30 
Lancs Fire & Rescue Service,E6123,Fire,106411550,01-May-20,Consumable Materials,ARCO LTD,CLOTHING PROTECTIVE, 579.97 
Lancs Fire & Rescue Service,E6123,Fire,106411553,01-May-20,Fire - Operational Equipment,NIGHTSEARCHER LTD,UNCLASSIFIED NON-TRADE," 8,091.00 "
Lancs Fire & Rescue Service,E6123,Fire,106412718,01-May-20,Computer Equipment (Hardware),SPECIALIST COMPUTER CENTRE,ICT SOFTWARE," 7,500.00 "
Lancs Fire & Rescue Service,E6123,Fire,106412721,01-May-20,Programmed Work,DLP SERVICES NORTHERN LTD,BUILDING MATS&SVCS GEN, 985.75 
Lancs Fire & Rescue Service,E6123,Fire,106412723,01-May-20,Programmed Work,HARDACRES PLUMBERS (NW) LTD,WORKS BUILDINGS," 1,679.00 "
Lancs Fire & Rescue Service,E6123,Fire,106412724,01-May-20,Fire - Op Equip Repairs,BRADY CORPORATION LTD T/A SETON,BUILDING MATS&SVCS SIGN," 1,040.00 "
Lancs Fire & Rescue Service,E6123,Fire,106413716,01-May-20,Computer Software,RSCC LTD,ICT MAINTENANCE," 3,400.00 "
Lancs Fire & Rescue Service,E6123,Fire,106413718,01-May-20,Exchange Phones,BRITISH TELECOMMUNICATIONS PLC,ICT TELECOMMS MOBILE," 9,656.40 "
Lancs Fire & Rescue Service,E6123,Fire,106413719,01-May-20,Computer Equipment (Hardware),SPECIALIST COMPUTER CENTRE,ICT SOFTWARE,"(8,250.00)"
Lancs Fire & Rescue Service,E6123,Fire,106413719,01-May-20,Computer Equipment (Hardware),SPECIALIST COMPUTER CENTRE,ICT SOFTWARE," 8,250.00 "
Lancs Fire & Rescue Service,E6123,Fire,106413719,01-May-20,Computer Equipment (Hardware),SPECIALIST COMPUTER CENTRE,ICT SOFTWARE," 8,250.00 "
Lancs Fire & Rescue Service,E6123,Fire,106413724,01-May-20,Computer Equipment (Hardware),SPECIALIST COMPUTER CENTRE,ICT SOFTWARE," 4,020.00 "
Lancs Fire & Rescue Service,E6123,Fire,106419816,01-May-20,PFI - Capital Charge,PFF LANCASHIRE LTD,FACIL&MGMT RETAIL," 59,482.57 "
Lancs Fire & Rescue Service,E6123,Fire,106420753,01-May-20,Subscriptions,CFOA SERVICES LTD,GOVERNMENT," 60,000.00 "
Lancs Fire & Rescue Service,E6123,Fire,106420758,01-May-20,Cleaning Materials,SLATER SAFETY SUPPLIES,HEALTH&SAFETY PRODUCTS," 1,520.00 "
Lancs Fire & Rescue Service,E6123,Fire,106420762,01-May-20,Consumable Materials,WRAY BROS LIMITED,CLEANING&JANITORIAL SVCS, 118.20 
Lancs Fire & Rescue Service,E6123,Fire,106420762,01-May-20,Consumable Materials,WRAY BROS LIMITED,CLEANING&JANITORIAL SVCS, 375.60 
Lancs Fire & Rescue Service,E6123,Fire,106420764,01-May-20,Fire - Operational Equipment,SOUND INDUCTION SYSTEMS LTD,BUILDING MATS&SVCS GEN, 675.00 
Lancs Fire & Rescue Service,E6123,Fire,106420764,01-May-20,Fire - Operational Equipment,SOUND INDUCTION SYSTEMS LTD,BUILDING MATS&SVCS GEN, 390.00 
Lancs Fire & Rescue Service,E6123,Fire,106423204,01-May-20,Protective Clothing,HUNTER APPAREL SOLUTIONS LTD,CLOTHING PERSONAL," 11,280.00 "
Lancs Fire & Rescue Service,E6123,Fire,106387745,05-May-20,Computer Hardware,INSIGHT DIRECT (UK) LTD,ICT SOFTWARE," 3,899.80 "
Lancs Fire & Rescue Service,E6123,Fire,106405389,05-May-20,Fire Mobs Network Maint,TELENT TECHNOLOGY SERVICES LTD,TRAFFIC MGMT TRAFFICCTRL," 2,349.00 "
Lancs Fire & Rescue Service,E6123,Fire,106405389,05-May-20,Fire Mobs Network Maint,TELENT TECHNOLOGY SERVICES LTD,TRAFFIC MGMT TRAFFICCTRL," 7,149.75 "
Lancs Fire & Rescue Service,E6123,Fire,106421391,05-May-20,Electricity,NPOWER,UTILITIES ELECTRICITY, 719.90 
Lancs Fire & Rescue Service,E6123,Fire,106421393,05-May-20,Electricity,NPOWER,UTILITIES ELECTRICITY, 809.75 
Lancs Fire & Rescue Service,E6123,Fire,104644963,07-May-20,Clothing & Uniform,BALLYCLARE LHD LTD,CLOTHING PERSONAL,(221.00)
Lancs Fire & Rescue Service,E6123,Fire,104644963,07-May-20,Clothing & Uniform,BALLYCLARE LHD LTD,CLOTHING PERSONAL,(221.00)
Lancs Fire & Rescue Service,E6123,Fire,104644963,07-May-20,Clothing & Uniform,BALLYCLARE LHD LTD,CLOTHING PERSONAL,(221.00)
Lancs Fire & Rescue Service,E6123,Fire,104644963,07-May-20,Clothing & Uniform,BALLYCLARE LHD LTD,CLOTHING PERSONAL, 221.00 
Lancs Fire & Rescue Service,E6123,Fire,104644963,07-May-20,Clothing & Uniform,BALLYCLARE LHD LTD,CLOTHING PERSONAL, 221.00 
Lancs Fire & Rescue Service,E6123,Fire,104644963,07-May-20,Clothing & Uniform,BALLYCLARE LHD LTD,CLOTHING PERSONAL, 221.00 
Lancs Fire & Rescue Service,E6123,Fire,104644963,07-May-20,Clothing & Uniform,BALLYCLARE LHD LTD,CLOTHING PERSONAL,(221.00)
Lancs Fire & Rescue Service,E6123,Fire,104644963,07-May-20,Clothing & Uniform,BALLYCLARE LHD LTD,CLOTHING PERSONAL,(221.00)
Lancs Fire & Rescue Service,E6123,Fire,104644963,07-May-20,Clothing & Uniform,BALLYCLARE LHD LTD,CLOTHING PERSONAL,(221.00)
Lancs Fire & Rescue Service,E6123,Fire,104699189,07-May-20,Clothing & Uniform,BALLYCLARE LHD LTD,CLOTHING PERSONAL, 221.00 
Lancs Fire & Rescue Service,E6123,Fire,104699189,07-May-20,Clothing & Uniform,BALLYCLARE LHD LTD,CLOTHING PERSONAL, 221.00 
Lancs Fire & Rescue Service,E6123,Fire,104699189,07-May-20,Clothing & Uniform,BALLYCLARE LHD LTD,CLOTHING PERSONAL, 221.00 
Lancs Fire & Rescue Service,E6123,Fire,106370545,07-May-20,Exchange Phones,MAINTEL EUROPE LTD,ICT TELECOMMS FIXED, 40.79 
Lancs Fire & Rescue Service,E6123,Fire,106370545,07-May-20,Exchange Phones,MAINTEL EUROPE LTD,ICT TELECOMMS FIXED,(88.56)
Lancs Fire & Rescue Service,E6123,Fire,106370545,07-May-20,Exchange Phones,MAINTEL EUROPE LTD,ICT TELECOMMS FIXED,"(1,619.27)"
Lancs Fire & Rescue Service,E6123,Fire,106370545,07-May-20,Exchange Phones,MAINTEL EUROPE LTD,ICT TELECOMMS FIXED,(133.57)
Lancs Fire & Rescue Service,E6123,Fire,106370545,07-May-20,Exchange Phones,MAINTEL EUROPE LTD,ICT TELECOMMS FIXED,(86.20)
Lancs Fire & Rescue Service,E6123,Fire,106370545,07-May-20,Exchange Phones,MAINTEL EUROPE LTD,ICT TELECOMMS FIXED, 133.57 
Lancs Fire & Rescue Service,E6123,Fire,106370545,07-May-20,Exchange Phones,MAINTEL EUROPE LTD,ICT TELECOMMS FIXED, 86.20 
Lancs Fire & Rescue Service,E6123,Fire,106370545,07-May-20,Exchange Phones,MAINTEL EUROPE LTD,ICT TELECOMMS FIXED,(40.79)
Lancs Fire & Rescue Service,E6123,Fire,106370545,07-May-20,Exchange Phones,MAINTEL EUROPE LTD,ICT TELECOMMS FIXED," 2,239.59 "
Lancs Fire & Rescue Service,E6123,Fire,106370545,07-May-20,Exchange Phones,MAINTEL EUROPE LTD,ICT TELECOMMS FIXED, 352.78 
Lancs Fire & Rescue Service,E6123,Fire,106370545,07-May-20,Exchange Phones,MAINTEL EUROPE LTD,ICT TELECOMMS FIXED," 1,619.27 "
Lancs Fire & Rescue Service,E6123,Fire,106370545,07-May-20,Exchange Phones,MAINTEL EUROPE LTD,ICT TELECOMMS FIXED, 88.56 
Lancs Fire & Rescue Service,E6123,Fire,106370545,07-May-20,Exchange Phones,MAINTEL EUROPE LTD,ICT TELECOMMS FIXED,(352.78)
Lancs Fire & Rescue Service,E6123,Fire,106387597,07-May-20,Other Expenses,BURNLEY BOROUGH COUNCIL,LOCAL GOVERNMENT, 851.21 
Lancs Fire & Rescue Service,E6123,Fire,106395271,07-May-20,Professional Services,MERSEYSIDE FIRE & RESCUE AUTHORITY,LOCAL GOVERNMENT, 842.85 
Lancs Fire & Rescue Service,E6123,Fire,106410239,07-May-20,Computer Hardware,MIDLAND COMPUTER SERVICES LTD,ICT MAINTENANCE, 625.00 
Lancs Fire & Rescue Service,E6123,Fire,106424240,07-May-20,Repairs & Maintenance General,BILL MORRIS GROUNDS & GARDEN MACHINARY,BUILDING MATS&SVCS TOOL1, 547.55 
Lancs Fire & Rescue Service,E6123,Fire,106424626,07-May-20,Protective Clothing,BALLYCLARE LHD LTD,CLOTHING PERSONAL," 5,827.00 "
Lancs Fire & Rescue Service,E6123,Fire,106424626,07-May-20,Protective Clothing,BALLYCLARE LHD LTD,CLOTHING PERSONAL, 932.32 
Lancs Fire & Rescue Service,E6123,Fire,106424626,07-May-20,Protective Clothing,BALLYCLARE LHD LTD,CLOTHING PERSONAL," 3,263.12 "
Lancs Fire & Rescue Service,E6123,Fire,106424626,07-May-20,Protective Clothing,BALLYCLARE LHD LTD,CLOTHING PERSONAL," 3,346.20 "
Lancs Fire & Rescue Service,E6123,Fire,106424973,07-May-20,Fire - Op equip R&D,WILLIAM MOORE & SON LTD,FRS SPECIALIST EQUIPMENT," 2,520.00 "
Lancs Fire & Rescue Service,E6123,Fire,106424974,07-May-20,Car Allowances,LEX AUTOLEASE LTD,TRANSPORT FLEET MGMT, 462.23 
Lancs Fire & Rescue Service,E6123,Fire,106424982,07-May-20,Conference Expenses,STENNIK ADVERTISING LTD,FACIL&MGMT ADVERTISING, 355.00 
Lancs Fire & Rescue Service,E6123,Fire,106424982,07-May-20,Conference Expenses,STENNIK ADVERTISING LTD,FACIL&MGMT ADVERTISING, 355.00 
Lancs Fire & Rescue Service,E6123,Fire,106425018,07-May-20,Protective Clothing,BALLYCLARE LHD LTD,CLOTHING PERSONAL," 1,085.76 "
Lancs Fire & Rescue Service,E6123,Fire,106425019,07-May-20,Protective Clothing,SLATER SAFETY SUPPLIES,HEALTH&SAFETY PRODUCTS, 892.50 
Lancs Fire & Rescue Service,E6123,Fire,106425022,07-May-20,Consumable Materials,SAANRO INTERNATIONAL LTD,CLEANING&JANITORIAL MATS, 686.00 
Lancs Fire & Rescue Service,E6123,Fire,106425025,07-May-20,Consumable Materials,SLATER SAFETY SUPPLIES,HEALTH&SAFETY PRODUCTS," 1,307.20 "
Lancs Fire & Rescue Service,E6123,Fire,106425028,07-May-20,Mobile Phone Costs,O2 (UK) LTD,ICT TELECOMMS MOBILE," 3,209.17 "
Lancs Fire & Rescue Service,E6123,Fire,106425032,07-May-20,Fire - Op Equip Repairs,MSA BRITAIN LIMITED,HEALTH&SAFETY PRODUCTS, 1.68 
Lancs Fire & Rescue Service,E6123,Fire,106425032,07-May-20,Fire - Op Equip Repairs,MSA BRITAIN LIMITED,HEALTH&SAFETY PRODUCTS, 712.80 
Lancs Fire & Rescue Service,E6123,Fire,106425065,07-May-20,Consumable Materials,ARCO LTD,CLOTHING PROTECTIVE," 4,246.56 "
Lancs Fire & Rescue Service,E6123,Fire,106425068,07-May-20,Cleaning Materials,WRAY BROS LIMITED,CLEANING&JANITORIAL SVCS," 1,200.00 "
Lancs Fire & Rescue Service,E6123,Fire,106425168,07-May-20,Publications for Office Use,PENINSULA BUSINESS SERVICES GROUP LTD,HEALTH&SAFETY SERVICES," 1,680.00 "
Lancs Fire & Rescue Service,E6123,Fire,106425170,07-May-20,Repairs & Maintenance General,BID GROUP LTD,BUILDING MATS&SVCS GEN, 530.00 
Lancs Fire & Rescue Service,E6123,Fire,106425175,07-May-20,Repairs & Maintenance General,CENTRAL POWER SERVICES LTD,VEHICLES HEAVY CONST, 600.00 
Lancs Fire & Rescue Service,E6123,Fire,106425177,07-May-20,Professional Services,AMCAT (UK) LTD,HR PROFESSIONAL&ADVISORY, 6.00 
Lancs Fire & Rescue Service,E6123,Fire,106425177,07-May-20,Professional Services,AMCAT (UK) LTD,HR PROFESSIONAL&ADVISORY," 2,957.75 "
Lancs Fire & Rescue Service,E6123,Fire,106431249,07-May-20,Protective Clothing,OC INNOVATIONS,MEDICAL CONSUMABLES," 18,400.00 "
Lancs Fire & Rescue Service,E6123,Fire,106424230,12-May-20,Equipment General,SALISBURYS LTD,FRS SPECIALIST SERVICES, 625.00 
Lancs Fire & Rescue Service,E6123,Fire,106424230,12-May-20,Equipment General,SALISBURYS LTD,FRS SPECIALIST SERVICES, 150.00 
Lancs Fire & Rescue Service,E6123,Fire,106424627,12-May-20,Vehicle & Plant R&M (External),ANGLOCO LIMITED,VEHICLES INDUSTRIAL," 2,522.40 "
Lancs Fire & Rescue Service,E6123,Fire,106424628,12-May-20,Vehicle & Plant R&M (External),JAMES HART (CHORLEY) LTD,TRANSPORT MAINTENANCE, 870.50 
Lancs Fire & Rescue Service,E6123,Fire,106424630,12-May-20,Vehicle & Plant R&M (External),JAMES HART (CHORLEY) LTD,TRANSPORT MAINTENANCE, 502.63 
Lancs Fire & Rescue Service,E6123,Fire,106425024,12-May-20,Cleaning Materials,SLATER SAFETY SUPPLIES,HEALTH&SAFETY PRODUCTS," 1,710.00 "
Lancs Fire & Rescue Service,E6123,Fire,106425412,12-May-20,Medical Fees,DRS.DIRECT,MEDICAL SERVICES, 900.00 
Lancs Fire & Rescue Service,E6123,Fire,106425416,12-May-20,Fire - ill health appeals,HEALTHWORK,MEDICAL SERVICES, 960.00 
Lancs Fire & Rescue Service,E6123,Fire,106430147,12-May-20,Stocks And Stores - General,WM SUGDEN & SONS LTD,CLOTHING PERSONAL, 439.30 
Lancs Fire & Rescue Service,E6123,Fire,106430148,12-May-20,Stocks And Stores - General,WM SUGDEN & SONS LTD,CLOTHING PERSONAL, 439.58 
Lancs Fire & Rescue Service,E6123,Fire,106430149,12-May-20,Stocks And Stores - General,WM SUGDEN & SONS LTD,CLOTHING PERSONAL," 2,884.72 "
Lancs Fire & Rescue Service,E6123,Fire,106430150,12-May-20,Stocks And Stores - General,WM SUGDEN & SONS LTD,CLOTHING PERSONAL," 1,081.50 "
Lancs Fire & Rescue Service,E6123,Fire,106430151,12-May-20,Stocks And Stores - General,WM SUGDEN & SONS LTD,CLOTHING PERSONAL," 3,115.84 "
Lancs Fire & Rescue Service,E6123,Fire,106430152,12-May-20,Stocks And Stores - General,WM SUGDEN & SONS LTD,CLOTHING PERSONAL," 1,518.22 "
Lancs Fire & Rescue Service,E6123,Fire,106430155,12-May-20,Stocks And Stores - General,KEELA INTERNATIONAL LTD,CLOTHING PERSONAL, 637.23 
Lancs Fire & Rescue Service,E6123,Fire,106430157,12-May-20,Stocks And Stores - General,AUTOMOTIVE TOOLS & SUPPLIES LTD,BUILDING MATS&SVCS GEN, 505.09 
Lancs Fire & Rescue Service,E6123,Fire,106430162,12-May-20,Stocks And Stores - General,AQUACHECK ENGINEERING LTD,BUILDING MATS&SVCS GEN," 1,818.00 "
Lancs Fire & Rescue Service,E6123,Fire,106430164,12-May-20,Stocks And Stores - General,ALSICO LAUCUBA LTD,CLOTHING PERSONAL, 479.76 
Lancs Fire & Rescue Service,E6123,Fire,106430166,12-May-20,Stocks And Stores - General,RELIANCE MEDICAL LTD,MEDICAL CONSUMABLES, 610.00 
Lancs Fire & Rescue Service,E6123,Fire,106430169,12-May-20,Stocks And Stores - General,MSA BRITAIN LIMITED,HEALTH&SAFETY PRODUCTS," 1,770.72 "
Lancs Fire & Rescue Service,E6123,Fire,106439162,12-May-20,Protective Clothing,BUNZL GREENHAM LTD,CLOTHING PROTECTIVE," 1,587.00 "
Lancs Fire & Rescue Service,E6123,Fire,106439464,14-May-20,PFI - Capital Charge,MERSEYSIDE FIRE & RESCUE AUTHORITY,LOCAL GOVERNMENT," 154,259.79 "
Lancs Fire & Rescue Service,E6123,Fire,106405393,15-May-20,Computer Software,SOFTCAT LTD,ICT CALL SYSTEMS," 1,196.50 "
Lancs Fire & Rescue Service,E6123,Fire,106410140,15-May-20,Exchange Phones,MAINTEL EUROPE LTD,ICT TELECOMMS FIXED," 2,444.54 "
Lancs Fire & Rescue Service,E6123,Fire,106410245,15-May-20,Computer Hardware,INSIGHT DIRECT (UK) LTD,ICT SOFTWARE," 1,089.98 "
Lancs Fire & Rescue Service,E6123,Fire,106421388,15-May-20,Electricity,NPOWER,UTILITIES ELECTRICITY, 630.31 
Lancs Fire & Rescue Service,E6123,Fire,106421394,15-May-20,Electricity,NPOWER,UTILITIES ELECTRICITY, 905.70 
Lancs Fire & Rescue Service,E6123,Fire,106422151,15-May-20,Electricity,NPOWER,UTILITIES ELECTRICITY, 665.67 
Lancs Fire & Rescue Service,E6123,Fire,106422157,15-May-20,Electricity,NPOWER,UTILITIES ELECTRICITY, 496.50 
Lancs Fire & Rescue Service,E6123,Fire,106422158,15-May-20,Electricity,NPOWER,UTILITIES ELECTRICITY, 423.08 
Lancs Fire & Rescue Service,E6123,Fire,106422882,15-May-20,Electricity,NPOWER,UTILITIES ELECTRICITY," 4,059.12 "
Lancs Fire & Rescue Service,E6123,Fire,106422883,15-May-20,Electricity,NPOWER,UTILITIES ELECTRICITY," 4,730.90 "
Lancs Fire & Rescue Service,E6123,Fire,106422884,15-May-20,Electricity,NPOWER,UTILITIES ELECTRICITY," 1,747.40 "
Lancs Fire & Rescue Service,E6123,Fire,106422887,15-May-20,Electricity,NPOWER,UTILITIES ELECTRICITY, 608.73 
Lancs Fire & Rescue Service,E6123,Fire,106422889,15-May-20,Electricity,NPOWER,UTILITIES ELECTRICITY," 1,223.19 "
Lancs Fire & Rescue Service,E6123,Fire,106422891,15-May-20,Electricity,NPOWER,UTILITIES ELECTRICITY, 456.90 
Lancs Fire & Rescue Service,E6123,Fire,106422918,15-May-20,Electricity,NPOWER,UTILITIES ELECTRICITY, 627.01 
Lancs Fire & Rescue Service,E6123,Fire,106422923,15-May-20,Electricity,NPOWER,UTILITIES ELECTRICITY, 573.39 
Lancs Fire & Rescue Service,E6123,Fire,106422924,15-May-20,Electricity,NPOWER,UTILITIES ELECTRICITY, 577.02 
Lancs Fire & Rescue Service,E6123,Fire,106422926,15-May-20,Electricity,NPOWER,UTILITIES ELECTRICITY, 495.91 
Lancs Fire & Rescue Service,E6123,Fire,106425027,15-May-20,Computer Hardware,CDW LTD,ICT MAINTENANCE, 625.52 
Lancs Fire & Rescue Service,E6123,Fire,106436379,15-May-20,Fire - ill health appeals,HEALTHWORK,MEDICAL SERVICES," 1,440.00 "
Lancs Fire & Rescue Service,E6123,Fire,106436380,15-May-20,Consumable Materials,WRAY BROS LIMITED,CLEANING&JANITORIAL SVCS," 3,821.80 "
Lancs Fire & Rescue Service,E6123,Fire,106436383,15-May-20,Fire - Op equip R&D,WILLIAM MOORE & SON LTD,FRS SPECIALIST EQUIPMENT," 1,969.00 "
Lancs Fire & Rescue Service,E6123,Fire,106436388,15-May-20,Audit Fees (External),GRANT THORNTON UK LLP,FINANCIAL ACCOUNTANCY," 4,500.00 "
Lancs Fire & Rescue Service,E6123,Fire,106436389,15-May-20,Delegated Grounds Maintenance,LANCASHIRE COUNTY COUNCIL,LOCAL GOVERNMENT," 1,639.00 "
Lancs Fire & Rescue Service,E6123,Fire,106436390,15-May-20,Water,WATER PLUS LTD,UTILITIES WATER, 27.68 
Lancs Fire & Rescue Service,E6123,Fire,106436390,15-May-20,Water,WATER PLUS LTD,UTILITIES WATER," 13,017.36 "
Lancs Fire & Rescue Service,E6123,Fire,106436396,15-May-20,Repairs & Maintenance General,HARDACRES PLUMBERS (NW) LTD,WORKS BUILDINGS," 1,344.90 "
Lancs Fire & Rescue Service,E6123,Fire,106436404,15-May-20,Protective Clothing,SLATER SAFETY SUPPLIES,HEALTH&SAFETY PRODUCTS, 595.00 
Lancs Fire & Rescue Service,E6123,Fire,106436405,15-May-20,Protective Clothing,SLATER SAFETY SUPPLIES,HEALTH&SAFETY PRODUCTS," 6,696.00 "
Lancs Fire & Rescue Service,E6123,Fire,106436407,15-May-20,Catering Service (External),BRAKE BROS LTD,CATERING FOOD&BEVERAGE, 565.07 
Lancs Fire & Rescue Service,E6123,Fire,106438086,15-May-20,Gas,CORONA ENERGY,UTILITIES GAS," 1,545.58 "
Lancs Fire & Rescue Service,E6123,Fire,106438087,15-May-20,Gas,CORONA ENERGY,UTILITIES GAS," 3,446.15 "
Lancs Fire & Rescue Service,E6123,Fire,106438089,15-May-20,Gas,CORONA ENERGY,UTILITIES GAS," 2,314.66 "
Lancs Fire & Rescue Service,E6123,Fire,106438098,15-May-20,Gas,CORONA ENERGY,UTILITIES GAS, 597.85 
Lancs Fire & Rescue Service,E6123,Fire,106439793,15-May-20,Fire Mobs Paging Equipment,PAGEONE COMMUNICATIONS LTD,ICT CALL SYSTEMS, 720.45 
Lancs Fire & Rescue Service,E6123,Fire,106440153,15-May-20,Protective Clothing,OC INNOVATIONS,MEDICAL CONSUMABLES," 42,000.00 "
Lancs Fire & Rescue Service,E6123,Fire,106420771,19-May-20,Works Fees (External),SINGLETON CLAMP LTD,CONSULTANCY BUSINESS," 2,700.00 "
Lancs Fire & Rescue Service,E6123,Fire,106439790,19-May-20,Computer Software,SSL247 LTD,ICT SOFTWARE, 809.00 
Lancs Fire & Rescue Service,E6123,Fire,106440183,19-May-20,Professional Services,RICHARD L THOMAS ASSOCIATES LTD,CONSULTANCY BUSINESS," 1,722.00 "
Lancs Fire & Rescue Service,E6123,Fire,106440185,19-May-20,Professional Services,RICHARD L THOMAS ASSOCIATES LTD,CONSULTANCY BUSINESS, 893.00 
Lancs Fire & Rescue Service,E6123,Fire,106440186,19-May-20,Professional Services,RICHARD L THOMAS ASSOCIATES LTD,CONSULTANCY BUSINESS," 1,053.00 "
Lancs Fire & Rescue Service,E6123,Fire,106440188,19-May-20,Professional Services,RICHARD L THOMAS ASSOCIATES LTD,CONSULTANCY BUSINESS, 965.00 
Lancs Fire & Rescue Service,E6123,Fire,106440190,19-May-20,Professional Services,RICHARD L THOMAS ASSOCIATES LTD,CONSULTANCY BUSINESS," 1,030.00 "
Lancs Fire & Rescue Service,E6123,Fire,106440193,19-May-20,Repairs & Maintenance General,FUTURE TECHNOLOGY SERVICES LTD,BUILDING MATS&SVCS ELEC, 584.30 
Lancs Fire & Rescue Service,E6123,Fire,106440214,19-May-20,Protective Clothing,SLATER SAFETY SUPPLIES,HEALTH&SAFETY PRODUCTS, 595.00 
Lancs Fire & Rescue Service,E6123,Fire,106440215,19-May-20,Protective Clothing,SLATER SAFETY SUPPLIES,HEALTH&SAFETY PRODUCTS, 595.00 
Lancs Fire & Rescue Service,E6123,Fire,106440240,19-May-20,Works Fees (External),EQUILIBRIUM ARCHITECTS LTD,CONSULTANCY CONSTRUCTION, 480.00 
Lancs Fire & Rescue Service,E6123,Fire,106442932,19-May-20,Professional Services,MERSEYSIDE FIRE & RESCUE AUTHORITY,LOCAL GOVERNMENT," 1,700.68 "
Lancs Fire & Rescue Service,E6123,Fire,106442954,19-May-20,Protective Clothing,SAFEQUIP LTD,HEALTH&SAFETY PRODUCTS, 424.20 
Lancs Fire & Rescue Service,E6123,Fire,106442981,19-May-20,Gas,CORONA ENERGY,UTILITIES GAS, 835.43 
Lancs Fire & Rescue Service,E6123,Fire,106442985,19-May-20,Gas,CORONA ENERGY,UTILITIES GAS, 686.37 
Lancs Fire & Rescue Service,E6123,Fire,106442986,19-May-20,Gas,CORONA ENERGY,UTILITIES GAS, 657.63 
Lancs Fire & Rescue Service,E6123,Fire,106443002,19-May-20,Gas,CORONA ENERGY,UTILITIES GAS, 510.32 
Lancs Fire & Rescue Service,E6123,Fire,106443005,19-May-20,Gas,CORONA ENERGY,UTILITIES GAS, 764.29 
Lancs Fire & Rescue Service,E6123,Fire,106443007,19-May-20,Gas,CORONA ENERGY,UTILITIES GAS," 1,306.65 "
Lancs Fire & Rescue Service,E6123,Fire,106443009,19-May-20,Gas,CORONA ENERGY,UTILITIES GAS, 448.66 
Lancs Fire & Rescue Service,E6123,Fire,106443014,19-May-20,Gas,CORONA ENERGY,UTILITIES GAS, 550.34 
Lancs Fire & Rescue Service,E6123,Fire,106443016,19-May-20,Gas,CORONA ENERGY,UTILITIES GAS, 562.58 
Lancs Fire & Rescue Service,E6123,Fire,106443357,19-May-20,Insurances General,ZURICH INSURANCE PLC,FINANCIAL� INSURANCE," 127,634.77 "
Lancs Fire & Rescue Service,E6123,Fire,106443360,19-May-20,Insurances General,ZURICH INSURANCE PLC,FINANCIAL� INSURANCE," 4,462.55 "
Lancs Fire & Rescue Service,E6123,Fire,106407184,22-May-20,ICT Support Services (External),PERSPICUITY LTD,CONSULTANCY IT," 5,400.00 "
Lancs Fire & Rescue Service,E6123,Fire,106410253,22-May-20,Computer Hardware,INSIGHT DIRECT (UK) LTD,ICT SOFTWARE, 545.94 
Lancs Fire & Rescue Service,E6123,Fire,106412725,22-May-20,Fire - Operational Equipment,HERO DISTRIBUTION UK,HEALTH&SAFETY PRODUCTS, 96.00 
Lancs Fire & Rescue Service,E6123,Fire,106412725,22-May-20,Fire - Operational Equipment,HERO DISTRIBUTION UK,HEALTH&SAFETY PRODUCTS, 560.00 
Lancs Fire & Rescue Service,E6123,Fire,106412725,22-May-20,Fire - Operational Equipment,HERO DISTRIBUTION UK,HEALTH&SAFETY PRODUCTS, 60.00 
Lancs Fire & Rescue Service,E6123,Fire,106442947,22-May-20,Fire - Op Equip Repairs,ASPLI SAFETY LTD,HEALTH&SAFETY PRODUCTS, 580.89 
Lancs Fire & Rescue Service,E6123,Fire,106445054,22-May-20,Mobile Phone Costs,HTK LTD,ICT SOFTWARE, 495.25 
Lancs Fire & Rescue Service,E6123,Fire,106445056,22-May-20,Computer Software,3TC SOFTWARE LIMITED,ICT SOFTWARE," 1,190.71 "
Lancs Fire & Rescue Service,E6123,Fire,106445056,22-May-20,Computer Software,3TC SOFTWARE LIMITED,ICT SOFTWARE," 6,650.59 "
Lancs Fire & Rescue Service,E6123,Fire,106445056,22-May-20,Computer Software,3TC SOFTWARE LIMITED,ICT SOFTWARE," 11,688.00 "
Lancs Fire & Rescue Service,E6123,Fire,106445058,22-May-20,Photocopying,XEROX (UK) LTD,FACIL&MGMT PRINTING," 3,438.14 "
Lancs Fire & Rescue Service,E6123,Fire,106445058,22-May-20,Photocopying,XEROX (UK) LTD,FACIL&MGMT PRINTING," 14,188.47 "
Lancs Fire & Rescue Service,E6123,Fire,106445427,22-May-20,Professional Services,IKG CONSULTING LIMITED,CONSULTANCY BUSINESS," 1,440.00 "
Lancs Fire & Rescue Service,E6123,Fire,106445429,22-May-20,Professional Services,FORBES SOLICITORS,LEGAL SVCS GENERAL, 550.00 
Lancs Fire & Rescue Service,E6123,Fire,106445474,22-May-20,Vehicle & Plant R&M (External),ROSENBAUER UK LTD,FRS SPECIALIST VEHICLES," 2,388.30 "
Lancs Fire & Rescue Service,E6123,Fire,106445475,22-May-20,Vehicle & Plant R&M (External),ROSENBAUER UK LTD,FRS SPECIALIST VEHICLES," 1,875.89 "
Lancs Fire & Rescue Service,E6123,Fire,106445571,22-May-20,Vehicle & Plant R&M (External),STEADPLAN LTD,VEHICLES MAINTENANCE, 680.59 
Lancs Fire & Rescue Service,E6123,Fire,106445674,22-May-20,Stocks And Stores - General,FIREANGEL SAFETY TECHNOLOGY LTD,HEALTH&SAFETY PRODUCTS," 6,050.00 "
Lancs Fire & Rescue Service,E6123,Fire,106445679,22-May-20,Postage & Carriage,WRAY BROS LIMITED,CLEANING&JANITORIAL SVCS, 0.98 
Lancs Fire & Rescue Service,E6123,Fire,106445679,22-May-20,Stocks And Stores - General,WRAY BROS LIMITED,CLEANING&JANITORIAL SVCS, 530.72 
Lancs Fire & Rescue Service,E6123,Fire,106445681,22-May-20,Stocks And Stores - General,WRAY BROS LIMITED,CLEANING&JANITORIAL SVCS, 597.20 
Lancs Fire & Rescue Service,E6123,Fire,106445683,22-May-20,Stocks And Stores - General,SELLES MEDICAL LIMITED,MEDICAL SERVICES, 428.00 
Lancs Fire & Rescue Service,E6123,Fire,106445684,22-May-20,Stocks And Stores - General,GOLIATH FOOTWEAR LTD,CLOTHING SAFETYFOOTWARE, 486.35 
Lancs Fire & Rescue Service,E6123,Fire,106445685,22-May-20,Stocks And Stores - General,GOLIATH FOOTWEAR LTD,CLOTHING SAFETYFOOTWARE," 1,556.32 "
Lancs Fire & Rescue Service,E6123,Fire,106445686,22-May-20,Postage & Carriage,THE SAFETY LETTER BOX COMPANY LTD,STATIONERY SUNDRIES, 36.00 
Lancs Fire & Rescue Service,E6123,Fire,106445686,22-May-20,Stocks And Stores - General,THE SAFETY LETTER BOX COMPANY LTD,STATIONERY SUNDRIES," 1,800.00 "
Lancs Fire & Rescue Service,E6123,Fire,106445688,22-May-20,Postage & Carriage,SAFEQUIP LTD,HEALTH&SAFETY PRODUCTS, 10.00 
Lancs Fire & Rescue Service,E6123,Fire,106445688,22-May-20,Stocks And Stores - General,SAFEQUIP LTD,HEALTH&SAFETY PRODUCTS, 599.64 
Lancs Fire & Rescue Service,E6123,Fire,106445692,22-May-20,Postage & Carriage,BHW PRINT GROUP LTD T/A HASLAM PRINTERS,MEDIA AND MARKETING, 0.10 
Lancs Fire & Rescue Service,E6123,Fire,106445692,22-May-20,Stocks And Stores - General,BHW PRINT GROUP LTD T/A HASLAM PRINTERS,MEDIA AND MARKETING," 1,242.90 "
Lancs Fire & Rescue Service,E6123,Fire,106445696,22-May-20,Stocks And Stores - General,GOLIATH FOOTWEAR LTD,CLOTHING SAFETYFOOTWARE," 4,085.34 "
Lancs Fire & Rescue Service,E6123,Fire,106445697,22-May-20,Stocks And Stores - General,FELL AND MOUNTAIN OUTDOORS LTD,CLOTHING PERSONAL," 1,035.00 "
Lancs Fire & Rescue Service,E6123,Fire,106446129,22-May-20,Rates,WYRE BOROUGH COUNCIL,LOCAL GOVERNMENT," 12,849.25 "
Lancs Fire & Rescue Service,E6123,Fire,106446131,22-May-20,Rates,WYRE BOROUGH COUNCIL,LOCAL GOVERNMENT," 62,464.00 "
Lancs Fire & Rescue Service,E6123,Fire,106447690,22-May-20,Consumable Materials,HEALTHMED SUPPLIES,MEDICAL SERVICES, 623.52 
Lancs Fire & Rescue Service,E6123,Fire,106447703,22-May-20,Fire - Operational Equipment,LANCASHIRE DAF,VEHICLES HEAVY CONST," 4,210.70 "
Lancs Fire & Rescue Service,E6123,Fire,106424966,27-May-20,Protective Clothing,BRISTOL UNIFORMS LTD,CLOTHING PERSONAL, 273.33 
Lancs Fire & Rescue Service,E6123,Fire,106424966,27-May-20,Protective Clothing,BRISTOL UNIFORMS LTD,CLOTHING PERSONAL," 1,093.32 "
Lancs Fire & Rescue Service,E6123,Fire,106424966,27-May-20,Protective Clothing,BRISTOL UNIFORMS LTD,CLOTHING PERSONAL, 273.33 
Lancs Fire & Rescue Service,E6123,Fire,106424969,27-May-20,Protective Clothing,BRISTOL UNIFORMS LTD,CLOTHING PERSONAL, 914.97 
Lancs Fire & Rescue Service,E6123,Fire,106424969,27-May-20,Protective Clothing,BRISTOL UNIFORMS LTD,CLOTHING PERSONAL, 609.98 
Lancs Fire & Rescue Service,E6123,Fire,106424969,27-May-20,Protective Clothing,BRISTOL UNIFORMS LTD,CLOTHING PERSONAL, 304.99 
Lancs Fire & Rescue Service,E6123,Fire,106424998,27-May-20,Protective Clothing,BALLYCLARE LHD LTD,CLOTHING PERSONAL," 1,115.40 "
Lancs Fire & Rescue Service,E6123,Fire,106425001,27-May-20,Protective Clothing,BALLYCLARE LHD LTD,CLOTHING PERSONAL, 233.08 
Lancs Fire & Rescue Service,E6123,Fire,106425001,27-May-20,Protective Clothing,BALLYCLARE LHD LTD,CLOTHING PERSONAL, 699.24 
Lancs Fire & Rescue Service,E6123,Fire,106425012,27-May-20,Protective Clothing,BALLYCLARE LHD LTD,CLOTHING PERSONAL, 542.88 
Lancs Fire & Rescue Service,E6123,Fire,106425015,27-May-20,Protective Clothing,BALLYCLARE LHD LTD,CLOTHING PERSONAL, 557.70 
Lancs Fire & Rescue Service,E6123,Fire,106425029,27-May-20,Computer Hardware,CDW LTD,ICT MAINTENANCE," 9,576.60 "
Lancs Fire & Rescue Service,E6123,Fire,106425030,27-May-20,Computer Hardware,INSIGHT DIRECT (UK) LTD,ICT SOFTWARE," 2,165.94 "
Lancs Fire & Rescue Service,E6123,Fire,106425031,27-May-20,Computer Hardware,CDW LTD,ICT MAINTENANCE," 11,099.70 "
Lancs Fire & Rescue Service,E6123,Fire,106431243,27-May-20,Protective Clothing,BALLYCLARE LHD LTD,CLOTHING PERSONAL," 2,714.40 "
Lancs Fire & Rescue Service,E6123,Fire,106431243,27-May-20,Protective Clothing,BALLYCLARE LHD LTD,CLOTHING PERSONAL," 3,263.12 "
Lancs Fire & Rescue Service,E6123,Fire,106431243,27-May-20,Protective Clothing,BALLYCLARE LHD LTD,CLOTHING PERSONAL, 699.24 
Lancs Fire & Rescue Service,E6123,Fire,106431243,27-May-20,Protective Clothing,BALLYCLARE LHD LTD,CLOTHING PERSONAL," 3,030.04 "
Lancs Fire & Rescue Service,E6123,Fire,106436394,27-May-20,Equipment General,NORTH WEST CATERING ENGINEERS,CATERING SERVICES, 619.06 
Lancs Fire & Rescue Service,E6123,Fire,106445063,27-May-20,Other Expenses,NORTH WEST FIRE CONTROL LIMITED,PUBLIC SECTOR," 303,467.00 "
Lancs Fire & Rescue Service,E6123,Fire,106445574,27-May-20,Vehicle & Plant Insurance Below Excess,JAMES ALPE LTD,VEHICLES PARTS," 1,042.37 "
Lancs Fire & Rescue Service,E6123,Fire,106448408,27-May-20,Fire - Operational Equipment,FIRE HOSETECH LTD,HEALTH&SAFETY PRODUCTS, 15.00 
Lancs Fire & Rescue Service,E6123,Fire,106448408,27-May-20,Fire - Operational Equipment,FIRE HOSETECH LTD,HEALTH&SAFETY PRODUCTS, 585.12 
Lancs Fire & Rescue Service,E6123,Fire,106449339,27-May-20,Gas,CORONA ENERGY,UTILITIES GAS, 480.97 
Lancs Fire & Rescue Service,E6123,Fire,106449340,27-May-20,Gas,CORONA ENERGY,UTILITIES GAS, 612.33 
Lancs Fire & Rescue Service,E6123,Fire,106449341,27-May-20,Gas,CORONA ENERGY,UTILITIES GAS, 703.76 
Lancs Fire & Rescue Service,E6123,Fire,106449342,27-May-20,Gas,CORONA ENERGY,UTILITIES GAS, 756.48 
Lancs Fire & Rescue Service,E6123,Fire,106449343,27-May-20,Gas,CORONA ENERGY,UTILITIES GAS, 690.60 
Lancs Fire & Rescue Service,E6123,Fire,106449345,27-May-20,Gas,CORONA ENERGY,UTILITIES GAS," 2,751.00 "
Lancs Fire & Rescue Service,E6123,Fire,106451214,27-May-20,Protective Clothing,BALLYCLARE LHD LTD,CLOTHING PERSONAL," 3,257.28 "
Lancs Fire & Rescue Service,E6123,Fire,106451214,27-May-20,Protective Clothing,BALLYCLARE LHD LTD,CLOTHING PERSONAL," 3,257.28 "
Lancs Fire & Rescue Service,E6123,Fire,106451214,27-May-20,Protective Clothing,BALLYCLARE LHD LTD,CLOTHING PERSONAL, 557.70 
Lancs Fire & Rescue Service,E6123,Fire,106451214,27-May-20,Protective Clothing,BALLYCLARE LHD LTD,CLOTHING PERSONAL," 1,784.64 "
Lancs Fire & Rescue Service,E6123,Fire,106451214,27-May-20,Protective Clothing,BALLYCLARE LHD LTD,CLOTHING PERSONAL," 2,676.96 "
Lancs Fire & Rescue Service,E6123,Fire,106451217,27-May-20,Protective Clothing,BALLYCLARE LHD LTD,CLOTHING PERSONAL," 6,514.56 "
Lancs Fire & Rescue Service,E6123,Fire,106451218,27-May-20,Protective Clothing,BALLYCLARE LHD LTD,CLOTHING PERSONAL, 466.16 
Lancs Fire & Rescue Service,E6123,Fire,106451218,27-May-20,Protective Clothing,BALLYCLARE LHD LTD,CLOTHING PERSONAL, 466.16 
Lancs Fire & Rescue Service,E6123,Fire,106451218,27-May-20,Protective Clothing,BALLYCLARE LHD LTD,CLOTHING PERSONAL," 1,165.40 "
Lancs Fire & Rescue Service,E6123,Fire,106451220,27-May-20,Protective Clothing,BALLYCLARE LHD LTD,CLOTHING PERSONAL," 1,085.76 "
Lancs Fire & Rescue Service,E6123,Fire,106451220,27-May-20,Protective Clothing,BALLYCLARE LHD LTD,CLOTHING PERSONAL," 11,400.48 "
Lancs Fire & Rescue Service,E6123,Fire,106451220,27-May-20,Protective Clothing,BALLYCLARE LHD LTD,CLOTHING PERSONAL," 2,985.84 "
Lancs Fire & Rescue Service,E6123,Fire,106451220,27-May-20,Protective Clothing,BALLYCLARE LHD LTD,CLOTHING PERSONAL," 2,714.40 "
Lancs Fire & Rescue Service,E6123,Fire,106451222,27-May-20,Protective Clothing,BALLYCLARE LHD LTD,CLOTHING PERSONAL," 1,115.40 "
Lancs Fire & Rescue Service,E6123,Fire,106451227,27-May-20,Professional Services,REDACTED,CONSULTANCY MANAGEMENT," 1,262.50 "
Lancs Fire & Rescue Service,E6123,Fire,106451228,27-May-20,PFI - Capital Charge,PFF LANCASHIRE LTD,FACIL&MGMT RETAIL," 60,408.94 "
Lancs Fire & Rescue Service,E6123,Fire,106451230,27-May-20,Professional Services,HUMAN SPIRIT LTD,TRAINING, 250.00 
Lancs Fire & Rescue Service,E6123,Fire,106451230,27-May-20,Professional Services,HUMAN SPIRIT LTD,TRAINING, 250.00 
Lancs Fire & Rescue Service,E6123,Fire,106451230,27-May-20,Professional Services,HUMAN SPIRIT LTD,TRAINING, 250.00 
Lancs Fire & Rescue Service,E6123,Fire,106451242,27-May-20,Professional Services,ACTUALISE COACHING AND TRAINING LTD,CONSULTANCY MANAGEMENT, 250.00 
Lancs Fire & Rescue Service,E6123,Fire,106451242,27-May-20,Professional Services,ACTUALISE COACHING AND TRAINING LTD,CONSULTANCY MANAGEMENT, 250.00 
Lancs Fire & Rescue Service,E6123,Fire,106264133,29-May-20,Fire - Op Equip Repairs,HOLMATRO UK LTD,VEHICLES PARTS, 31.80 
Lancs Fire & Rescue Service,E6123,Fire,106264133,29-May-20,Fire - Op Equip Repairs,HOLMATRO UK LTD,VEHICLES PARTS, 32.60 
Lancs Fire & Rescue Service,E6123,Fire,106264133,29-May-20,Fire - Op Equip Repairs,HOLMATRO UK LTD,VEHICLES PARTS, 5.00 
Lancs Fire & Rescue Service,E6123,Fire,106264133,29-May-20,Fire - Op Equip Repairs,HOLMATRO UK LTD,VEHICLES PARTS, 0.60 
Lancs Fire & Rescue Service,E6123,Fire,106264133,29-May-20,Fire - Op Equip Repairs,HOLMATRO UK LTD,VEHICLES PARTS, 9.60 
Lancs Fire & Rescue Service,E6123,Fire,106264133,29-May-20,Fire - Op Equip Repairs,HOLMATRO UK LTD,VEHICLES PARTS, 181.60 
Lancs Fire & Rescue Service,E6123,Fire,106264133,29-May-20,Fire - Op Equip Repairs,HOLMATRO UK LTD,VEHICLES PARTS, 17.50 
Lancs Fire & Rescue Service,E6123,Fire,106264133,29-May-20,Fire - Op Equip Repairs,HOLMATRO UK LTD,VEHICLES PARTS, 351.00 
Lancs Fire & Rescue Service,E6123,Fire,106264133,29-May-20,Fire - Op Equip Repairs,HOLMATRO UK LTD,VEHICLES PARTS, 27.30 
Lancs Fire & Rescue Service,E6123,Fire,106264133,29-May-20,Fire - Op Equip Repairs,HOLMATRO UK LTD,VEHICLES PARTS, 75.60 
Lancs Fire & Rescue Service,E6123,Fire,106264133,29-May-20,Fire - Op Equip Repairs,HOLMATRO UK LTD,VEHICLES PARTS, 48.10 
Lancs Fire & Rescue Service,E6123,Fire,106264133,29-May-20,Fire - Op Equip Repairs,HOLMATRO UK LTD,VEHICLES PARTS, 53.10 
Lancs Fire & Rescue Service,E6123,Fire,106264133,29-May-20,Fire - Op Equip Repairs,HOLMATRO UK LTD,VEHICLES PARTS," 1,041.00 "
Lancs Fire & Rescue Service,E6123,Fire,106264133,29-May-20,Fire - Op Equip Repairs,HOLMATRO UK LTD,VEHICLES PARTS," 1,037.00 "
Lancs Fire & Rescue Service,E6123,Fire,106264133,29-May-20,Fire - Op Equip Repairs,HOLMATRO UK LTD,VEHICLES PARTS, 117.60 
Lancs Fire & Rescue Service,E6123,Fire,106264133,29-May-20,Fire - Op Equip Repairs,HOLMATRO UK LTD,VEHICLES PARTS, 58.60 
Lancs Fire & Rescue Service,E6123,Fire,106264133,29-May-20,Fire - Op Equip Repairs,HOLMATRO UK LTD,VEHICLES PARTS, 117.00 
Lancs Fire & Rescue Service,E6123,Fire,106425414,29-May-20,Medical Fees,ORGANISATIONAL HEALTHCARE LTD,HEALTH&SAFETY SERVICES," 2,625.00 "
Lancs Fire & Rescue Service,E6123,Fire,106425418,29-May-20,Diesel,ALLSTAR BUSINESS SOLUTIONS LTD,VEHICLES FUEL," 20,606.94 "
Lancs Fire & Rescue Service,E6123,Fire,106425418,29-May-20,Petrol,ALLSTAR BUSINESS SOLUTIONS LTD,VEHICLES FUEL, 584.38 
Lancs Fire & Rescue Service,E6123,Fire,106428681,29-May-20,Professional Services,AVC WISE LTD,CONSULTANCY FINANCIAL, 582.29 
Lancs Fire & Rescue Service,E6123,Fire,106439791,29-May-20,ICT Support Services (External),PARASOL LTD,FINANCIAL ACCOUNTANCY," 3,477.00 "
Lancs Fire & Rescue Service,E6123,Fire,106439792,29-May-20,ICT Support Services (External),PARASOL LTD,FINANCIAL ACCOUNTANCY," 2,175.00 "
Lancs Fire & Rescue Service,E6123,Fire,106439797,29-May-20,Laundry,BERENDSEN UK LTD,CLEANING&JAN LAUNDRYMAINT," 7,251.05 "
Lancs Fire & Rescue Service,E6123,Fire,106440218,29-May-20,Professional Services,LAVAT CONSULTING LTD. T/A PSTAX,CONSULTANCY FINANCIAL," 1,440.00 "
Lancs Fire & Rescue Service,E6123,Fire,106445057,29-May-20,Computer Data Network,LANCASHIRE & SOUTH CUMBRIA NHS FOUNDATION TRUST,SOCIAL COMM CARE ADULTS, 1.75 
Lancs Fire & Rescue Service,E6123,Fire,106445057,29-May-20,Computer Data Network,LANCASHIRE & SOUTH CUMBRIA NHS FOUNDATION TRUST,SOCIAL COMM CARE ADULTS," 1,148.78 "
Lancs Fire & Rescue Service,E6123,Fire,106445057,29-May-20,Computer Data Network,LANCASHIRE & SOUTH CUMBRIA NHS FOUNDATION TRUST,SOCIAL COMM CARE ADULTS," 104,982.84 "
Lancs Fire & Rescue Service,E6123,Fire,106445057,29-May-20,Computer Data Network,LANCASHIRE & SOUTH CUMBRIA NHS FOUNDATION TRUST,SOCIAL COMM CARE ADULTS," 9,893.71 "
Lancs Fire & Rescue Service,E6123,Fire,106449374,29-May-20,Surveys & Consultation,OPINION RESEARCH SERVICES,FACIL&MGMT MKTRESEARCH, 800.00 
Lancs Fire & Rescue Service,E6123,Fire,106449374,29-May-20,Surveys & Consultation,OPINION RESEARCH SERVICES,FACIL&MGMT MKTRESEARCH," 1,245.00 "
Lancs Fire & Rescue Service,E6123,Fire,106449374,29-May-20,Surveys & Consultation,OPINION RESEARCH SERVICES,FACIL&MGMT MKTRESEARCH," 2,575.00 "
Lancs Fire & Rescue Service,E6123,Fire,106451190,29-May-20,Protective Clothing,BALLYCLARE LHD LTD,CLOTHING PERSONAL," 6,992.40 "
Lancs Fire & Rescue Service,E6123,Fire,106451190,29-May-20,Protective Clothing,BALLYCLARE LHD LTD,CLOTHING PERSONAL," 4,661.60 "
Lancs Fire & Rescue Service,E6123,Fire,106451190,29-May-20,Protective Clothing,BALLYCLARE LHD LTD,CLOTHING PERSONAL," 1,165.40 "
Lancs Fire & Rescue Service,E6123,Fire,106451190,29-May-20,Protective Clothing,BALLYCLARE LHD LTD,CLOTHING PERSONAL," 4,428.52 "
Lancs Fire & Rescue Service,E6123,Fire,106451190,29-May-20,Protective Clothing,BALLYCLARE LHD LTD,CLOTHING PERSONAL," 24,939.56 "
Lancs Fire & Rescue Service,E6123,Fire,106451190,29-May-20,Protective Clothing,BALLYCLARE LHD LTD,CLOTHING PERSONAL," 10,954.76 "
Lancs Fire & Rescue Service,E6123,Fire,106451190,29-May-20,Protective Clothing,BALLYCLARE LHD LTD,CLOTHING PERSONAL, 699.24 
Lancs Fire & Rescue Service,E6123,Fire,106451190,29-May-20,Protective Clothing,BALLYCLARE LHD LTD,CLOTHING PERSONAL,"(10,954.76)"
Lancs Fire & Rescue Service,E6123,Fire,106451190,29-May-20,Protective Clothing,BALLYCLARE LHD LTD,CLOTHING PERSONAL,(699.24)
Lancs Fire & Rescue Service,E6123,Fire,106451190,29-May-20,Protective Clothing,BALLYCLARE LHD LTD,CLOTHING PERSONAL,(557.70)
Lancs Fire & Rescue Service,E6123,Fire,106451190,29-May-20,Protective Clothing,BALLYCLARE LHD LTD,CLOTHING PERSONAL,"(9,789.36)"
Lancs Fire & Rescue Service,E6123,Fire,106451190,29-May-20,Protective Clothing,BALLYCLARE LHD LTD,CLOTHING PERSONAL,(699.24)
Lancs Fire & Rescue Service,E6123,Fire,106451190,29-May-20,Protective Clothing,BALLYCLARE LHD LTD,CLOTHING PERSONAL,"(6,992.40)"
Lancs Fire & Rescue Service,E6123,Fire,106451190,29-May-20,Protective Clothing,BALLYCLARE LHD LTD,CLOTHING PERSONAL,"(4,661.60)"
Lancs Fire & Rescue Service,E6123,Fire,106451190,29-May-20,Protective Clothing,BALLYCLARE LHD LTD,CLOTHING PERSONAL,"(1,165.40)"
Lancs Fire & Rescue Service,E6123,Fire,106451190,29-May-20,Protective Clothing,BALLYCLARE LHD LTD,CLOTHING PERSONAL,"(4,428.52)"
Lancs Fire & Rescue Service,E6123,Fire,106451190,29-May-20,Protective Clothing,BALLYCLARE LHD LTD,CLOTHING PERSONAL,"(24,939.56)"
Lancs Fire & Rescue Service,E6123,Fire,106451190,29-May-20,Protective Clothing,BALLYCLARE LHD LTD,CLOTHING PERSONAL," 64,887.78 "
Lancs Fire & Rescue Service,E6123,Fire,106451190,29-May-20,Protective Clothing,BALLYCLARE LHD LTD,CLOTHING PERSONAL, 557.70 
Lancs Fire & Rescue Service,E6123,Fire,106451190,29-May-20,Protective Clothing,BALLYCLARE LHD LTD,CLOTHING PERSONAL," 9,789.36 "
Lancs Fire & Rescue Service,E6123,Fire,106451190,29-May-20,Protective Clothing,BALLYCLARE LHD LTD,CLOTHING PERSONAL, 699.24 
Lancs Fire & Rescue Service,E6123,Fire,106451215,29-May-20,Protective Clothing,BALLYCLARE LHD LTD,CLOTHING PERSONAL,"(2,171.52)"
Lancs Fire & Rescue Service,E6123,Fire,106451215,29-May-20,Protective Clothing,BALLYCLARE LHD LTD,CLOTHING PERSONAL,"(1,357.20)"
Lancs Fire & Rescue Service,E6123,Fire,106451215,29-May-20,Protective Clothing,BALLYCLARE LHD LTD,CLOTHING PERSONAL,"(15,200.64)"
Lancs Fire & Rescue Service,E6123,Fire,106451215,29-May-20,Protective Clothing,BALLYCLARE LHD LTD,CLOTHING PERSONAL,"(3,528.72)"
Lancs Fire & Rescue Service,E6123,Fire,106451215,29-May-20,Protective Clothing,BALLYCLARE LHD LTD,CLOTHING PERSONAL," 23,343.84 "
Lancs Fire & Rescue Service,E6123,Fire,106451215,29-May-20,Protective Clothing,BALLYCLARE LHD LTD,CLOTHING PERSONAL," 1,085.76 "
Lancs Fire & Rescue Service,E6123,Fire,106451215,29-May-20,Protective Clothing,BALLYCLARE LHD LTD,CLOTHING PERSONAL," 2,171.52 "
Lancs Fire & Rescue Service,E6123,Fire,106451215,29-May-20,Protective Clothing,BALLYCLARE LHD LTD,CLOTHING PERSONAL," 1,357.20 "
Lancs Fire & Rescue Service,E6123,Fire,106451215,29-May-20,Protective Clothing,BALLYCLARE LHD LTD,CLOTHING PERSONAL," 15,200.64 "
Lancs Fire & Rescue Service,E6123,Fire,106451215,29-May-20,Protective Clothing,BALLYCLARE LHD LTD,CLOTHING PERSONAL," 3,528.72 "
Lancs Fire & Rescue Service,E6123,Fire,106451215,29-May-20,Protective Clothing,BALLYCLARE LHD LTD,CLOTHING PERSONAL,"(1,085.76)"
Lancs Fire & Rescue Service,E6123,Fire,106451240,29-May-20,Consumable Materials,RECYCLING LIVES LTD,ENVIRON WASTE MGMT, 480.00 
Lancs Fire & Rescue Service,E6123,Fire,106451935,29-May-20,Fire - Operational Equipment,LYON EQUIPMENT LTD,CLOTHING PROTECTIVE, 250.52 
Lancs Fire & Rescue Service,E6123,Fire,106451935,29-May-20,Fire - Operational Equipment,LYON EQUIPMENT LTD,CLOTHING PROTECTIVE, 496.26 
Lancs Fire & Rescue Service,E6123,Fire,106455760,29-May-20,Vehicle & Plant Insurance Below Excess,TRAVELERS INSURANCE COMPANY LTD,FINANCIAL� INSURANCE, 533.24 
Lancs Fire & Rescue Service,E6123,Fire,106455761,29-May-20,Protective Clothing,BALLYCLARE LHD LTD,CLOTHING PERSONAL, 814.32 
Lancs Fire & Rescue Service,E6123,Fire,106455761,29-May-20,Protective Clothing,BALLYCLARE LHD LTD,CLOTHING PERSONAL," 1,085.76 "
Lancs Fire & Rescue Service,E6123,Fire,106455765,29-May-20,Protective Clothing,BALLYCLARE LHD LTD,CLOTHING PERSONAL,"(1,085.76)"
Lancs Fire & Rescue Service,E6123,Fire,106455808,29-May-20,Programmed Work,BID GROUP LTD,BUILDING MATS&SVCS GEN," 1,225.00 "
Lancs Fire & Rescue Service,E6123,Fire,106455816,29-May-20,Programmed Work,KJB SECURITY,FACIL&MGMT SECURITY, 610.00 
Lancs Fire & Rescue Service,E6123,Fire,106455817,29-May-20,Professional Services,FORBES SOLICITORS,LEGAL SVCS GENERAL, 760.50 
Lancs Fire & Rescue Service,E6123,Fire,106436406,02-Jun-20,Catering Service (External),BRAKE BROS LTD,CATERING FOOD&BEVERAGE, 730.27 
Lancs Fire & Rescue Service,E6123,Fire,106447697,02-Jun-20,Fire - ill health appeals,HEALTHWORK,MEDICAL SERVICES, 480.00 
Lancs Fire & Rescue Service,E6123,Fire,106449375,02-Jun-20,Protective Clothing,BALLYCLARE LHD LTD,CLOTHING PERSONAL," 2,330.80 "
Lancs Fire & Rescue Service,E6123,Fire,106449375,02-Jun-20,Protective Clothing,BALLYCLARE LHD LTD,CLOTHING PERSONAL," 4,894.68 "
Lancs Fire & Rescue Service,E6123,Fire,106449375,02-Jun-20,Protective Clothing,BALLYCLARE LHD LTD,CLOTHING PERSONAL," 2,563.88 "
Lancs Fire & Rescue Service,E6123,Fire,106449375,02-Jun-20,Protective Clothing,BALLYCLARE LHD LTD,CLOTHING PERSONAL, 466.16 
Lancs Fire & Rescue Service,E6123,Fire,106449375,02-Jun-20,Protective Clothing,BALLYCLARE LHD LTD,CLOTHING PERSONAL," 5,593.92 "
Lancs Fire & Rescue Service,E6123,Fire,106449375,02-Jun-20,Protective Clothing,BALLYCLARE LHD LTD,CLOTHING PERSONAL,"(5,593.92)"
Lancs Fire & Rescue Service,E6123,Fire,106449375,02-Jun-20,Protective Clothing,BALLYCLARE LHD LTD,CLOTHING PERSONAL," 5,593.92 "
Lancs Fire & Rescue Service,E6123,Fire,106449375,02-Jun-20,Protective Clothing,BALLYCLARE LHD LTD,CLOTHING PERSONAL, 699.24 
Lancs Fire & Rescue Service,E6123,Fire,106449375,02-Jun-20,Protective Clothing,BALLYCLARE LHD LTD,CLOTHING PERSONAL," 1,864.64 "
Lancs Fire & Rescue Service,E6123,Fire,106449375,02-Jun-20,Protective Clothing,BALLYCLARE LHD LTD,CLOTHING PERSONAL," 1,398.48 "
Lancs Fire & Rescue Service,E6123,Fire,106449375,02-Jun-20,Protective Clothing,BALLYCLARE LHD LTD,CLOTHING PERSONAL," 9,789.36 "
Lancs Fire & Rescue Service,E6123,Fire,106449375,02-Jun-20,Protective Clothing,BALLYCLARE LHD LTD,CLOTHING PERSONAL," 5,360.84 "
Lancs Fire & Rescue Service,E6123,Fire,106449375,02-Jun-20,Protective Clothing,BALLYCLARE LHD LTD,CLOTHING PERSONAL," 1,631.56 "
Lancs Fire & Rescue Service,E6123,Fire,106449375,02-Jun-20,Protective Clothing,BALLYCLARE LHD LTD,CLOTHING PERSONAL," 5,593.92 "
Lancs Fire & Rescue Service,E6123,Fire,106449375,02-Jun-20,Protective Clothing,BALLYCLARE LHD LTD,CLOTHING PERSONAL,"(5,593.92)"
Lancs Fire & Rescue Service,E6123,Fire,106449375,02-Jun-20,Protective Clothing,BALLYCLARE LHD LTD,CLOTHING PERSONAL," 5,593.92 "
Lancs Fire & Rescue Service,E6123,Fire,106449731,02-Jun-20,Fire - Operational Equipment,SEDDONS (PLANT & ENGINEERS) LTD,VEHICLES FUEL," 1,916.00 "
Lancs Fire & Rescue Service,E6123,Fire,106451219,02-Jun-20,Protective Clothing,BALLYCLARE LHD LTD,CLOTHING PERSONAL," 2,097.72 "
Lancs Fire & Rescue Service,E6123,Fire,106451219,02-Jun-20,Protective Clothing,BALLYCLARE LHD LTD,CLOTHING PERSONAL,"(2,097.72)"
Lancs Fire & Rescue Service,E6123,Fire,106451219,02-Jun-20,Protective Clothing,BALLYCLARE LHD LTD,CLOTHING PERSONAL," 2,097.72 "
Lancs Fire & Rescue Service,E6123,Fire,106451219,02-Jun-20,Protective Clothing,BALLYCLARE LHD LTD,CLOTHING PERSONAL,"(2,097.72)"
Lancs Fire & Rescue Service,E6123,Fire,106451219,02-Jun-20,Protective Clothing,BALLYCLARE LHD LTD,CLOTHING PERSONAL," 2,097.72 "
Lancs Fire & Rescue Service,E6123,Fire,106453587,02-Jun-20,Protective Clothing,BALLYCLARE LHD LTD,CLOTHING PERSONAL," 30,999.64 "
Lancs Fire & Rescue Service,E6123,Fire,106463761,02-Jun-20,Protective Clothing,EAGLE TECHNICAL PRODUCTS LTD,CLOTHING PERSONAL," 2,950.00 "
Lancs Fire & Rescue Service,E6123,Fire,106465087,02-Jun-20,Computer Software,EGRESS SOFTWARE TECHNOLOGIES LIMITED,ICT SOFTWARE," 15,000.00 "
Lancs Fire & Rescue Service,E6123,Fire,106465095,02-Jun-20,Consumable Materials,ALDERMANS DRINKS LTD,HEALTH&SAFETY PRODUCTS," 18,000.00 "
Lancs Fire & Rescue Service,E6123,Fire,106465104,02-Jun-20,Consumable Materials,ARCO LTD,CLOTHING PROTECTIVE," 1,088.25 "
Lancs Fire & Rescue Service,E6123,Fire,106465108,02-Jun-20,Building Cleaning Contract (External),ANDRON FACILITIES MANAGEMENT,FACIL&MGMT SECURITY," 17,545.06 "
Lancs Fire & Rescue Service,E6123,Fire,106471470,04-Jun-20,Equipment General,CLEVELAND CONTAINERS,NOT CLASSIFIED," 10,536.00 "
Lancs Fire & Rescue Service,E6123,Fire,106472720,04-Jun-20,Protective Clothing,HUNTER APPAREL SOLUTIONS LTD,CLOTHING PERSONAL," 7,520.00 "
Lancs Fire & Rescue Service,E6123,Fire,106465088,05-Jun-20,Road Fund Licences,BRISTOL STREET MOTORS,TRANSPORT PASSENGER, 150.00 
Lancs Fire & Rescue Service,E6123,Fire,106465088,05-Jun-20,Vehicle Purchase,BRISTOL STREET MOTORS,TRANSPORT PASSENGER,"(3,170.00)"
Lancs Fire & Rescue Service,E6123,Fire,106465088,05-Jun-20,Vehicle Purchase,BRISTOL STREET MOTORS,TRANSPORT PASSENGER," 19,020.00 "
Lancs Fire & Rescue Service,E6123,Fire,106465089,05-Jun-20,Road Fund Licences,BRISTOL STREET MOTORS,TRANSPORT PASSENGER, 150.00 
Lancs Fire & Rescue Service,E6123,Fire,106465089,05-Jun-20,Vehicle Purchase,BRISTOL STREET MOTORS,TRANSPORT PASSENGER," 19,520.00 "
Lancs Fire & Rescue Service,E6123,Fire,106465089,05-Jun-20,Vehicle Purchase,BRISTOL STREET MOTORS,TRANSPORT PASSENGER,"(3,253.33)"
Lancs Fire & Rescue Service,E6123,Fire,106465440,05-Jun-20,Stocks And Stores - General,AUTOMOTIVE TOOLS & SUPPLIES LTD,BUILDING MATS&SVCS GEN, 465.92 
Lancs Fire & Rescue Service,E6123,Fire,106465445,05-Jun-20,Stocks And Stores - General,GOLIATH FOOTWEAR LTD,CLOTHING SAFETYFOOTWARE, 972.70 
Lancs Fire & Rescue Service,E6123,Fire,106465448,05-Jun-20,Stocks And Stores - General,C & W BERRY LTD,BUILDING MATS&SVCS GEN, 598.00 
Lancs Fire & Rescue Service,E6123,Fire,106466776,05-Jun-20,Consumable Materials,SLATER SAFETY SUPPLIES,HEALTH&SAFETY PRODUCTS," 1,190.00 "
Lancs Fire & Rescue Service,E6123,Fire,106466780,05-Jun-20,Mobile Phone Costs,VODAFONE (T/A CABLE & WIRELESS WORLDWIDE),TELEPHONE SERVICES," 1,665.50 "
Lancs Fire & Rescue Service,E6123,Fire,106466781,05-Jun-20,Mobile Phone Costs,O2 (UK) LTD,ICT TELECOMMS MOBILE," 3,537.63 "
Lancs Fire & Rescue Service,E6123,Fire,106466787,05-Jun-20,Computer Data Network,VIRGIN MEDIA LTD,ICT TELECOMMS FIXED, 1.75 
Lancs Fire & Rescue Service,E6123,Fire,106466787,05-Jun-20,Computer Data Network,VIRGIN MEDIA LTD,ICT TELECOMMS FIXED," 15,444.00 "
Lancs Fire & Rescue Service,E6123,Fire,106467913,05-Jun-20,Other Expenses,ARGOS BUSINESS SOLUTIONS,FACIL&MGMT RETAIL, 3.29 
Lancs Fire & Rescue Service,E6123,Fire,106467913,05-Jun-20,Other Expenses,ARGOS BUSINESS SOLUTIONS,FACIL&MGMT RETAIL, 207.50 
Lancs Fire & Rescue Service,E6123,Fire,106467913,05-Jun-20,Other Expenses,ARGOS BUSINESS SOLUTIONS,FACIL&MGMT RETAIL, 224.17 
Lancs Fire & Rescue Service,E6123,Fire,106467913,05-Jun-20,Other Expenses,ARGOS BUSINESS SOLUTIONS,FACIL&MGMT RETAIL, 3.29 
Lancs Fire & Rescue Service,E6123,Fire,106467918,05-Jun-20,Repairs & Maintenance General,THE JAMES MERCER GROUP LIMITED,BUILDING MATS&SVCS GEN," 1,551.70 "
Lancs Fire & Rescue Service,E6123,Fire,106467921,05-Jun-20,Repairs & Maintenance General,THE JAMES MERCER GROUP LIMITED,BUILDING MATS&SVCS GEN, 465.00 
Lancs Fire & Rescue Service,E6123,Fire,106467924,05-Jun-20,Repairs & Maintenance General,PDP PROPERTY SERVICES LTD,BUILDING MATS&SVCS PAINT, 589.95 
Lancs Fire & Rescue Service,E6123,Fire,106467972,05-Jun-20,Protective Clothing,BALLYCLARE LHD LTD,CLOTHING PERSONAL," 1,628.64 "
Lancs Fire & Rescue Service,E6123,Fire,106467973,05-Jun-20,Protective Clothing,BALLYCLARE LHD LTD,CLOTHING PERSONAL," 2,985.84 "
Lancs Fire & Rescue Service,E6123,Fire,106467973,05-Jun-20,Protective Clothing,BALLYCLARE LHD LTD,CLOTHING PERSONAL," 3,528.72 "
Lancs Fire & Rescue Service,E6123,Fire,106467974,05-Jun-20,Protective Clothing,BALLYCLARE LHD LTD,CLOTHING PERSONAL," 1,900.08 "
Lancs Fire & Rescue Service,E6123,Fire,106467977,05-Jun-20,Protective Clothing,BALLYCLARE LHD LTD,CLOTHING PERSONAL, 814.32 
Lancs Fire & Rescue Service,E6123,Fire,106467977,05-Jun-20,Protective Clothing,BALLYCLARE LHD LTD,CLOTHING PERSONAL," 1,085.76 "
Lancs Fire & Rescue Service,E6123,Fire,106467977,05-Jun-20,Protective Clothing,BALLYCLARE LHD LTD,CLOTHING PERSONAL," 1,085.76 "
Lancs Fire & Rescue Service,E6123,Fire,106467977,05-Jun-20,Protective Clothing,BALLYCLARE LHD LTD,CLOTHING PERSONAL," 1,085.76 "
Lancs Fire & Rescue Service,E6123,Fire,106467982,05-Jun-20,Protective Clothing,BALLYCLARE LHD LTD,CLOTHING PERSONAL," 1,357.20 "
Lancs Fire & Rescue Service,E6123,Fire,106467997,05-Jun-20,Equipment General,SIS SCIENCE IN SPORT LTD,CATERING FOOD&BEVERAGE, 0.03 
Lancs Fire & Rescue Service,E6123,Fire,106467997,05-Jun-20,Equipment General,SIS SCIENCE IN SPORT LTD,CATERING FOOD&BEVERAGE, 77.96 
Lancs Fire & Rescue Service,E6123,Fire,106467997,05-Jun-20,Equipment General,SIS SCIENCE IN SPORT LTD,CATERING FOOD&BEVERAGE, 83.88 
Lancs Fire & Rescue Service,E6123,Fire,106467997,05-Jun-20,Equipment General,SIS SCIENCE IN SPORT LTD,CATERING FOOD&BEVERAGE, 83.88 
Lancs Fire & Rescue Service,E6123,Fire,106467997,05-Jun-20,Equipment General,SIS SCIENCE IN SPORT LTD,CATERING FOOD&BEVERAGE, 83.88 
Lancs Fire & Rescue Service,E6123,Fire,106467997,05-Jun-20,Equipment General,SIS SCIENCE IN SPORT LTD,CATERING FOOD&BEVERAGE, 77.96 
Lancs Fire & Rescue Service,E6123,Fire,106467997,05-Jun-20,Equipment General,SIS SCIENCE IN SPORT LTD,CATERING FOOD&BEVERAGE,(77.96)
Lancs Fire & Rescue Service,E6123,Fire,106467997,05-Jun-20,Equipment General,SIS SCIENCE IN SPORT LTD,CATERING FOOD&BEVERAGE, 12.56 
Lancs Fire & Rescue Service,E6123,Fire,106467997,05-Jun-20,Equipment General,SIS SCIENCE IN SPORT LTD,CATERING FOOD&BEVERAGE, 77.96 
Lancs Fire & Rescue Service,E6123,Fire,106467998,05-Jun-20,Cleaning Materials,FLUID BRANDING LTD,FACIL&MGMT PR&IMAGE," 7,280.00 "
Lancs Fire & Rescue Service,E6123,Fire,106468007,05-Jun-20,Fire - Breathing Apparatus,CYCLINDER TESTING SALES UK LTD,HEALTH&SAFETY PRODUCTS, 462.00 
Lancs Fire & Rescue Service,E6123,Fire,106468712,05-Jun-20,Course Providers,THE STATIONARY OFFICE [902733],UNCLASSIFIED NON-TRADE, 500.00 
Lancs Fire & Rescue Service,E6123,Fire,106468713,05-Jun-20,Fire - Operational Equipment,DELTA FIRE,HEALTH&SAFETY PRODUCTS," 3,000.00 "
Lancs Fire & Rescue Service,E6123,Fire,106468713,05-Jun-20,Fire - Operational Equipment,DELTA FIRE,HEALTH&SAFETY PRODUCTS," 11,340.00 "
Lancs Fire & Rescue Service,E6123,Fire,106468716,05-Jun-20,Pensions Services SLA,LOCAL PENSIONS PARTNERSHIP LTD,CONSULTANCY BUSINESS," 15,308.62 "
Lancs Fire & Rescue Service,E6123,Fire,106468720,05-Jun-20,Fire - Operational Equipment,DELTA FIRE,HEALTH&SAFETY PRODUCTS," 8,250.00 "
Lancs Fire & Rescue Service,E6123,Fire,106468721,05-Jun-20,Fire - Op equip R&D,HYDRO NAVITAS SOLUTIONS LTD,FRS FOAMS, 420.00 
Lancs Fire & Rescue Service,E6123,Fire,106473648,08-Jun-20,Vehicle Purchase,SIMPSONS (PRESTON) LTD,VEHICLES MAINTENANCE," 12,967.50 "
Lancs Fire & Rescue Service,E6123,Fire,106445059,09-Jun-20,Mobile Phone Costs,EVERYTHING EVERYWHERE LTD,TELEPHONE SERVICES," 1,645.50 "
Lancs Fire & Rescue Service,E6123,Fire,106468719,09-Jun-20,Day To Day,FUELTEK LTD,TRANSPORT FLEET MGMT," 2,950.00 "
Lancs Fire & Rescue Service,E6123,Fire,106470240,09-Jun-20,General Fees & Charges,ASIAN FIRE SERVICE ASSOCIATION,CONSULTANCY MANAGEMENT, 950.00 
Lancs Fire & Rescue Service,E6123,Fire,106470248,09-Jun-20,Stationery,VOW EUROPE LTD,STATIONERY PAPER," 1,281.58 "
Lancs Fire & Rescue Service,E6123,Fire,106470260,09-Jun-20,Stationery,VOW EUROPE LTD,STATIONERY PAPER," 1,345.48 "
Lancs Fire & Rescue Service,E6123,Fire,106470265,09-Jun-20,Fire - Hydrants,CANAL & RIVER TRUST,PUBLIC SECTOR, 744.56 
Lancs Fire & Rescue Service,E6123,Fire,106472517,09-Jun-20,Consumable Materials,HEALTHMED SUPPLIES,MEDICAL SERVICES, 818.22 
Lancs Fire & Rescue Service,E6123,Fire,106472520,09-Jun-20,Medical Fees,DRS.DIRECT,MEDICAL SERVICES, 450.00 
Lancs Fire & Rescue Service,E6123,Fire,106472532,09-Jun-20,Fire - Hydrants,P N DALY LTD,WORKS BUILDINGS," 2,088.00 "
Lancs Fire & Rescue Service,E6123,Fire,106479350,09-Jun-20,Protective Clothing,HUNTER APPAREL SOLUTIONS LTD,CLOTHING PERSONAL," 27,325.00 "
Lancs Fire & Rescue Service,E6123,Fire,106396055,12-Jun-20,Professional Services,SPECIALIST COMPUTER CENTRE,ICT SOFTWARE,"(1,049.57)"
Lancs Fire & Rescue Service,E6123,Fire,106396055,12-Jun-20,Professional Services,SPECIALIST COMPUTER CENTRE,ICT SOFTWARE," 1,049.57 "
Lancs Fire & Rescue Service,E6123,Fire,106396055,12-Jun-20,Professional Services,SPECIALIST COMPUTER CENTRE,ICT SOFTWARE," 1,049.57 "
Lancs Fire & Rescue Service,E6123,Fire,106451235,12-Jun-20,Fire Operational Communications,SFL MOBILE RADIO LTD,ICT TELECOMMS MOBILE, 10.00 
Lancs Fire & Rescue Service,E6123,Fire,106451235,12-Jun-20,Fire Operational Communications,SFL MOBILE RADIO LTD,ICT TELECOMMS MOBILE, 668.94 
Lancs Fire & Rescue Service,E6123,Fire,106455814,12-Jun-20,Programmed Work,PUMP SERVICE & TECHNOLOGY UK LTD,FRS SPECIALIST EQUIPMENT," 1,403.44 "
Lancs Fire & Rescue Service,E6123,Fire,106455819,12-Jun-20,Vehicle & Plant R&M (External),THOMAS HARDIE COMMERCIALS LTD,VEHICLES COMMERCIAL," 1,834.98 "
Lancs Fire & Rescue Service,E6123,Fire,106467976,12-Jun-20,Protective Clothing,BALLYCLARE LHD LTD,CLOTHING PERSONAL, 542.88 
Lancs Fire & Rescue Service,E6123,Fire,106472528,12-Jun-20,ICT Support Services (External),EFIRESERVICE LTD,CONSULTANCY IT, 520.00 
Lancs Fire & Rescue Service,E6123,Fire,106472528,12-Jun-20,ICT Support Services (External),EFIRESERVICE LTD,CONSULTANCY IT," 21,182.72 "
Lancs Fire & Rescue Service,E6123,Fire,106472530,12-Jun-20,Building Cleaning Contract (External),ANDRON FACILITIES MANAGEMENT,FACIL&MGMT SECURITY," 17,545.06 "
Lancs Fire & Rescue Service,E6123,Fire,106473649,12-Jun-20,Insurances General,ARTHUR J. GALLAGHER T/A HEATH LAMBERT LTD,FINANCIAL� INSURANCE," 1,092.00 "
Lancs Fire & Rescue Service,E6123,Fire,106473650,12-Jun-20,Insurances General,ARTHUR J. GALLAGHER T/A HEATH LAMBERT LTD,FINANCIAL� INSURANCE," 12,579.84 "
Lancs Fire & Rescue Service,E6123,Fire,106473651,12-Jun-20,Insurances General,ARTHUR J GALLAGHER (UK) LTD,FINANCIAL� INSURANCE," 11,558.40 "
Lancs Fire & Rescue Service,E6123,Fire,106473652,12-Jun-20,Insurances General,ARTHUR J GALLAGHER (UK) LTD,FINANCIAL� INSURANCE," 21,560.00 "
Lancs Fire & Rescue Service,E6123,Fire,106473653,12-Jun-20,Retained Insurance,ARTHUR J. GALLAGHER T/A HEATH LAMBERT LTD,FINANCIAL� INSURANCE, 898.87 
Lancs Fire & Rescue Service,E6123,Fire,106473654,12-Jun-20,Transport Insurance,ARTHUR J GALLAGHER (UK) LTD,FINANCIAL� INSURANCE," 13,664.96 "
Lancs Fire & Rescue Service,E6123,Fire,106473655,12-Jun-20,Insurances General,ARTHUR J GALLAGHER (UK) LTD,FINANCIAL� INSURANCE," 4,474.40 "
Lancs Fire & Rescue Service,E6123,Fire,106476660,12-Jun-20,Diesel,MILLERS OF LONGTON LTD,VEHICLES MAINTENANCE, 336.81 
Lancs Fire & Rescue Service,E6123,Fire,106476660,12-Jun-20,Lubricants,MILLERS OF LONGTON LTD,VEHICLES MAINTENANCE, 20.00 
Lancs Fire & Rescue Service,E6123,Fire,106476660,12-Jun-20,Other Expenses,MILLERS OF LONGTON LTD,VEHICLES MAINTENANCE, 265.00 
Lancs Fire & Rescue Service,E6123,Fire,106476660,12-Jun-20,Petrol,MILLERS OF LONGTON LTD,VEHICLES MAINTENANCE, 19.20 
Lancs Fire & Rescue Service,E6123,Fire,106476662,12-Jun-20,Accounts Payable SLA,LANCASHIRE COUNTY COUNCIL,LOCAL GOVERNMENT," 2,200.80 "
Lancs Fire & Rescue Service,E6123,Fire,106476662,12-Jun-20,Financial Services SLA,LANCASHIRE COUNTY COUNCIL,LOCAL GOVERNMENT," 10,415.00 "
Lancs Fire & Rescue Service,E6123,Fire,106476662,12-Jun-20,Financial Services SLA,LANCASHIRE COUNTY COUNCIL,LOCAL GOVERNMENT," 2,731.00 "
Lancs Fire & Rescue Service,E6123,Fire,106476662,12-Jun-20,Treasurers Services SLA,LANCASHIRE COUNTY COUNCIL,LOCAL GOVERNMENT," 1,861.50 "
Lancs Fire & Rescue Service,E6123,Fire,106476662,12-Jun-20,Treasurers Services SLA,LANCASHIRE COUNTY COUNCIL,LOCAL GOVERNMENT, 918.00 
Lancs Fire & Rescue Service,E6123,Fire,106476662,12-Jun-20,Treasurers Services SLA,LANCASHIRE COUNTY COUNCIL,LOCAL GOVERNMENT," 1,759.50 "
Lancs Fire & Rescue Service,E6123,Fire,106476662,12-Jun-20,Treasurers Services SLA,LANCASHIRE COUNTY COUNCIL,LOCAL GOVERNMENT, 612.00 
Lancs Fire & Rescue Service,E6123,Fire,106476662,12-Jun-20,Treasurers Services SLA,LANCASHIRE COUNTY COUNCIL,LOCAL GOVERNMENT," 1,326.00 "
Lancs Fire & Rescue Service,E6123,Fire,106478510,12-Jun-20,Vehicle & Plant R&M (External),JAMES HART (CHORLEY) LTD,TRANSPORT MAINTENANCE," 1,060.87 "
Lancs Fire & Rescue Service,E6123,Fire,106478519,12-Jun-20,Vehicle & Plant R&M (External),LINDE STERLING LTD,VEHICLES INDUSTRIAL, 831.89 
Lancs Fire & Rescue Service,E6123,Fire,106478521,12-Jun-20,Vehicle & Plant R&M (External),LANCASHIRE DAF,VEHICLES HEAVY CONST, 631.26 
Lancs Fire & Rescue Service,E6123,Fire,106478572,12-Jun-20,Diesel,MILLERS OF LONGTON LTD,VEHICLES MAINTENANCE, 328.09 
Lancs Fire & Rescue Service,E6123,Fire,106478572,12-Jun-20,Other Expenses,MILLERS OF LONGTON LTD,VEHICLES MAINTENANCE, 242.50 
Lancs Fire & Rescue Service,E6123,Fire,106478572,12-Jun-20,Petrol,MILLERS OF LONGTON LTD,VEHICLES MAINTENANCE, 67.20 
Lancs Fire & Rescue Service,E6123,Fire,106478573,12-Jun-20,Diesel,MILLERS OF LONGTON LTD,VEHICLES MAINTENANCE, 659.45 
Lancs Fire & Rescue Service,E6123,Fire,106478573,12-Jun-20,Other Expenses,MILLERS OF LONGTON LTD,VEHICLES MAINTENANCE, 242.50 
Lancs Fire & Rescue Service,E6123,Fire,106478573,12-Jun-20,Petrol,MILLERS OF LONGTON LTD,VEHICLES MAINTENANCE, 105.60 
Lancs Fire & Rescue Service,E6123,Fire,106478574,12-Jun-20,Diesel,MILLERS OF LONGTON LTD,VEHICLES MAINTENANCE, 513.39 
Lancs Fire & Rescue Service,E6123,Fire,106478574,12-Jun-20,Lubricants,MILLERS OF LONGTON LTD,VEHICLES MAINTENANCE, 20.00 
Lancs Fire & Rescue Service,E6123,Fire,106478574,12-Jun-20,Other Expenses,MILLERS OF LONGTON LTD,VEHICLES MAINTENANCE, 220.00 
Lancs Fire & Rescue Service,E6123,Fire,106478574,12-Jun-20,Petrol,MILLERS OF LONGTON LTD,VEHICLES MAINTENANCE, 28.80 
Lancs Fire & Rescue Service,E6123,Fire,106478575,12-Jun-20,Diesel,MILLERS OF LONGTON LTD,VEHICLES MAINTENANCE, 984.27 
Lancs Fire & Rescue Service,E6123,Fire,106478575,12-Jun-20,Lubricants,MILLERS OF LONGTON LTD,VEHICLES MAINTENANCE, 8.00 
Lancs Fire & Rescue Service,E6123,Fire,106478575,12-Jun-20,Other Expenses,MILLERS OF LONGTON LTD,VEHICLES MAINTENANCE, 445.00 
Lancs Fire & Rescue Service,E6123,Fire,106478575,12-Jun-20,Petrol,MILLERS OF LONGTON LTD,VEHICLES MAINTENANCE, 57.60 
Lancs Fire & Rescue Service,E6123,Fire,106478586,12-Jun-20,Insurances General,ARTHUR J GALLAGHER (UK) LTD,FINANCIAL� INSURANCE," 1,848.00 "
Lancs Fire & Rescue Service,E6123,Fire,106478587,12-Jun-20,Transport Insurance,ARTHUR J GALLAGHER (UK) LTD,FINANCIAL� INSURANCE," 94,134.76 "
Lancs Fire & Rescue Service,E6123,Fire,106478588,12-Jun-20,Insurances General,ARTHUR J GALLAGHER (UK) LTD,FINANCIAL� INSURANCE," 59,434.55 "
Lancs Fire & Rescue Service,E6123,Fire,106478653,12-Jun-20,Health� Safety & Environment Equipment,BRADY CORPORATION LTD T/A SETON,BUILDING MATS&SVCS SIGN, 505.78 
Lancs Fire & Rescue Service,E6123,Fire,106479461,12-Jun-20,Fire - Op Equip Repairs,CARDIAC SCIENCE HOLDINGS (UK) LTD,MEDICAL SERVICES," 1,380.00 "
Lancs Fire & Rescue Service,E6123,Fire,106479468,12-Jun-20,Diesel,MILLERS OF LONGTON LTD,VEHICLES MAINTENANCE, 285.58 
Lancs Fire & Rescue Service,E6123,Fire,106479468,12-Jun-20,Lubricants,MILLERS OF LONGTON LTD,VEHICLES MAINTENANCE, 10.00 
Lancs Fire & Rescue Service,E6123,Fire,106479468,12-Jun-20,Other Expenses,MILLERS OF LONGTON LTD,VEHICLES MAINTENANCE, 160.00 
Lancs Fire & Rescue Service,E6123,Fire,106479468,12-Jun-20,Petrol,MILLERS OF LONGTON LTD,VEHICLES MAINTENANCE, 9.60 
Lancs Fire & Rescue Service,E6123,Fire,106479469,12-Jun-20,Fire - Breathing Apparatus,GAS CONTROL EQUIPMENT,FRS SPECIALIST EQUIPMENT," 2,089.49 "
Lancs Fire & Rescue Service,E6123,Fire,106480214,12-Jun-20,Repairs & Maintenance General,THE JAMES MERCER GROUP LIMITED,BUILDING MATS&SVCS GEN, 849.20 
Lancs Fire & Rescue Service,E6123,Fire,106480219,12-Jun-20,Water,WATER PLUS LTD,UTILITIES WATER," 12,296.78 "
Lancs Fire & Rescue Service,E6123,Fire,106480219,12-Jun-20,Water,WATER PLUS LTD,UTILITIES WATER, 27.86 
Lancs Fire & Rescue Service,E6123,Fire,106480224,12-Jun-20,Diesel,MILLERS OF LONGTON LTD,VEHICLES MAINTENANCE, 491.59 
Lancs Fire & Rescue Service,E6123,Fire,106480224,12-Jun-20,Lubricants,MILLERS OF LONGTON LTD,VEHICLES MAINTENANCE, 47.00 
Lancs Fire & Rescue Service,E6123,Fire,106480224,12-Jun-20,Other Expenses,MILLERS OF LONGTON LTD,VEHICLES MAINTENANCE, 692.50 
Lancs Fire & Rescue Service,E6123,Fire,106480224,12-Jun-20,Petrol,MILLERS OF LONGTON LTD,VEHICLES MAINTENANCE, 177.60 
Lancs Fire & Rescue Service,E6123,Fire,106480225,12-Jun-20,Diesel,MILLERS OF LONGTON LTD,VEHICLES MAINTENANCE," 1,032.23 "
Lancs Fire & Rescue Service,E6123,Fire,106480225,12-Jun-20,Lubricants,MILLERS OF LONGTON LTD,VEHICLES MAINTENANCE, 28.00 
Lancs Fire & Rescue Service,E6123,Fire,106480225,12-Jun-20,Other Expenses,MILLERS OF LONGTON LTD,VEHICLES MAINTENANCE, 475.00 
Lancs Fire & Rescue Service,E6123,Fire,106480225,12-Jun-20,Petrol,MILLERS OF LONGTON LTD,VEHICLES MAINTENANCE, 129.60 
Lancs Fire & Rescue Service,E6123,Fire,106480236,12-Jun-20,Vehicle & Plant R&M (External),ROSENBAUER UK LTD,FRS SPECIALIST VEHICLES, 432.80 
Lancs Fire & Rescue Service,E6123,Fire,106480659,12-Jun-20,Computer Hardware,VERTIV INFRASTRUCTURE LTD,ICT SOFTWARE," 6,660.00 "
Lancs Fire & Rescue Service,E6123,Fire,106480664,12-Jun-20,Computer Data Network,TIS LIMITED,TELEPHONE SERVICES, 673.00 
Lancs Fire & Rescue Service,E6123,Fire,106484749,12-Jun-20,PFI - Capital Charge,MERSEYSIDE FIRE & RESCUE AUTHORITY,LOCAL GOVERNMENT," 154,259.79 "
Lancs Fire & Rescue Service,E6123,Fire,106451234,16-Jun-20,Fire Operational Communications,SFL MOBILE RADIO LTD,ICT TELECOMMS MOBILE, 269.25 
Lancs Fire & Rescue Service,E6123,Fire,106451234,16-Jun-20,Fire Operational Communications,SFL MOBILE RADIO LTD,ICT TELECOMMS MOBILE, 39.00 
Lancs Fire & Rescue Service,E6123,Fire,106451234,16-Jun-20,Fire Operational Communications,SFL MOBILE RADIO LTD,ICT TELECOMMS MOBILE, 1.99 
Lancs Fire & Rescue Service,E6123,Fire,106451234,16-Jun-20,Fire Operational Communications,SFL MOBILE RADIO LTD,ICT TELECOMMS MOBILE, 210.00 
Lancs Fire & Rescue Service,E6123,Fire,106451234,16-Jun-20,Fire Operational Communications,SFL MOBILE RADIO LTD,ICT TELECOMMS MOBILE, 1.99 
Lancs Fire & Rescue Service,E6123,Fire,106451234,16-Jun-20,Fire Operational Communications,SFL MOBILE RADIO LTD,ICT TELECOMMS MOBILE, 10.00 
Lancs Fire & Rescue Service,E6123,Fire,106455809,16-Jun-20,Repairs & Maintenance General,PICKERINGS EUROPE LTD,BUILDING MATS&SVCS GEN, 692.00 
Lancs Fire & Rescue Service,E6123,Fire,106465093,16-Jun-20,Computer Software,LONE WORKER SOLUTIONS LTD,UNCLASSIFIED," 4,509.00 "
Lancs Fire & Rescue Service,E6123,Fire,106465093,16-Jun-20,Computer Software,LONE WORKER SOLUTIONS LTD,UNCLASSIFIED, 720.00 
Lancs Fire & Rescue Service,E6123,Fire,106466782,16-Jun-20,Exchange Phones,MAINTEL EUROPE LTD,ICT TELECOMMS FIXED," 1,705.47 "
Lancs Fire & Rescue Service,E6123,Fire,106466782,16-Jun-20,Exchange Phones,MAINTEL EUROPE LTD,ICT TELECOMMS FIXED, 602.55 
Lancs Fire & Rescue Service,E6123,Fire,106480220,16-Jun-20,Professional Services,MERSEYSIDE FIRE & RESCUE AUTHORITY,LOCAL GOVERNMENT," 1,700.68 "
Lancs Fire & Rescue Service,E6123,Fire,106480226,16-Jun-20,Diesel,MILLERS OF LONGTON LTD,VEHICLES MAINTENANCE, 127.53 
Lancs Fire & Rescue Service,E6123,Fire,106480226,16-Jun-20,Other Expenses,MILLERS OF LONGTON LTD,VEHICLES MAINTENANCE, 276.25 
Lancs Fire & Rescue Service,E6123,Fire,106480226,16-Jun-20,Petrol,MILLERS OF LONGTON LTD,VEHICLES MAINTENANCE, 38.40 
Lancs Fire & Rescue Service,E6123,Fire,106481942,16-Jun-20,Rates,PENDLE BOROUGH COUNCIL,LOCAL GOVERNMENT," 19,585.75 "
Lancs Fire & Rescue Service,E6123,Fire,106481945,16-Jun-20,Rates,FYLDE BOROUGH COUNCIL,LOCAL GOVERNMENT," 12,974.00 "
Lancs Fire & Rescue Service,E6123,Fire,106481947,16-Jun-20,Rates,PENDLE BOROUGH COUNCIL,LOCAL GOVERNMENT," 8,678.38 "
Lancs Fire & Rescue Service,E6123,Fire,106481950,16-Jun-20,Rates,HYNDBURN BOROUGH COUNCIL,LOCAL GOVERNMENT," 67,584.00 "
Lancs Fire & Rescue Service,E6123,Fire,106481953,16-Jun-20,Rates,LANCASTER CITY COUNCIL (NON DOMESTIC RATES ONLY),LOCAL GOVERNMENT," 7,546.42 "
Lancs Fire & Rescue Service,E6123,Fire,106481955,16-Jun-20,Rates,LANCASTER CITY COUNCIL (NON DOMESTIC RATES ONLY),LOCAL GOVERNMENT," 7,360.25 "
Lancs Fire & Rescue Service,E6123,Fire,106481956,16-Jun-20,Rates,LANCASTER CITY COUNCIL (NON DOMESTIC RATES ONLY),LOCAL GOVERNMENT," 7,235.50 "
Lancs Fire & Rescue Service,E6123,Fire,106481957,16-Jun-20,Rates,LANCASTER CITY COUNCIL (NON DOMESTIC RATES ONLY),LOCAL GOVERNMENT," 5,738.50 "
Lancs Fire & Rescue Service,E6123,Fire,106481960,16-Jun-20,Rates,LANCASTER CITY COUNCIL (NON DOMESTIC RATES ONLY),LOCAL GOVERNMENT," 73,728.00 "
Lancs Fire & Rescue Service,E6123,Fire,106481962,16-Jun-20,Rates,LANCASTER CITY COUNCIL (NON DOMESTIC RATES ONLY),LOCAL GOVERNMENT," 48,128.00 "
Lancs Fire & Rescue Service,E6123,Fire,106482313,16-Jun-20,Computer Hardware,BRADY CORPORATION LTD T/A SETON,BUILDING MATS&SVCS SIGN, 531.00 
Lancs Fire & Rescue Service,E6123,Fire,106482324,16-Jun-20,Computer Data Network,TIS LIMITED,TELEPHONE SERVICES, 474.00 
Lancs Fire & Rescue Service,E6123,Fire,106482328,16-Jun-20,Diesel,MILLERS OF LONGTON LTD,VEHICLES MAINTENANCE, 194.02 
Lancs Fire & Rescue Service,E6123,Fire,106482328,16-Jun-20,Other Expenses,MILLERS OF LONGTON LTD,VEHICLES MAINTENANCE, 205.00 
Lancs Fire & Rescue Service,E6123,Fire,106482328,16-Jun-20,Petrol,MILLERS OF LONGTON LTD,VEHICLES MAINTENANCE, 28.80 
Lancs Fire & Rescue Service,E6123,Fire,106482329,16-Jun-20,Diesel,MILLERS OF LONGTON LTD,VEHICLES MAINTENANCE," 1,430.08 "
Lancs Fire & Rescue Service,E6123,Fire,106482329,16-Jun-20,Other Expenses,MILLERS OF LONGTON LTD,VEHICLES MAINTENANCE, 568.75 
Lancs Fire & Rescue Service,E6123,Fire,106482329,16-Jun-20,Petrol,MILLERS OF LONGTON LTD,VEHICLES MAINTENANCE, 259.20 
Lancs Fire & Rescue Service,E6123,Fire,106483171,16-Jun-20,Gas,CORONA ENERGY,UTILITIES GAS, 515.79 
Lancs Fire & Rescue Service,E6123,Fire,106483917,16-Jun-20,Gas,CORONA ENERGY,UTILITIES GAS," 1,040.17 "
Lancs Fire & Rescue Service,E6123,Fire,106483918,16-Jun-20,Gas,CORONA ENERGY,UTILITIES GAS," 2,168.76 "
Lancs Fire & Rescue Service,E6123,Fire,106483919,16-Jun-20,Gas,CORONA ENERGY,UTILITIES GAS," 1,259.67 "
Lancs Fire & Rescue Service,E6123,Fire,106483946,16-Jun-20,Fire - Op Equip Repairs,FIRE HOSETECH LTD,HEALTH&SAFETY PRODUCTS," 3,061.08 "
Lancs Fire & Rescue Service,E6123,Fire,106483948,16-Jun-20,Fire - Hoses,FIRE HOSETECH LTD,HEALTH&SAFETY PRODUCTS," 4,482.29 "
Lancs Fire & Rescue Service,E6123,Fire,106483951,16-Jun-20,Computer Hardware,CDW LTD,ICT MAINTENANCE, 574.32 
Lancs Fire & Rescue Service,E6123,Fire,106484377,16-Jun-20,Gas,CORONA ENERGY,UTILITIES GAS, 466.86 
Lancs Fire & Rescue Service,E6123,Fire,106484700,16-Jun-20,Gas,CORONA ENERGY,UTILITIES GAS, 477.71 
Lancs Fire & Rescue Service,E6123,Fire,Jun 20-CC01,16-Jun-20,Computer Software,DEVOLUTIONS INC,ICT SOFTWARE, 656.17 
Lancs Fire & Rescue Service,E6123,Fire,106467915,19-Jun-20,Professional Services,AMCAT (UK) LTD,HR PROFESSIONAL&ADVISORY, 816.58 
Lancs Fire & Rescue Service,E6123,Fire,106472521,19-Jun-20,Fire - Hoses,DELTA FIRE,HEALTH&SAFETY PRODUCTS," 15,784.00 "
Lancs Fire & Rescue Service,E6123,Fire,106479464,19-Jun-20,Fire - Breathing Apparatus,GAS CONTROL EQUIPMENT,FRS SPECIALIST EQUIPMENT, 964.38 
Lancs Fire & Rescue Service,E6123,Fire,106484476,19-Jun-20,Course Providers,COMBINED KNOWLEDGE,EDUCATION SERVICES," 1,275.00 "
Lancs Fire & Rescue Service,E6123,Fire,106484488,19-Jun-20,Fire - Operational Equipment,HEIGHTEC GROUP,HEALTH&SAFETY PRODUCTS," 2,245.54 "
Lancs Fire & Rescue Service,E6123,Fire,106484493,19-Jun-20,Fire - Breathing Apparatus,DRAEGER SAFETY UK LTD,HEALTH&SAFETY PRODUCTS," 4,000.00 "
Lancs Fire & Rescue Service,E6123,Fire,106485972,19-Jun-20,Stocks And Stores - General,COMPASS FUEL OILS LTD,VEHICLES MAINTENANCE, 720.00 
Lancs Fire & Rescue Service,E6123,Fire,106485974,19-Jun-20,Postage & Carriage,BETE LTD,HEALTH&SAFETY PRODUCTS, 30.00 
Lancs Fire & Rescue Service,E6123,Fire,106485974,19-Jun-20,Stocks And Stores - General,BETE LTD,HEALTH&SAFETY PRODUCTS," 2,887.50 "
Lancs Fire & Rescue Service,E6123,Fire,106485975,19-Jun-20,Postage & Carriage,WRAY BROS LIMITED,CLEANING&JANITORIAL SVCS, 3.90 
Lancs Fire & Rescue Service,E6123,Fire,106485975,19-Jun-20,Stocks And Stores - General,WRAY BROS LIMITED,CLEANING&JANITORIAL SVCS," 1,043.10 "
Lancs Fire & Rescue Service,E6123,Fire,106485979,19-Jun-20,Stocks And Stores - General,MW UK T/A DIMENSIONS,CLOTHING UNIFORMS, 430.00 
Lancs Fire & Rescue Service,E6123,Fire,106485981,19-Jun-20,Stocks And Stores - General,RELIANCE MEDICAL LTD,MEDICAL CONSUMABLES," 1,024.10 "
Lancs Fire & Rescue Service,E6123,Fire,106486554,19-Jun-20,Professional Services,IKG CONSULTING LIMITED,CONSULTANCY BUSINESS," 1,360.00 "
Lancs Fire & Rescue Service,E6123,Fire,106486555,19-Jun-20,Works Fees (External),EQUILIBRIUM ARCHITECTS LTD,CONSULTANCY CONSTRUCTION," 1,067.50 "
Lancs Fire & Rescue Service,E6123,Fire,106487462,19-Jun-20,Programmed Work,ABBY WELDING LTD,WORKS BUILDINGS," 6,370.00 "
Lancs Fire & Rescue Service,E6123,Fire,106487463,19-Jun-20,Programmed Work,ABBY WELDING LTD,WORKS BUILDINGS," 1,135.00 "
Lancs Fire & Rescue Service,E6123,Fire,106487466,19-Jun-20,Professional Services,FORBES SOLICITORS,LEGAL SVCS GENERAL, 750.00 
Lancs Fire & Rescue Service,E6123,Fire,106487470,19-Jun-20,Professional Services,FORBES SOLICITORS,LEGAL SVCS GENERAL," 1,776.00 "
Lancs Fire & Rescue Service,E6123,Fire,106487477,19-Jun-20,Waste Collection Charges,SUEZ RECYCLING & RECOVERY UK LTD,ENVIRON WASTE MGMT," 2,214.55 "
Lancs Fire & Rescue Service,E6123,Fire,106493219,22-Jun-20,Fire - Training Props,KFT FIRE TRAINER GMBH,FRS SPECIALIST EQUIPMENT, 15.00 
Lancs Fire & Rescue Service,E6123,Fire,106493219,22-Jun-20,Fire - Training Props,KFT FIRE TRAINER GMBH,FRS SPECIALIST EQUIPMENT," 1,134.00 "
Lancs Fire & Rescue Service,E6123,Fire,106465107,23-Jun-20,Equipment General,COSIGN LTD,FACIL&MGMT ADVERTISING," 1,875.00 "
Lancs Fire & Rescue Service,E6123,Fire,106489970,23-Jun-20,Fire - Op Equip Repairs,DELTA FIRE,HEALTH&SAFETY PRODUCTS, 35.32 
Lancs Fire & Rescue Service,E6123,Fire,106489970,23-Jun-20,Fire - Op Equip Repairs,DELTA FIRE,HEALTH&SAFETY PRODUCTS, 139.60 
Lancs Fire & Rescue Service,E6123,Fire,106489970,23-Jun-20,Fire - Op Equip Repairs,DELTA FIRE,HEALTH&SAFETY PRODUCTS, 147.00 
Lancs Fire & Rescue Service,E6123,Fire,106489970,23-Jun-20,Fire - Op Equip Repairs,DELTA FIRE,HEALTH&SAFETY PRODUCTS, 429.90 
Lancs Fire & Rescue Service,E6123,Fire,106489970,23-Jun-20,Fire - Op Equip Repairs,DELTA FIRE,HEALTH&SAFETY PRODUCTS, 39.16 
Lancs Fire & Rescue Service,E6123,Fire,106489970,23-Jun-20,Fire - Op Equip Repairs,DELTA FIRE,HEALTH&SAFETY PRODUCTS, 26.18 
Lancs Fire & Rescue Service,E6123,Fire,106489970,23-Jun-20,Fire - Op Equip Repairs,DELTA FIRE,HEALTH&SAFETY PRODUCTS, 147.00 
Lancs Fire & Rescue Service,E6123,Fire,106489970,23-Jun-20,Fire - Op Equip Repairs,DELTA FIRE,HEALTH&SAFETY PRODUCTS, 51.92 
Lancs Fire & Rescue Service,E6123,Fire,106489970,23-Jun-20,Fire - Op Equip Repairs,DELTA FIRE,HEALTH&SAFETY PRODUCTS, 29.40 
Lancs Fire & Rescue Service,E6123,Fire,106489970,23-Jun-20,Fire - Op Equip Repairs,DELTA FIRE,HEALTH&SAFETY PRODUCTS, 14.20 
Lancs Fire & Rescue Service,E6123,Fire,106489970,23-Jun-20,Fire - Op Equip Repairs,DELTA FIRE,HEALTH&SAFETY PRODUCTS, 17.70 
Lancs Fire & Rescue Service,E6123,Fire,106489970,23-Jun-20,Fire - Op Equip Repairs,DELTA FIRE,HEALTH&SAFETY PRODUCTS, 10.00 
Lancs Fire & Rescue Service,E6123,Fire,106489970,23-Jun-20,Fire - Op Equip Repairs,DELTA FIRE,HEALTH&SAFETY PRODUCTS, 13.68 
Lancs Fire & Rescue Service,E6123,Fire,106489970,23-Jun-20,Fire - Op Equip Repairs,DELTA FIRE,HEALTH&SAFETY PRODUCTS, 32.88 
Lancs Fire & Rescue Service,E6123,Fire,106489972,23-Jun-20,Service Contracts,CENTRAL POWER SERVICES LTD,VEHICLES HEAVY CONST," 1,360.00 "
Lancs Fire & Rescue Service,E6123,Fire,106491036,23-Jun-20,Rates,HYNDBURN BOROUGH COUNCIL,LOCAL GOVERNMENT," 8,678.38 "
Lancs Fire & Rescue Service,E6123,Fire,106491117,23-Jun-20,Equipment General,MILLERS (UK) LTD,BUILDING MATS&SVCS GEN," 2,254.80 "
Lancs Fire & Rescue Service,E6123,Fire,106491122,23-Jun-20,Programmed Work,ABBY WELDING LTD,WORKS BUILDINGS," 3,082.50 "
Lancs Fire & Rescue Service,E6123,Fire,106491123,23-Jun-20,Programmed Work,HARVEY ENVIRONMENTAL SERVICES,ENVIRON PEST CONTROL, 497.00 
Lancs Fire & Rescue Service,E6123,Fire,106491123,23-Jun-20,Service Contracts,HARVEY ENVIRONMENTAL SERVICES,ENVIRON PEST CONTROL, 92.45 
Lancs Fire & Rescue Service,E6123,Fire,106492106,23-Jun-20,Stocks And Stores - General,FIREANGEL SAFETY TECHNOLOGY LTD,HEALTH&SAFETY PRODUCTS," 7,550.00 "
Lancs Fire & Rescue Service,E6123,Fire,106492107,23-Jun-20,Stocks And Stores - General,THOMAS KNEALE & CO LTD,CATERING EQPMT&UTENSILS," 3,071.90 "
Lancs Fire & Rescue Service,E6123,Fire,106492110,23-Jun-20,Stocks And Stores - General,SOUTHCOMBE BROTHERS LTD,CLOTHING PERSONAL," 2,492.50 "
Lancs Fire & Rescue Service,E6123,Fire,106492115,23-Jun-20,Stocks And Stores - General,PREMIER ROLLS LTD,STATIONERY SUNDRIES, 468.24 
Lancs Fire & Rescue Service,E6123,Fire,106492116,23-Jun-20,Postage & Carriage,VERNON MORRIS UTILITY SOLUTIONS LIMITED,ENVIRON TEST & INSPECTION, 20.00 
Lancs Fire & Rescue Service,E6123,Fire,106492116,23-Jun-20,Stocks And Stores - General,VERNON MORRIS UTILITY SOLUTIONS LIMITED,ENVIRON TEST & INSPECTION, 814.66 
Lancs Fire & Rescue Service,E6123,Fire,106492122,23-Jun-20,Stocks And Stores - General,ALTBERG LTD,CLOTHING PERSONAL, 682.02 
Lancs Fire & Rescue Service,E6123,Fire,106492123,23-Jun-20,Stocks And Stores - General,ALTBERG LTD,CLOTHING PERSONAL," 1,439.82 "
Lancs Fire & Rescue Service,E6123,Fire,106492124,23-Jun-20,Stocks And Stores - General,PREMIER HOSE TECHNOLOGIES LTD,BUILDING MATS&SVCS GEN," 3,186.40 "
Lancs Fire & Rescue Service,E6123,Fire,106492125,23-Jun-20,Postage & Carriage,FIRE HOSETECH LTD,HEALTH&SAFETY PRODUCTS, 15.00 
Lancs Fire & Rescue Service,E6123,Fire,106492125,23-Jun-20,Stocks And Stores - General,FIRE HOSETECH LTD,HEALTH&SAFETY PRODUCTS, 560.18 
Lancs Fire & Rescue Service,E6123,Fire,106492128,23-Jun-20,Postage & Carriage,J HUDSON & CO (WHISTLES) LTD,HEALTH&SAFETY PRODUCTS, 12.06 
Lancs Fire & Rescue Service,E6123,Fire,106492128,23-Jun-20,Stocks And Stores - General,J HUDSON & CO (WHISTLES) LTD,HEALTH&SAFETY PRODUCTS," 1,022.00 "
Lancs Fire & Rescue Service,E6123,Fire,106493658,23-Jun-20,Car Allowances,LEX AUTOLEASE LTD,TRANSPORT FLEET MGMT, 462.23 
Lancs Fire & Rescue Service,E6123,Fire,106493658,23-Jun-20,Car Allowances,LEX AUTOLEASE LTD,TRANSPORT FLEET MGMT, 440.00 
Lancs Fire & Rescue Service,E6123,Fire,106493661,23-Jun-20,Consumable Materials,SLATER SAFETY SUPPLIES,HEALTH&SAFETY PRODUCTS, 795.00 
Lancs Fire & Rescue Service,E6123,Fire,106493663,23-Jun-20,PFI - Capital Charge,PFF LANCASHIRE LTD,FACIL&MGMT RETAIL," 60,408.94 "
Lancs Fire & Rescue Service,E6123,Fire,106493669,23-Jun-20,Fire - Operational Equipment,WILLIAM MOORE & SON LTD,FRS SPECIALIST EQUIPMENT, 437.50 
Lancs Fire & Rescue Service,E6123,Fire,106493669,23-Jun-20,Fire - Operational Equipment,WILLIAM MOORE & SON LTD,FRS SPECIALIST EQUIPMENT, 50.00 
Lancs Fire & Rescue Service,E6123,Fire,106493671,23-Jun-20,Vehicle & Plant Insurance Below Excess,TRAVELERS INSURANCE COMPANY LTD,FINANCIAL� INSURANCE," 3,306.00 "
Lancs Fire & Rescue Service,E6123,Fire,106493674,23-Jun-20,Fire - Hydrants,UNITED UTILITIES WATER PLC,UTILITIES WATER," 1,063.47 "
Lancs Fire & Rescue Service,E6123,Fire,106493675,23-Jun-20,Fire - Hydrants,UNITED UTILITIES WATER PLC,UTILITIES WATER, 423.75 
Lancs Fire & Rescue Service,E6123,Fire,106493678,23-Jun-20,Fire - Hydrants,UNITED UTILITIES WATER PLC,UTILITIES WATER, 627.04 
Lancs Fire & Rescue Service,E6123,Fire,106493855,23-Jun-20,Medical Fees,DRS.DIRECT,MEDICAL SERVICES, 450.00 
Lancs Fire & Rescue Service,E6123,Fire,106493856,23-Jun-20,Medical Fees,DRS.DIRECT,MEDICAL SERVICES, 900.00 
Lancs Fire & Rescue Service,E6123,Fire,106466778,26-Jun-20,Computer Software,SOFTCAT LTD,ICT CALL SYSTEMS," 4,488.22 "
Lancs Fire & Rescue Service,E6123,Fire,106466778,26-Jun-20,Computer Software,SOFTCAT LTD,ICT CALL SYSTEMS," 1,492.94 "
Lancs Fire & Rescue Service,E6123,Fire,106478520,26-Jun-20,Tyres,GOODYEAR DUNLOP TYRES UK LTD,VEHICLES MAINTENANCE," 2,090.94 "
Lancs Fire & Rescue Service,E6123,Fire,106479462,26-Jun-20,Medical Fees,ORGANISATIONAL HEALTHCARE LTD,HEALTH&SAFETY SERVICES," 2,100.00 "
Lancs Fire & Rescue Service,E6123,Fire,106493280,26-Jun-20,Professional Services,REDACTED,CONSULTANCY MANAGEMENT," 1,262.50 "
Lancs Fire & Rescue Service,E6123,Fire,106493664,26-Jun-20,Programmed Work,J H BLAKEY & SONS (SECURITY) LTD,FACIL&MGMT SECURITY, 423.28 
Lancs Fire & Rescue Service,E6123,Fire,106493665,26-Jun-20,Service Contracts,ARRESTA SAFETY PRODUCTS,HEALTH&SAFETY PRODUCTS, 585.00 
Lancs Fire & Rescue Service,E6123,Fire,106493666,26-Jun-20,Service Contracts,3I STUDIO LTD,ICT SOFTWARE," 1,740.00 "
Lancs Fire & Rescue Service,E6123,Fire,106497863,26-Jun-20,Fire Safety - Consumables,PALM EQUIPMENT INTERNATIONAL LTD,SPORTS EQUIPMENT, 430.20 
Lancs Fire & Rescue Service,E6123,Fire,106497863,26-Jun-20,Fire Safety - Consumables,PALM EQUIPMENT INTERNATIONAL LTD,SPORTS EQUIPMENT, 8.50 
Lancs Fire & Rescue Service,E6123,Fire,106497868,26-Jun-20,Medical Fees,DRS.DIRECT,MEDICAL SERVICES, 900.00 
Lancs Fire & Rescue Service,E6123,Fire,106498419,26-Jun-20,Computer Software,3TC SOFTWARE LIMITED,ICT SOFTWARE," 16,745.87 "
Lancs Fire & Rescue Service,E6123,Fire,106499696,26-Jun-20,Computer Hardware,INSIGHT DIRECT (UK) LTD,ICT SOFTWARE, 643.99 
Lancs Fire & Rescue Service,E6123,Fire,106499701,26-Jun-20,Fire Mobs Airwave costs,HOME OFFICE,GOVERNMENT," 41,162.47 "
Lancs Fire & Rescue Service,E6123,Fire,106499701,26-Jun-20,Fire Mobs Airwave costs,HOME OFFICE,GOVERNMENT," 1,787.11 "
Lancs Fire & Rescue Service,E6123,Fire,106499702,26-Jun-20,Computer Software,BYTES SOFTWARE SERVICES LTD,ICT SOFTWARE," 2,018.94 "
Lancs Fire & Rescue Service,E6123,Fire,106499707,26-Jun-20,Professional Services,HUMAN SPIRIT LTD,TRAINING, 250.00 
Lancs Fire & Rescue Service,E6123,Fire,106499707,26-Jun-20,Professional Services,HUMAN SPIRIT LTD,TRAINING, 250.00 
Lancs Fire & Rescue Service,E6123,Fire,106499707,26-Jun-20,Professional Services,HUMAN SPIRIT LTD,TRAINING, 125.00 
Lancs Fire & Rescue Service,E6123,Fire,106499708,26-Jun-20,Professional Services,ACTUALISE COACHING AND TRAINING LTD,CONSULTANCY MANAGEMENT, 250.00 
Lancs Fire & Rescue Service,E6123,Fire,106499708,26-Jun-20,Professional Services,ACTUALISE COACHING AND TRAINING LTD,CONSULTANCY MANAGEMENT, 250.00 
Lancs Fire & Rescue Service,E6123,Fire,106499708,26-Jun-20,Professional Services,ACTUALISE COACHING AND TRAINING LTD,CONSULTANCY MANAGEMENT, 250.00 
Lancs Fire & Rescue Service,E6123,Fire,106507783,26-Jun-20,Protective Clothing,HUNTER APPAREL SOLUTIONS LTD,CLOTHING PERSONAL," 21,890.00 "
Lancs Fire & Rescue Service,E6123,Fire,106455807,30-Jun-20,ICT Support Services (External),CIVICA UK LTD,ICT SOFTWARE," 1,935.00 "
Lancs Fire & Rescue Service,E6123,Fire,106455807,30-Jun-20,ICT Support Services (External),CIVICA UK LTD,ICT SOFTWARE," 3,870.00 "
Lancs Fire & Rescue Service,E6123,Fire,106471790,30-Jun-20,Fire - Op Equip Repairs,JOHN TEIRE AND CO LTD,HEALTH&SAFETY PRODUCTS, 295.00 
Lancs Fire & Rescue Service,E6123,Fire,106471790,30-Jun-20,Fire - Op Equip Repairs,JOHN TEIRE AND CO LTD,HEALTH&SAFETY PRODUCTS, 20.00 
Lancs Fire & Rescue Service,E6123,Fire,106471790,30-Jun-20,Fire - Op Equip Repairs,JOHN TEIRE AND CO LTD,HEALTH&SAFETY PRODUCTS, 315.00 
Lancs Fire & Rescue Service,E6123,Fire,106471793,30-Jun-20,Spoilt Meals & Other Refreshments,WATERLOGIC GB LTD,CATERING VENDING MACHINES, 878.84 
Lancs Fire & Rescue Service,E6123,Fire,106472529,30-Jun-20,Building Cleaning Contract (External),ANDRON FACILITIES MANAGEMENT,FACIL&MGMT SECURITY," 17,545.06 "
Lancs Fire & Rescue Service,E6123,Fire,106476661,30-Jun-20,Waste Collection Charges,SUEZ RECYCLING & RECOVERY UK LTD,ENVIRON WASTE MGMT," 2,296.63 "
Lancs Fire & Rescue Service,E6123,Fire,106478577,30-Jun-20,Laundry,BERENDSEN UK LTD,CLEANING&JAN LAUNDRYMAINT," 7,250.30 "
Lancs Fire & Rescue Service,E6123,Fire,106480663,30-Jun-20,ICT Support Services (External),PARASOL LTD,FINANCIAL ACCOUNTANCY," 3,319.80 "
Lancs Fire & Rescue Service,E6123,Fire,106482317,30-Jun-20,Mobile Phone Costs,HTK LTD,ICT SOFTWARE, 425.70 
Lancs Fire & Rescue Service,E6123,Fire,106486556,30-Jun-20,Works Fees (External),ECUS LTD,CONSULTANCY BUSINESS," 3,043.75 "
Lancs Fire & Rescue Service,E6123,Fire,106497865,30-Jun-20,Fire - Hoses,FIRE HOSETECH LTD,HEALTH&SAFETY PRODUCTS, 567.60 
Lancs Fire & Rescue Service,E6123,Fire,106497865,30-Jun-20,Fire - Hoses,FIRE HOSETECH LTD,HEALTH&SAFETY PRODUCTS,(94.60)
Lancs Fire & Rescue Service,E6123,Fire,106498392,30-Jun-20,Equipment General,ABBOTT RAPID DIAGNOSTICS,HEALTH&SAFETY PRODUCTS, 525.00 
Lancs Fire & Rescue Service,E6123,Fire,106499705,30-Jun-20,Fire - Breathing Apparatus,BAUER KOMPRESSOREN UK LTD,VEHICLES PARTS, 698.70 
Lancs Fire & Rescue Service,E6123,Fire,106503850,30-Jun-20,Vehicle & Plant R&M (External),LANCASHIRE DAF,VEHICLES HEAVY CONST," 4,075.46 "
Lancs Fire & Rescue Service,E6123,Fire,106503854,30-Jun-20,Vehicle & Plant R&M (External),EMERGENCY ONE UK LTD,TRANSPORT REPAIR, 449.90 
Lancs Fire & Rescue Service,E6123,Fire,106503855,30-Jun-20,Vehicle & Plant R&M (External),ROSENBAUER UK LTD,FRS SPECIALIST VEHICLES, 626.57 
Lancs Fire & Rescue Service,E6123,Fire,106503856,30-Jun-20,Vehicle & Plant R&M (External),ROSENBAUER UK LTD,FRS SPECIALIST VEHICLES," 1,765.06 "
Lancs Fire & Rescue Service,E6123,Fire,106503865,30-Jun-20,Diesel,STANDARD FUEL OILS LTD,UTILITIES HEATING OIL," 1,682.60 "
Lancs Fire & Rescue Service,E6123,Fire,106503866,30-Jun-20,Diesel,STANDARD FUEL OILS LTD,UTILITIES HEATING OIL," 1,261.95 "
Lancs Fire & Rescue Service,E6123,Fire,106503867,30-Jun-20,Diesel,STANDARD FUEL OILS LTD,UTILITIES HEATING OIL," 1,263.63 "
Lancs Fire & Rescue Service,E6123,Fire,106504083,30-Jun-20,Fire - Training Props,CARDIAC SCIENCE HOLDINGS (UK) LTD,MEDICAL SERVICES, 105.00 
Lancs Fire & Rescue Service,E6123,Fire,106504083,30-Jun-20,Fire - Training Props,CARDIAC SCIENCE HOLDINGS (UK) LTD,MEDICAL SERVICES," 1,645.00 "
Lancs Fire & Rescue Service,E6123,Fire,106504085,30-Jun-20,Protective Clothing,SHIRLEY TECHNOLOGIES LTD,SCIENTIFIC SERVICES," 1,456.00 "
Lancs Fire & Rescue Service,E6123,Fire,106504102,30-Jun-20,Fire - Breathing Apparatus,RESPIREX INT LIMITED,DOMESTIC GDS:COMMERCIAL," 7,410.00 "
Lancs Fire & Rescue Service,E6123,Fire,106504128,30-Jun-20,Transport Insurance,TRAVELERS MANAGEMENT LTD,FINANCIAL� INSURANCE," 3,302.00 "
Lancs Fire & Rescue Service,E6123,Fire,106506673,30-Jun-20,Repairs & Maintenance General,BID GROUP LTD,BUILDING MATS&SVCS GEN," 1,405.00 "
Lancs Fire & Rescue Service,E6123,Fire,106506680,30-Jun-20,Repairs & Maintenance General,P.G.B ROOFING,BUILDING MATS&SVCS ROOF, 510.00 
Lancs Fire & Rescue Service,E6123,Fire,106506684,30-Jun-20,Fire - Operational Equipment,CPC (COMBINED PRECISION COMPONENTS) PLC,BUILDING MATS&SVCS ELEC, 675.00 
Lancs Fire & Rescue Service,E6123,Fire,106506684,30-Jun-20,Fire - Operational Equipment,CPC (COMBINED PRECISION COMPONENTS) PLC,BUILDING MATS&SVCS ELEC, 19.35 
Lancs Fire & Rescue Service,E6123,Fire,106506685,30-Jun-20,Fire - Breathing Apparatus,GAS CONTROL EQUIPMENT,FRS SPECIALIST EQUIPMENT," 6,589.93 "
Lancs Fire & Rescue Service,E6123,Fire,106506686,30-Jun-20,Fire - Breathing Apparatus,GAS CONTROL EQUIPMENT,FRS SPECIALIST EQUIPMENT, 482.19 
Lancs Fire & Rescue Service,E6123,Fire,106507139,30-Jun-20,Fire - Training Props,CALIBRATION & CONSULTANCY SERVICES (UK) LTD,VEHICLES MAINTENANCE, 675.00 
Lancs Fire & Rescue Service,E6123,Fire,106507142,30-Jun-20,Car Allowances,LEX AUTOLEASE LTD,TRANSPORT FLEET MGMT, 462.23 
Lancs Fire & Rescue Service,E6123,Fire,106504099,03-Jul-20,Course Providers,XACT CONSULTANCY & TRAINING LTD,TRAINING, 890.00 
Lancs Fire & Rescue Service,E6123,Fire,106506674,03-Jul-20,Fuel Oil,CERTAS ENERGY UK LTD,UTILITIES HEATING OIL," 1,463.35 "
Lancs Fire & Rescue Service,E6123,Fire,106507791,03-Jul-20,Programmed Work,HARVEY ENVIRONMENTAL SERVICES,ENVIRON PEST CONTROL, 663.00 
Lancs Fire & Rescue Service,E6123,Fire,106507791,03-Jul-20,Service Contracts,HARVEY ENVIRONMENTAL SERVICES,ENVIRON PEST CONTROL, 109.72 
Lancs Fire & Rescue Service,E6123,Fire,106507838,03-Jul-20,Consumable Materials,WRAY BROS LIMITED,CLEANING&JANITORIAL SVCS," 1,716.00 "
Lancs Fire & Rescue Service,E6123,Fire,106507918,03-Jul-20,Equipment General,BALMERS GM LTD,HORTICULTURAL SERVICES, 34.69 
Lancs Fire & Rescue Service,E6123,Fire,106507918,03-Jul-20,Equipment General,BALMERS GM LTD,HORTICULTURAL SERVICES, 25.63 
Lancs Fire & Rescue Service,E6123,Fire,106507918,03-Jul-20,Equipment General,BALMERS GM LTD,HORTICULTURAL SERVICES, 100.00 
Lancs Fire & Rescue Service,E6123,Fire,106507918,03-Jul-20,Equipment General,BALMERS GM LTD,HORTICULTURAL SERVICES, 112.50 
Lancs Fire & Rescue Service,E6123,Fire,106507918,03-Jul-20,Equipment General,BALMERS GM LTD,HORTICULTURAL SERVICES, 131.25 
Lancs Fire & Rescue Service,E6123,Fire,106507918,03-Jul-20,Equipment General,BALMERS GM LTD,HORTICULTURAL SERVICES, 20.31 
Lancs Fire & Rescue Service,E6123,Fire,106507918,03-Jul-20,Equipment General,BALMERS GM LTD,HORTICULTURAL SERVICES, 48.75 
Lancs Fire & Rescue Service,E6123,Fire,106507918,03-Jul-20,Equipment General,BALMERS GM LTD,HORTICULTURAL SERVICES, 390.00 
Lancs Fire & Rescue Service,E6123,Fire,106507925,03-Jul-20,Computer Hardware,VERTIV INFRASTRUCTURE LTD,ICT SOFTWARE," 2,030.16 "
Lancs Fire & Rescue Service,E6123,Fire,106507927,03-Jul-20,Computer Software,RICARDO-AEA LTD,CONSULTANCY BUSINESS," 2,400.00 "
Lancs Fire & Rescue Service,E6123,Fire,106507933,03-Jul-20,Fire Operational Communications,DATANET,ICT SOFTWARE, 75.00 
Lancs Fire & Rescue Service,E6123,Fire,106507933,03-Jul-20,Fire Operational Communications,DATANET,ICT SOFTWARE, 11.00 
Lancs Fire & Rescue Service,E6123,Fire,106507933,03-Jul-20,Fire Operational Communications,DATANET,ICT SOFTWARE, 510.00 
Lancs Fire & Rescue Service,E6123,Fire,106507934,03-Jul-20,Fire Operational Communications,DATANET,ICT SOFTWARE," 1,110.00 "
Lancs Fire & Rescue Service,E6123,Fire,106507936,03-Jul-20,Fire - Hydrants,UNITED UTILITIES WATER PLC,UTILITIES WATER, 423.75 
Lancs Fire & Rescue Service,E6123,Fire,106508133,03-Jul-20,Postage & Carriage,WRAY BROS LIMITED,CLEANING&JANITORIAL SVCS, 0.06 
Lancs Fire & Rescue Service,E6123,Fire,106508133,03-Jul-20,Stocks And Stores - General,WRAY BROS LIMITED,CLEANING&JANITORIAL SVCS, 710.63 
Lancs Fire & Rescue Service,E6123,Fire,106508136,03-Jul-20,Stocks And Stores - General,GOLIATH FOOTWEAR LTD,CLOTHING SAFETYFOOTWARE," 1,361.78 "
Lancs Fire & Rescue Service,E6123,Fire,106508137,03-Jul-20,Stocks And Stores - General,EDGE TOOLS & EQUIPMENT LTD INACTIVE,FRS EMERGENCY OPS EQT, 432.78 
Lancs Fire & Rescue Service,E6123,Fire,106508140,03-Jul-20,Postage & Carriage,ANDREW MITCHELL & CO LTD,CLEANING&JANITORIAL SVCS, 25.00 
Lancs Fire & Rescue Service,E6123,Fire,106508140,03-Jul-20,Stocks And Stores - General,ANDREW MITCHELL & CO LTD,CLEANING&JANITORIAL SVCS, 653.10 
Lancs Fire & Rescue Service,E6123,Fire,106508142,03-Jul-20,Postage & Carriage,CPC (COMBINED PRECISION COMPONENTS) PLC,BUILDING MATS&SVCS ELEC, 0.05 
Lancs Fire & Rescue Service,E6123,Fire,106508142,03-Jul-20,Stocks And Stores - General,CPC (COMBINED PRECISION COMPONENTS) PLC,BUILDING MATS&SVCS ELEC, 676.00 
Lancs Fire & Rescue Service,E6123,Fire,106508149,03-Jul-20,Stocks And Stores - General,AUTOMOTIVE TOOLS & SUPPLIES LTD,BUILDING MATS&SVCS GEN, 582.88 
Lancs Fire & Rescue Service,E6123,Fire,106508783,03-Jul-20,Gas,CORONA ENERGY,UTILITIES GAS, 815.76 
Lancs Fire & Rescue Service,E6123,Fire,106512759,03-Jul-20,Consumable Materials,SLATER SAFETY SUPPLIES,HEALTH&SAFETY PRODUCTS," 5,094.40 "
Lancs Fire & Rescue Service,E6123,Fire,106514327,03-Jul-20,Fire - Operational Equipment,HEIGHTEC GROUP LTD,HEALTH&SAFETY PRODUCTS," 1,449.25 "
Lancs Fire & Rescue Service,E6123,Fire,106291802,07-Jul-20,Other Sales,TRAUMA & RESUSCITATION SERVICES LTD,MEDICAL SERVICES,"(1,500.00)"
Lancs Fire & Rescue Service,E6123,Fire,106484478,07-Jul-20,Course Providers,QA LTD,ICT HARDWARE," 2,115.00 "
Lancs Fire & Rescue Service,E6123,Fire,106507774,07-Jul-20,Fire - Operational Equipment,TRAUMA & RESUSCITATION SERVICES LTD,MEDICAL SERVICES, 50.00 
Lancs Fire & Rescue Service,E6123,Fire,106507774,07-Jul-20,Fire - Operational Equipment,TRAUMA & RESUSCITATION SERVICES LTD,MEDICAL SERVICES," 6,750.00 "
Lancs Fire & Rescue Service,E6123,Fire,106507774,07-Jul-20,Fire - Operational Equipment,TRAUMA & RESUSCITATION SERVICES LTD,MEDICAL SERVICES," 4,240.00 "
Lancs Fire & Rescue Service,E6123,Fire,106514904,07-Jul-20,Fire - Operational Equipment,JOHN TEIRE AND CO LTD,HEALTH&SAFETY PRODUCTS, 50.00 
Lancs Fire & Rescue Service,E6123,Fire,106514904,07-Jul-20,Fire - Operational Equipment,JOHN TEIRE AND CO LTD,HEALTH&SAFETY PRODUCTS, 44.00 
Lancs Fire & Rescue Service,E6123,Fire,106514904,07-Jul-20,Fire - Operational Equipment,JOHN TEIRE AND CO LTD,HEALTH&SAFETY PRODUCTS, 170.00 
Lancs Fire & Rescue Service,E6123,Fire,106514904,07-Jul-20,Fire - Operational Equipment,JOHN TEIRE AND CO LTD,HEALTH&SAFETY PRODUCTS," 1,064.00 "
Lancs Fire & Rescue Service,E6123,Fire,106517258,07-Jul-20,Diesel,ALLSTAR BUSINESS SOLUTIONS LTD,VEHICLES FUEL," 17,972.76 "
Lancs Fire & Rescue Service,E6123,Fire,106517258,07-Jul-20,Petrol,ALLSTAR BUSINESS SOLUTIONS LTD,VEHICLES FUEL, 618.20 
Lancs Fire & Rescue Service,E6123,Fire,106519165,07-Jul-20,Repairs & Maintenance General,BID GROUP LTD,BUILDING MATS&SVCS GEN, 510.00 
Lancs Fire & Rescue Service,E6123,Fire,106519171,07-Jul-20,Repairs & Maintenance General,RED ROSE BLINDS,BUILDING MATS&SVCS GEN, 724.00 
Lancs Fire & Rescue Service,E6123,Fire,106519175,07-Jul-20,Vehicle Repair & Mtce,LANCASHIRE COUNTY COUNCIL,LOCAL GOVERNMENT," 7,327.89 "
Lancs Fire & Rescue Service,E6123,Fire,106519175,07-Jul-20,Vehicle Repair & Mtce,LANCASHIRE COUNTY COUNCIL,LOCAL GOVERNMENT," 5,938.72 "
Lancs Fire & Rescue Service,E6123,Fire,106519175,07-Jul-20,Vehicle Repair & Mtce,LANCASHIRE COUNTY COUNCIL,LOCAL GOVERNMENT," 5,561.82 "
Lancs Fire & Rescue Service,E6123,Fire,106519175,07-Jul-20,Vehicle Repair & Mtce,LANCASHIRE COUNTY COUNCIL,LOCAL GOVERNMENT," 4,021.96 "
Lancs Fire & Rescue Service,E6123,Fire,106487472,10-Jul-20,Works Fees (External),ISG CONSTRUCTION LTD,BUILDING MATS&SVCS GEN," 27,414.20 "
Lancs Fire & Rescue Service,E6123,Fire,106493659,10-Jul-20,Fire - Operational Equipment,MARLBOROUGH COMMUNICATIONS LTD,FRS SPECIALIST EQUIPMENT," 3,959.50 "
Lancs Fire & Rescue Service,E6123,Fire,106497862,10-Jul-20,Fire - Operational Equipment,CLIFTON CANVAS,CLOTHING UNIFORMS," 5,289.00 "
Lancs Fire & Rescue Service,E6123,Fire,106497862,10-Jul-20,Fire - Operational Equipment,CLIFTON CANVAS,CLOTHING UNIFORMS, 902.00 
Lancs Fire & Rescue Service,E6123,Fire,106499697,10-Jul-20,Mobile Phone Costs,EVERYTHING EVERYWHERE LTD,TELEPHONE SERVICES," 1,817.14 "
Lancs Fire & Rescue Service,E6123,Fire,106503864,10-Jul-20,Vehicle & Plant R&M (External),OTRA LTD,VEHICLES MAINTENANCE, 498.85 
Lancs Fire & Rescue Service,E6123,Fire,106504103,10-Jul-20,Electricity,NPOWER,UTILITIES ELECTRICITY," 3,734.37 "
Lancs Fire & Rescue Service,E6123,Fire,106504104,10-Jul-20,Electricity,NPOWER,UTILITIES ELECTRICITY," 3,810.15 "
Lancs Fire & Rescue Service,E6123,Fire,106504105,10-Jul-20,Electricity,NPOWER,UTILITIES ELECTRICITY," 3,735.11 "
Lancs Fire & Rescue Service,E6123,Fire,106504106,10-Jul-20,Electricity,NPOWER,UTILITIES ELECTRICITY," 1,701.45 "
Lancs Fire & Rescue Service,E6123,Fire,106504107,10-Jul-20,Electricity,NPOWER,UTILITIES ELECTRICITY," 1,465.98 "
Lancs Fire & Rescue Service,E6123,Fire,106504108,10-Jul-20,Electricity,NPOWER,UTILITIES ELECTRICITY," 1,211.41 "
Lancs Fire & Rescue Service,E6123,Fire,106504109,10-Jul-20,Electricity,NPOWER,UTILITIES ELECTRICITY," 1,203.03 "
Lancs Fire & Rescue Service,E6123,Fire,106504111,10-Jul-20,Electricity,NPOWER,UTILITIES ELECTRICITY," 3,792.72 "
Lancs Fire & Rescue Service,E6123,Fire,106512867,10-Jul-20,Programmed Work,PTSG ELECTRICAL SERVICES LTD (PREVIOULSY KNOW AS BEST SERVICES LTD),WORKS BUILDINGS, 504.00 
Lancs Fire & Rescue Service,E6123,Fire,106519168,10-Jul-20,Programmed Work,ABBY WELDING LTD,WORKS BUILDINGS, 525.00 
Lancs Fire & Rescue Service,E6123,Fire,106519179,10-Jul-20,Consumable Materials,C & W BERRY LTD,BUILDING MATS&SVCS GEN, 344.00 
Lancs Fire & Rescue Service,E6123,Fire,106519179,10-Jul-20,Puchasing Default Code,C & W BERRY LTD,BUILDING MATS&SVCS GEN, 46.81 
Lancs Fire & Rescue Service,E6123,Fire,106519179,10-Jul-20,Puchasing Default Code,C & W BERRY LTD,BUILDING MATS&SVCS GEN, 43.40 
Lancs Fire & Rescue Service,E6123,Fire,106519179,10-Jul-20,Repairs & Maintenance General,C & W BERRY LTD,BUILDING MATS&SVCS GEN, 63.98 
Lancs Fire & Rescue Service,E6123,Fire,106519179,10-Jul-20,Repairs & Maintenance General,C & W BERRY LTD,BUILDING MATS&SVCS GEN, 93.00 
Lancs Fire & Rescue Service,E6123,Fire,106519179,10-Jul-20,Repairs & Maintenance General,C & W BERRY LTD,BUILDING MATS&SVCS GEN, 24.95 
Lancs Fire & Rescue Service,E6123,Fire,106519179,10-Jul-20,Repairs & Maintenance General,C & W BERRY LTD,BUILDING MATS&SVCS GEN, 17.96 
Lancs Fire & Rescue Service,E6123,Fire,106519179,10-Jul-20,Repairs & Maintenance General,C & W BERRY LTD,BUILDING MATS&SVCS GEN, 17.96 
Lancs Fire & Rescue Service,E6123,Fire,106519179,10-Jul-20,Repairs & Maintenance General,C & W BERRY LTD,BUILDING MATS&SVCS GEN, 23.28 
Lancs Fire & Rescue Service,E6123,Fire,106519179,10-Jul-20,Repairs & Maintenance General,C & W BERRY LTD,BUILDING MATS&SVCS GEN, 16.96 
Lancs Fire & Rescue Service,E6123,Fire,106519179,10-Jul-20,Repairs & Maintenance General,C & W BERRY LTD,BUILDING MATS&SVCS GEN, 16.96 
Lancs Fire & Rescue Service,E6123,Fire,106519179,10-Jul-20,Repairs & Maintenance General,C & W BERRY LTD,BUILDING MATS&SVCS GEN, 28.50 
Lancs Fire & Rescue Service,E6123,Fire,106519179,10-Jul-20,Repairs & Maintenance General,C & W BERRY LTD,BUILDING MATS&SVCS GEN, 28.50 
Lancs Fire & Rescue Service,E6123,Fire,106519179,10-Jul-20,Repairs & Maintenance General,C & W BERRY LTD,BUILDING MATS&SVCS GEN, 28.50 
Lancs Fire & Rescue Service,E6123,Fire,106519179,10-Jul-20,Repairs & Maintenance General,C & W BERRY LTD,BUILDING MATS&SVCS GEN, 13.68 
Lancs Fire & Rescue Service,E6123,Fire,106519179,10-Jul-20,Repairs & Maintenance General,C & W BERRY LTD,BUILDING MATS&SVCS GEN, 8.70 
Lancs Fire & Rescue Service,E6123,Fire,106519269,10-Jul-20,Computer Data Network,TIS LIMITED,TELEPHONE SERVICES, 780.00 
Lancs Fire & Rescue Service,E6123,Fire,106519285,10-Jul-20,Fire Mobs Paging Equipment,PAGEONE COMMUNICATIONS LTD,ICT CALL SYSTEMS," 1,823.12 "
Lancs Fire & Rescue Service,E6123,Fire,106519294,10-Jul-20,Professional Services,DRIVER & VEHICLE STANDARDS AGENCY (DVSA),GOVERNMENT, 950.00 
Lancs Fire & Rescue Service,E6123,Fire,106519295,10-Jul-20,Fire - Operational Equipment,SPEEDINGS LIMITED,HR TRAINING&CONFERENCES, 650.00 
Lancs Fire & Rescue Service,E6123,Fire,106519295,10-Jul-20,Fire - Operational Equipment,SPEEDINGS LIMITED,HR TRAINING&CONFERENCES, 15.00 
Lancs Fire & Rescue Service,E6123,Fire,106522410,10-Jul-20,Waste Collection Charges,SUEZ RECYCLING & RECOVERY UK LTD,ENVIRON WASTE MGMT," 2,405.08 "
Lancs Fire & Rescue Service,E6123,Fire,106522410,10-Jul-20,Waste Collection Charges,SUEZ RECYCLING & RECOVERY UK LTD,ENVIRON WASTE MGMT,"(2,397.88)"
Lancs Fire & Rescue Service,E6123,Fire,106522410,10-Jul-20,Waste Collection Charges,SUEZ RECYCLING & RECOVERY UK LTD,ENVIRON WASTE MGMT," 2,397.88 "
Lancs Fire & Rescue Service,E6123,Fire,106522438,10-Jul-20,Fire - Operational Equipment,PALM EQUIPMENT INTERNATIONAL LTD,SPORTS EQUIPMENT, 8.50 
Lancs Fire & Rescue Service,E6123,Fire,106522438,10-Jul-20,Fire - Operational Equipment,PALM EQUIPMENT INTERNATIONAL LTD,SPORTS EQUIPMENT, 216.62 
Lancs Fire & Rescue Service,E6123,Fire,106522438,10-Jul-20,Fire - Operational Equipment,PALM EQUIPMENT INTERNATIONAL LTD,SPORTS EQUIPMENT, 216.62 
Lancs Fire & Rescue Service,E6123,Fire,106522441,10-Jul-20,Fire - Hydrants,UNITED UTILITIES WATER PLC,UTILITIES WATER, 423.75 
Lancs Fire & Rescue Service,E6123,Fire,106522756,10-Jul-20,Professional Services,JENKINS DESIGN SERVICES LTD,CONSULTANCY CONSTRUCTION," 1,537.50 "
Lancs Fire & Rescue Service,E6123,Fire,106522761,10-Jul-20,Service Contracts,CENTRAL POWER SERVICES LTD,VEHICLES HEAVY CONST, 506.38 
Lancs Fire & Rescue Service,E6123,Fire,106522765,10-Jul-20,Works Fees (External),TWC CONSULTING (PROPERTY SERVICES) LIMITED,CONSULTANCY CONSTRUCTION," 3,375.00 "
Lancs Fire & Rescue Service,E6123,Fire,106522767,10-Jul-20,Repairs & Maintenance General,RED ROSE BUILDING MAINTENANCE,BUILDING MATS&SVCS GEN, 300.00 
Lancs Fire & Rescue Service,E6123,Fire,106522767,10-Jul-20,Repairs & Maintenance General,RED ROSE BUILDING MAINTENANCE,BUILDING MATS&SVCS GEN, 240.00 
Lancs Fire & Rescue Service,E6123,Fire,106522775,10-Jul-20,Stationery,VOW EUROPE LTD,STATIONERY PAPER," 1,264.08 "
Lancs Fire & Rescue Service,E6123,Fire,106522793,10-Jul-20,Fire - ill health appeals,HEALTHWORK,MEDICAL SERVICES, 960.00 
Lancs Fire & Rescue Service,E6123,Fire,106525067,10-Jul-20,Stocks And Stores - General,JAFCO TOOLS LTD,FRS SPECIALIST EQUIPMENT, 441.00 
Lancs Fire & Rescue Service,E6123,Fire,106525069,10-Jul-20,Stocks And Stores - General,FIREANGEL SAFETY TECHNOLOGY LTD,HEALTH&SAFETY PRODUCTS," 6,050.00 "
Lancs Fire & Rescue Service,E6123,Fire,106525071,10-Jul-20,Stocks And Stores - General,KLEER PRINT,FACIL&MGMT REPROGRAPHICS, 970.00 
Lancs Fire & Rescue Service,E6123,Fire,106525075,10-Jul-20,Postage & Carriage,WRAY BROS LIMITED,CLEANING&JANITORIAL SVCS, 2.33 
Lancs Fire & Rescue Service,E6123,Fire,106525075,10-Jul-20,Stocks And Stores - General,WRAY BROS LIMITED,CLEANING&JANITORIAL SVCS, 606.09 
Lancs Fire & Rescue Service,E6123,Fire,106525082,10-Jul-20,Stocks And Stores - General,ANDREW MITCHELL & CO LTD,CLEANING&JANITORIAL SVCS," 1,959.30 "
Lancs Fire & Rescue Service,E6123,Fire,106525084,10-Jul-20,Stocks And Stores - General,ARCO LTD,CLOTHING PROTECTIVE," 1,345.45 "
Lancs Fire & Rescue Service,E6123,Fire,106519177,14-Jul-20,Pensions Services SLA,GOVERNMENT ACTUARYS DEPARTMENT,GOVERNMENT," 6,000.00 "
Lancs Fire & Rescue Service,E6123,Fire,106519177,14-Jul-20,Pensions Services SLA,GOVERNMENT ACTUARYS DEPARTMENT,GOVERNMENT,"(6,000.00)"
Lancs Fire & Rescue Service,E6123,Fire,106519177,14-Jul-20,Pensions Services SLA,GOVERNMENT ACTUARYS DEPARTMENT,GOVERNMENT," 6,000.00 "
Lancs Fire & Rescue Service,E6123,Fire,106527862,14-Jul-20,Repairs & Maintenance General,RED ROSE BUILDING MAINTENANCE,BUILDING MATS&SVCS GEN," 1,120.00 "
Lancs Fire & Rescue Service,E6123,Fire,106527864,14-Jul-20,Water,WATER PLUS LTD,UTILITIES WATER," 15,670.53 "
Lancs Fire & Rescue Service,E6123,Fire,106527864,14-Jul-20,Water,WATER PLUS LTD,UTILITIES WATER, 28.49 
Lancs Fire & Rescue Service,E6123,Fire,106527866,14-Jul-20,Programmed Work,HARDACRES PLUMBERS (NW) LTD,WORKS BUILDINGS," 1,934.71 "
Lancs Fire & Rescue Service,E6123,Fire,106527869,14-Jul-20,Repairs & Maintenance General,HARDACRES PLUMBERS (NW) LTD,WORKS BUILDINGS," 1,305.75 "
Lancs Fire & Rescue Service,E6123,Fire,106527872,14-Jul-20,Professional Services,AMCAT (UK) LTD,HR PROFESSIONAL&ADVISORY," 1,102.50 "
Lancs Fire & Rescue Service,E6123,Fire,106527875,14-Jul-20,Programmed Work,ABBY WELDING LTD,WORKS BUILDINGS," 2,635.00 "
Lancs Fire & Rescue Service,E6123,Fire,106527878,14-Jul-20,Professional Services,IKG CONSULTING LIMITED,CONSULTANCY BUSINESS," 1,560.00 "
Lancs Fire & Rescue Service,E6123,Fire,106527879,14-Jul-20,Programmed Work,FOX TAIL LTD,BUILDING MATS&SVCS FLOOR, 962.00 
Lancs Fire & Rescue Service,E6123,Fire,106527886,14-Jul-20,Course Providers,PRINCE'S TRUST TRADING LTD,HR TRAINING&CONFERENCES," 5,600.00 "
Lancs Fire & Rescue Service,E6123,Fire,106527888,14-Jul-20,Consumable Materials,SLATER SAFETY SUPPLIES,HEALTH&SAFETY PRODUCTS, 896.00 
Lancs Fire & Rescue Service,E6123,Fire,106527891,14-Jul-20,Fire - Operational Equipment,ASPLI SAFETY LTD,HEALTH&SAFETY PRODUCTS," 1,966.50 "
Lancs Fire & Rescue Service,E6123,Fire,106527891,14-Jul-20,Fire - Operational Equipment,ASPLI SAFETY LTD,HEALTH&SAFETY PRODUCTS, 0.02 
Lancs Fire & Rescue Service,E6123,Fire,106527897,14-Jul-20,Catering Service (External),BRAKE BROS LTD,CATERING FOOD&BEVERAGE, 481.63 
Lancs Fire & Rescue Service,E6123,Fire,106527902,14-Jul-20,Fire - Hydrants,UNITED UTILITIES WATER PLC,UTILITIES WATER, 466.13 
Lancs Fire & Rescue Service,E6123,Fire,106535487,15-Jul-20,PFI - Capital Charge,MERSEYSIDE FIRE & RESCUE AUTHORITY,LOCAL GOVERNMENT," 157,238.65 "
Lancs Fire & Rescue Service,E6123,Fire,106489960,17-Jul-20,Protective Clothing,BALLYCLARE LHD LTD,CLOTHING PERSONAL, 932.32 
Lancs Fire & Rescue Service,E6123,Fire,106489960,17-Jul-20,Protective Clothing,BALLYCLARE LHD LTD,CLOTHING PERSONAL," 2,563.88 "
Lancs Fire & Rescue Service,E6123,Fire,106489960,17-Jul-20,Protective Clothing,BALLYCLARE LHD LTD,CLOTHING PERSONAL," 1,864.64 "
Lancs Fire & Rescue Service,E6123,Fire,106489960,17-Jul-20,Protective Clothing,BALLYCLARE LHD LTD,CLOTHING PERSONAL," 2,097.72 "
Lancs Fire & Rescue Service,E6123,Fire,106489960,17-Jul-20,Protective Clothing,BALLYCLARE LHD LTD,CLOTHING PERSONAL,"(2,097.72)"
Lancs Fire & Rescue Service,E6123,Fire,106489960,17-Jul-20,Protective Clothing,BALLYCLARE LHD LTD,CLOTHING PERSONAL,(932.32)
Lancs Fire & Rescue Service,E6123,Fire,106489960,17-Jul-20,Protective Clothing,BALLYCLARE LHD LTD,CLOTHING PERSONAL," 1,864.64 "
Lancs Fire & Rescue Service,E6123,Fire,106489960,17-Jul-20,Protective Clothing,BALLYCLARE LHD LTD,CLOTHING PERSONAL,"(1,864.64)"
Lancs Fire & Rescue Service,E6123,Fire,106489960,17-Jul-20,Protective Clothing,BALLYCLARE LHD LTD,CLOTHING PERSONAL," 2,563.88 "
Lancs Fire & Rescue Service,E6123,Fire,106489960,17-Jul-20,Protective Clothing,BALLYCLARE LHD LTD,CLOTHING PERSONAL,"(2,563.88)"
Lancs Fire & Rescue Service,E6123,Fire,106489960,17-Jul-20,Protective Clothing,BALLYCLARE LHD LTD,CLOTHING PERSONAL," 2,097.72 "
Lancs Fire & Rescue Service,E6123,Fire,106489960,17-Jul-20,Protective Clothing,BALLYCLARE LHD LTD,CLOTHING PERSONAL, 932.32 
Lancs Fire & Rescue Service,E6123,Fire,106489965,17-Jul-20,Protective Clothing,BALLYCLARE LHD LTD,CLOTHING PERSONAL, 466.16 
Lancs Fire & Rescue Service,E6123,Fire,106489965,17-Jul-20,Protective Clothing,BALLYCLARE LHD LTD,CLOTHING PERSONAL, 932.32 
Lancs Fire & Rescue Service,E6123,Fire,106489965,17-Jul-20,Protective Clothing,BALLYCLARE LHD LTD,CLOTHING PERSONAL, 932.32 
Lancs Fire & Rescue Service,E6123,Fire,106489965,17-Jul-20,Protective Clothing,BALLYCLARE LHD LTD,CLOTHING PERSONAL,(466.16)
Lancs Fire & Rescue Service,E6123,Fire,106489965,17-Jul-20,Protective Clothing,BALLYCLARE LHD LTD,CLOTHING PERSONAL, 466.16 
Lancs Fire & Rescue Service,E6123,Fire,106489965,17-Jul-20,Protective Clothing,BALLYCLARE LHD LTD,CLOTHING PERSONAL,(932.32)
Lancs Fire & Rescue Service,E6123,Fire,106489965,17-Jul-20,Protective Clothing,BALLYCLARE LHD LTD,CLOTHING PERSONAL, 932.32 
Lancs Fire & Rescue Service,E6123,Fire,106489965,17-Jul-20,Protective Clothing,BALLYCLARE LHD LTD,CLOTHING PERSONAL,(932.32)
Lancs Fire & Rescue Service,E6123,Fire,106489965,17-Jul-20,Protective Clothing,BALLYCLARE LHD LTD,CLOTHING PERSONAL, 932.32 
Lancs Fire & Rescue Service,E6123,Fire,106497867,17-Jul-20,Consumable Materials,TOTAL INSIGNIA LTD,CLOTHING UNIFORMS," 13,750.00 "
Lancs Fire & Rescue Service,E6123,Fire,106499698,17-Jul-20,Exchange Phones,MAINTEL EUROPE LTD,ICT TELECOMMS FIXED," 2,242.40 "
Lancs Fire & Rescue Service,E6123,Fire,106504135,17-Jul-20,Electricity,NPOWER,UTILITIES ELECTRICITY, 539.05 
Lancs Fire & Rescue Service,E6123,Fire,106504136,17-Jul-20,Electricity,NPOWER,UTILITIES ELECTRICITY, 557.22 
Lancs Fire & Rescue Service,E6123,Fire,106514905,17-Jul-20,Fire - Breathing Apparatus,BAUER KOMPRESSOREN UK LTD,VEHICLES PARTS," 4,750.00 "
Lancs Fire & Rescue Service,E6123,Fire,106519293,17-Jul-20,Fire - Breathing Apparatus,BAUER KOMPRESSOREN UK LTD,VEHICLES PARTS," 5,027.84 "
Lancs Fire & Rescue Service,E6123,Fire,106527922,17-Jul-20,Electricity,NPOWER LTD,UTILITIES ELECTRICITY, 434.64 
Lancs Fire & Rescue Service,E6123,Fire,106527923,17-Jul-20,Electricity,NPOWER LTD,UTILITIES ELECTRICITY, 459.77 
Lancs Fire & Rescue Service,E6123,Fire,106527924,17-Jul-20,Electricity,NPOWER LTD,UTILITIES ELECTRICITY, 441.52 
Lancs Fire & Rescue Service,E6123,Fire,106527925,17-Jul-20,Electricity,NPOWER LTD,UTILITIES ELECTRICITY, 436.56 
Lancs Fire & Rescue Service,E6123,Fire,106527926,17-Jul-20,Electricity,NPOWER LTD,UTILITIES ELECTRICITY, 449.93 
Lancs Fire & Rescue Service,E6123,Fire,106527927,17-Jul-20,Electricity,NPOWER LTD,UTILITIES ELECTRICITY, 457.29 
Lancs Fire & Rescue Service,E6123,Fire,106527967,17-Jul-20,Electricity,NPOWER LTD,UTILITIES ELECTRICITY, 513.29 
Lancs Fire & Rescue Service,E6123,Fire,106527968,17-Jul-20,Electricity,NPOWER LTD,UTILITIES ELECTRICITY, 615.99 
Lancs Fire & Rescue Service,E6123,Fire,106527977,17-Jul-20,Electricity,NPOWER LTD,UTILITIES ELECTRICITY, 479.67 
Lancs Fire & Rescue Service,E6123,Fire,106528348,17-Jul-20,Electricity,NPOWER LTD,UTILITIES ELECTRICITY, 533.23 
Lancs Fire & Rescue Service,E6123,Fire,106528349,17-Jul-20,Electricity,NPOWER LTD,UTILITIES ELECTRICITY, 471.21 
Lancs Fire & Rescue Service,E6123,Fire,106528364,17-Jul-20,Electricity,NPOWER LTD,UTILITIES ELECTRICITY, 888.25 
Lancs Fire & Rescue Service,E6123,Fire,106528365,17-Jul-20,Electricity,NPOWER LTD,UTILITIES ELECTRICITY, 857.43 
Lancs Fire & Rescue Service,E6123,Fire,106528754,17-Jul-20,Agency Staff,MERSEYSIDE FIRE & RESCUE AUTHORITY,LOCAL GOVERNMENT," 13,930.97 "
Lancs Fire & Rescue Service,E6123,Fire,106529787,17-Jul-20,Electricity,NPOWER,UTILITIES ELECTRICITY, 612.69 
Lancs Fire & Rescue Service,E6123,Fire,106529789,17-Jul-20,Electricity,NPOWER,UTILITIES ELECTRICITY, 566.97 
Lancs Fire & Rescue Service,E6123,Fire,106529790,17-Jul-20,Electricity,NPOWER,UTILITIES ELECTRICITY, 658.11 
Lancs Fire & Rescue Service,E6123,Fire,106529791,17-Jul-20,Electricity,NPOWER,UTILITIES ELECTRICITY, 616.13 
Lancs Fire & Rescue Service,E6123,Fire,106532480,17-Jul-20,Works Fees (External),EQUILIBRIUM ARCHITECTS LTD,CONSULTANCY CONSTRUCTION, 930.00 
Lancs Fire & Rescue Service,E6123,Fire,106532485,17-Jul-20,Repairs & Maintenance General,P.G.B ROOFING,BUILDING MATS&SVCS ROOF, 528.27 
Lancs Fire & Rescue Service,E6123,Fire,106532486,17-Jul-20,Repairs & Maintenance General,HARDACRES PLUMBERS (NW) LTD,WORKS BUILDINGS, 696.12 
Lancs Fire & Rescue Service,E6123,Fire,106532489,17-Jul-20,Computer Hardware,INSIGHT DIRECT (UK) LTD,ICT SOFTWARE," 1,650.00 "
Lancs Fire & Rescue Service,E6123,Fire,106532490,17-Jul-20,Mobile Phone Costs,O2 (UK) LTD,ICT TELECOMMS MOBILE," 3,361.41 "
Lancs Fire & Rescue Service,E6123,Fire,106532492,17-Jul-20,Computer Hardware,INSIGHT DIRECT (UK) LTD,ICT SOFTWARE," 1,450.00 "
Lancs Fire & Rescue Service,E6123,Fire,106532492,17-Jul-20,Computer Hardware,INSIGHT DIRECT (UK) LTD,ICT SOFTWARE,(490.10)
Lancs Fire & Rescue Service,E6123,Fire,106532786,17-Jul-20,Gas,CORONA ENERGY,UTILITIES GAS, 746.73 
Lancs Fire & Rescue Service,E6123,Fire,106532788,17-Jul-20,Gas,CORONA ENERGY,UTILITIES GAS," 1,772.51 "
Lancs Fire & Rescue Service,E6123,Fire,106532802,17-Jul-20,Rents - Premises,WEST LANCASHIRE BOROUGH COUNCIL,LOCAL GOVERNMENT," 1,010.50 "
Lancs Fire & Rescue Service,E6123,Fire,106532804,17-Jul-20,Gas,CORONA ENERGY,UTILITIES GAS," 1,136.36 "
Lancs Fire & Rescue Service,E6123,Fire,106533577,17-Jul-20,Vehicle & Plant R&M (External),JAMES HART (CHORLEY) LTD,TRANSPORT MAINTENANCE," 2,123.75 "
Lancs Fire & Rescue Service,E6123,Fire,106533591,17-Jul-20,Vehicle & Plant R&M (External),MELLOR PLANT UK LTD,VEHICLES INDUSTRIAL, 580.70 
Lancs Fire & Rescue Service,E6123,Fire,106533593,17-Jul-20,Vehicle & Plant R&M (External),ROSENBAUER UK LTD,FRS SPECIALIST VEHICLES, 579.20 
Lancs Fire & Rescue Service,E6123,Fire,106533595,17-Jul-20,Vehicle & Plant R&M (External),RIBBLE VALLEY ATV & MOTORCYCLES LTD,VEHICLES MAINTENANCE," 1,457.33 "
Lancs Fire & Rescue Service,E6123,Fire,106534900,17-Jul-20,Gas,CORONA ENERGY,UTILITIES GAS, 706.15 
Lancs Fire & Rescue Service,E6123,Fire,106534955,17-Jul-20,Programmed Work,BID GROUP LTD,BUILDING MATS&SVCS GEN, 418.00 
Lancs Fire & Rescue Service,E6123,Fire,106534958,17-Jul-20,Programmed Work,BID GROUP LTD,BUILDING MATS&SVCS GEN, 648.00 
Lancs Fire & Rescue Service,E6123,Fire,106534965,17-Jul-20,Vehicle & Plant R&M (External),MILLERS OF LONGTON LTD,VEHICLES MAINTENANCE, 567.75 
Lancs Fire & Rescue Service,E6123,Fire,106535000,17-Jul-20,Medical Fees,DRS.DIRECT,MEDICAL SERVICES, 900.00 
Lancs Fire & Rescue Service,E6123,Fire,106504098,21-Jul-20,Programmed Work,DLP SERVICES NORTHERN LTD,BUILDING MATS&SVCS GEN," 1,150.00 "
Lancs Fire & Rescue Service,E6123,Fire,106532496,21-Jul-20,Fire - Op Equip Repairs,HOLMATRO UK LTD,VEHICLES PARTS, 50.00 
Lancs Fire & Rescue Service,E6123,Fire,106532496,21-Jul-20,Fire - Op Equip Repairs,HOLMATRO UK LTD,VEHICLES PARTS, 122.40 
Lancs Fire & Rescue Service,E6123,Fire,106532496,21-Jul-20,Fire - Op Equip Repairs,HOLMATRO UK LTD,VEHICLES PARTS, 247.50 
Lancs Fire & Rescue Service,E6123,Fire,106532496,21-Jul-20,Fire - Op Equip Repairs,HOLMATRO UK LTD,VEHICLES PARTS, 103.80 
Lancs Fire & Rescue Service,E6123,Fire,106532496,21-Jul-20,Fire - Op Equip Repairs,HOLMATRO UK LTD,VEHICLES PARTS, 483.60 
Lancs Fire & Rescue Service,E6123,Fire,106538666,21-Jul-20,Insurances General,ARTHUR J GALLAGHER (UK) LTD,FINANCIAL� INSURANCE," 2,462.75 "
Lancs Fire & Rescue Service,E6123,Fire,106539220,21-Jul-20,Mobile Phone Costs,HTK LTD,ICT SOFTWARE, 433.03 
Lancs Fire & Rescue Service,E6123,Fire,106539223,21-Jul-20,Mobile Phone Costs,EVERYTHING EVERYWHERE LTD,TELEPHONE SERVICES," 1,740.32 "
Lancs Fire & Rescue Service,E6123,Fire,106539232,21-Jul-20,Repairs & Maintenance General,R H WELLS ELECTRICAL LTD,BUILDING MATS&SVCS ELEC, 645.79 
Lancs Fire & Rescue Service,E6123,Fire,106539237,21-Jul-20,Repairs & Maintenance General,R H WELLS ELECTRICAL LTD,BUILDING MATS&SVCS ELEC, 446.86 
Lancs Fire & Rescue Service,E6123,Fire,106539238,21-Jul-20,Repairs & Maintenance General,R H WELLS ELECTRICAL LTD,BUILDING MATS&SVCS ELEC," 3,021.89 "
Lancs Fire & Rescue Service,E6123,Fire,106539241,21-Jul-20,Repairs & Maintenance General,R H WELLS ELECTRICAL LTD,BUILDING MATS&SVCS ELEC, 766.12 
Lancs Fire & Rescue Service,E6123,Fire,106539244,21-Jul-20,Repairs & Maintenance General,R H WELLS ELECTRICAL LTD,BUILDING MATS&SVCS ELEC," 1,654.45 "
Lancs Fire & Rescue Service,E6123,Fire,106539246,21-Jul-20,Repairs & Maintenance General,RED ROSE BUILDING MAINTENANCE,BUILDING MATS&SVCS GEN, 900.00 
Lancs Fire & Rescue Service,E6123,Fire,106539246,21-Jul-20,Repairs & Maintenance General,RED ROSE BUILDING MAINTENANCE,BUILDING MATS&SVCS GEN,(900.00)
Lancs Fire & Rescue Service,E6123,Fire,106539246,21-Jul-20,Repairs & Maintenance General,RED ROSE BUILDING MAINTENANCE,BUILDING MATS&SVCS GEN, 900.00 
Lancs Fire & Rescue Service,E6123,Fire,106539246,21-Jul-20,Repairs & Maintenance General,RED ROSE BUILDING MAINTENANCE,BUILDING MATS&SVCS GEN, 160.00 
Lancs Fire & Rescue Service,E6123,Fire,106539252,21-Jul-20,Fire - Hydrants,UNITED UTILITIES WATER PLC,UTILITIES WATER, 627.04 
Lancs Fire & Rescue Service,E6123,Fire,106539257,21-Jul-20,Professional Services,ACTUALISE COACHING AND TRAINING LTD,CONSULTANCY MANAGEMENT, 250.00 
Lancs Fire & Rescue Service,E6123,Fire,106539257,21-Jul-20,Professional Services,ACTUALISE COACHING AND TRAINING LTD,CONSULTANCY MANAGEMENT, 58.50 
Lancs Fire & Rescue Service,E6123,Fire,106539257,21-Jul-20,Professional Services,ACTUALISE COACHING AND TRAINING LTD,CONSULTANCY MANAGEMENT, 250.00 
Lancs Fire & Rescue Service,E6123,Fire,106539257,21-Jul-20,Professional Services,ACTUALISE COACHING AND TRAINING LTD,CONSULTANCY MANAGEMENT, 250.00 
Lancs Fire & Rescue Service,E6123,Fire,106539257,21-Jul-20,Professional Services,ACTUALISE COACHING AND TRAINING LTD,CONSULTANCY MANAGEMENT, 250.00 
Lancs Fire & Rescue Service,E6123,Fire,106539257,21-Jul-20,Professional Services,ACTUALISE COACHING AND TRAINING LTD,CONSULTANCY MANAGEMENT, 250.00 
Lancs Fire & Rescue Service,E6123,Fire,106539259,21-Jul-20,Fire - Op Equip Repairs,PENNINE MARINE LTD,TRANSPORT MAINTENANCE, 786.08 
Lancs Fire & Rescue Service,E6123,Fire,106539259,21-Jul-20,Fire - Op Equip Repairs,PENNINE MARINE LTD,TRANSPORT MAINTENANCE, 175.00 
Lancs Fire & Rescue Service,E6123,Fire,106539259,21-Jul-20,Fire - Op Equip Repairs,PENNINE MARINE LTD,TRANSPORT MAINTENANCE," 1,020.19 "
Lancs Fire & Rescue Service,E6123,Fire,106539259,21-Jul-20,Fire - Op Equip Repairs,PENNINE MARINE LTD,TRANSPORT MAINTENANCE, 220.00 
Lancs Fire & Rescue Service,E6123,Fire,106538572,22-Jul-20,Computer Software,SHAREGATE GROUP INC,ICT SOFTWARE," 7,884.60 "
Lancs Fire & Rescue Service,E6123,Fire,106538573,22-Jul-20,Fire - Training Props,KFT FIRE TRAINER GMBH,FRS SPECIALIST EQUIPMENT," 1,012.73 "
Lancs Fire & Rescue Service,E6123,Fire,106508137,23-Jul-20,Stocks And Stores - General,EDGE TOOLS & EQUIPMENT LTD INACTIVE,FRS EMERGENCY OPS EQT,(432.78)
Lancs Fire & Rescue Service,E6123,Fire,106507938,24-Jul-20,Protective Clothing,BERENDSEN UK LTD,CLEANING&JAN LAUNDRYMAINT, 369.00 
Lancs Fire & Rescue Service,E6123,Fire,106507938,24-Jul-20,Protective Clothing,BERENDSEN UK LTD,CLEANING&JAN LAUNDRYMAINT, 179.58 
Lancs Fire & Rescue Service,E6123,Fire,106507940,24-Jul-20,Protective Clothing,BERENDSEN UK LTD,CLEANING&JAN LAUNDRYMAINT, 321.00 
Lancs Fire & Rescue Service,E6123,Fire,106507940,24-Jul-20,Protective Clothing,BERENDSEN UK LTD,CLEANING&JAN LAUNDRYMAINT, 156.22 
Lancs Fire & Rescue Service,E6123,Fire,106522774,24-Jul-20,Professional Services,SHARED SERVICE ARCHITECTURE LTD,TRAINING," 7,500.00 "
Lancs Fire & Rescue Service,E6123,Fire,106522787,24-Jul-20,Medical Fees,ORGANISATIONAL HEALTHCARE LTD,HEALTH&SAFETY SERVICES," 2,100.00 "
Lancs Fire & Rescue Service,E6123,Fire,106534947,24-Jul-20,Fire - Op Equip Repairs,SEDDONS (PLANT & ENGINEERS) LTD,VEHICLES FUEL, 138.80 
Lancs Fire & Rescue Service,E6123,Fire,106534947,24-Jul-20,Fire - Op Equip Repairs,SEDDONS (PLANT & ENGINEERS) LTD,VEHICLES FUEL, 37.20 
Lancs Fire & Rescue Service,E6123,Fire,106534947,24-Jul-20,Fire - Op Equip Repairs,SEDDONS (PLANT & ENGINEERS) LTD,VEHICLES FUEL, 250.64 
Lancs Fire & Rescue Service,E6123,Fire,106534947,24-Jul-20,Fire - Op Equip Repairs,SEDDONS (PLANT & ENGINEERS) LTD,VEHICLES FUEL, 20.40 
Lancs Fire & Rescue Service,E6123,Fire,106534947,24-Jul-20,Fire - Op Equip Repairs,SEDDONS (PLANT & ENGINEERS) LTD,VEHICLES FUEL, 38.60 
Lancs Fire & Rescue Service,E6123,Fire,106541862,24-Jul-20,Stocks And Stores - General,APEX SIGNS & GRAPHICS LTD,HEALTH&SAFETY PRODUCTS, 492.00 
Lancs Fire & Rescue Service,E6123,Fire,106541864,24-Jul-20,Stocks And Stores - General,SAANRO INTERNATIONAL LTD,CLEANING&JANITORIAL MATS, 421.44 
Lancs Fire & Rescue Service,E6123,Fire,106541868,24-Jul-20,Postage & Carriage,MEDTREE,MEDICAL SERVICES, 5.95 
Lancs Fire & Rescue Service,E6123,Fire,106541868,24-Jul-20,Stocks And Stores - General,MEDTREE,MEDICAL SERVICES, 795.30 
Lancs Fire & Rescue Service,E6123,Fire,106541871,24-Jul-20,Stocks And Stores - General,DRAEGER SAFETY UK LTD,HEALTH&SAFETY PRODUCTS, 510.30 
Lancs Fire & Rescue Service,E6123,Fire,106541873,24-Jul-20,Stocks And Stores - General,DRAEGER SAFETY UK LTD,HEALTH&SAFETY PRODUCTS, 547.20 
Lancs Fire & Rescue Service,E6123,Fire,106541876,24-Jul-20,Postage & Carriage,VERNON MORRIS UTILITY SOLUTIONS LIMITED,ENVIRON TEST & INSPECTION, 20.00 
Lancs Fire & Rescue Service,E6123,Fire,106541876,24-Jul-20,Stocks And Stores - General,VERNON MORRIS UTILITY SOLUTIONS LIMITED,ENVIRON TEST & INSPECTION, 814.66 
Lancs Fire & Rescue Service,E6123,Fire,106541877,24-Jul-20,Stocks And Stores - General,BENNETT SAFETYWARE LTD,CLOTHING PERSONAL, 830.30 
Lancs Fire & Rescue Service,E6123,Fire,106541884,24-Jul-20,Stocks And Stores - General,CARDIAC SCIENCE HOLDINGS (UK) LTD,MEDICAL SERVICES, 551.00 
Lancs Fire & Rescue Service,E6123,Fire,106541886,24-Jul-20,Stocks And Stores - General,WELDBANK PLASTIC CO LTD,BUILDING MATS&SVCS GEN, 708.00 
Lancs Fire & Rescue Service,E6123,Fire,106543864,24-Jul-20,Consumable Materials,WRAY BROS LIMITED,CLEANING&JANITORIAL SVCS," 1,167.60 "
Lancs Fire & Rescue Service,E6123,Fire,106543868,24-Jul-20,Other Local Authorities,CUMBRIA COUNTY COUNCIL,SOCIAL COMM CARE ADULTS," 2,864.90 "
Lancs Fire & Rescue Service,E6123,Fire,106543868,24-Jul-20,Other Local Authorities,CUMBRIA COUNTY COUNCIL,SOCIAL COMM CARE ADULTS," 6,379.25 "
Lancs Fire & Rescue Service,E6123,Fire,106543871,24-Jul-20,Fire - Op Equip Repairs,LYON EQUIPMENT LTD,CLOTHING PROTECTIVE,(1.36)
Lancs Fire & Rescue Service,E6123,Fire,106543871,24-Jul-20,Fire - Op Equip Repairs,LYON EQUIPMENT LTD,CLOTHING PROTECTIVE," 1,084.80 "
Lancs Fire & Rescue Service,E6123,Fire,106543871,24-Jul-20,Fire - Op Equip Repairs,LYON EQUIPMENT LTD,CLOTHING PROTECTIVE, 6.24 
Lancs Fire & Rescue Service,E6123,Fire,106543873,24-Jul-20,Fire - Hoses,ANGUS FIRE LTD,HEALTH&SAFETY SERVICES," 1,594.00 "
Lancs Fire & Rescue Service,E6123,Fire,106543874,24-Jul-20,Fire - Breathing Apparatus,DRAEGER SAFETY UK LTD,HEALTH&SAFETY PRODUCTS," 5,548.86 "
Lancs Fire & Rescue Service,E6123,Fire,106544476,24-Jul-20,Protective Clothing,SAFEQUIP LTD,HEALTH&SAFETY PRODUCTS, 111.00 
Lancs Fire & Rescue Service,E6123,Fire,106544476,24-Jul-20,Protective Clothing,SAFEQUIP LTD,HEALTH&SAFETY PRODUCTS, 37.00 
Lancs Fire & Rescue Service,E6123,Fire,106544476,24-Jul-20,Protective Clothing,SAFEQUIP LTD,HEALTH&SAFETY PRODUCTS, 37.00 
Lancs Fire & Rescue Service,E6123,Fire,106544476,24-Jul-20,Protective Clothing,SAFEQUIP LTD,HEALTH&SAFETY PRODUCTS, 37.00 
Lancs Fire & Rescue Service,E6123,Fire,106544476,24-Jul-20,Protective Clothing,SAFEQUIP LTD,HEALTH&SAFETY PRODUCTS, 37.00 
Lancs Fire & Rescue Service,E6123,Fire,106544476,24-Jul-20,Protective Clothing,SAFEQUIP LTD,HEALTH&SAFETY PRODUCTS, 212.10 
Lancs Fire & Rescue Service,E6123,Fire,106544476,24-Jul-20,Protective Clothing,SAFEQUIP LTD,HEALTH&SAFETY PRODUCTS, 70.70 
Lancs Fire & Rescue Service,E6123,Fire,106544476,24-Jul-20,Protective Clothing,SAFEQUIP LTD,HEALTH&SAFETY PRODUCTS, 20.80 
Lancs Fire & Rescue Service,E6123,Fire,106544476,24-Jul-20,Protective Clothing,SAFEQUIP LTD,HEALTH&SAFETY PRODUCTS, 31.20 
Lancs Fire & Rescue Service,E6123,Fire,106544476,24-Jul-20,Protective Clothing,SAFEQUIP LTD,HEALTH&SAFETY PRODUCTS, 31.20 
Lancs Fire & Rescue Service,E6123,Fire,106544476,24-Jul-20,Protective Clothing,SAFEQUIP LTD,HEALTH&SAFETY PRODUCTS, 55.05 
Lancs Fire & Rescue Service,E6123,Fire,106544476,24-Jul-20,Protective Clothing,SAFEQUIP LTD,HEALTH&SAFETY PRODUCTS, 18.35 
Lancs Fire & Rescue Service,E6123,Fire,106544476,24-Jul-20,Protective Clothing,SAFEQUIP LTD,HEALTH&SAFETY PRODUCTS, 55.05 
Lancs Fire & Rescue Service,E6123,Fire,106544476,24-Jul-20,Protective Clothing,SAFEQUIP LTD,HEALTH&SAFETY PRODUCTS, 10.00 
Lancs Fire & Rescue Service,E6123,Fire,106544487,24-Jul-20,Service Contracts,TEMPERATURE CONTROL LTD,WORKS BUILDINGS," 4,305.00 "
Lancs Fire & Rescue Service,E6123,Fire,106544489,24-Jul-20,Repairs & Maintenance General,TEMPERATURE CONTROL LTD,WORKS BUILDINGS, 468.00 
Lancs Fire & Rescue Service,E6123,Fire,106544490,24-Jul-20,Professional Services,MECHANICAL DESIGN CONSULTANCY LIMITED,CONSULTANCY BUSINESS," 3,900.00 "
Lancs Fire & Rescue Service,E6123,Fire,106545192,24-Jul-20,Vehicle & Plant Insurance Below Excess,TRAVELERS INSURANCE COMPANY LTD,FINANCIAL� INSURANCE," 7,159.56 "
Lancs Fire & Rescue Service,E6123,Fire,106545196,24-Jul-20,Fire - Breathing Apparatus,DRAEGER SAFETY UK LTD,HEALTH&SAFETY PRODUCTS," 1,722.06 "
Lancs Fire & Rescue Service,E6123,Fire,106545199,24-Jul-20,Fire - Breathing Apparatus,DRAEGER SAFETY UK LTD,HEALTH&SAFETY PRODUCTS, 648.20 
Lancs Fire & Rescue Service,E6123,Fire,106545202,24-Jul-20,Fire - Operational Equipment,RAMSAY & SONS (FORFAR) LTD,BUILDING MATS&SVCS GEN, 15.75 
Lancs Fire & Rescue Service,E6123,Fire,106545202,24-Jul-20,Fire - Operational Equipment,RAMSAY & SONS (FORFAR) LTD,BUILDING MATS&SVCS GEN,(90.00)
Lancs Fire & Rescue Service,E6123,Fire,106545202,24-Jul-20,Fire - Operational Equipment,RAMSAY & SONS (FORFAR) LTD,BUILDING MATS&SVCS GEN, 990.90 
Lancs Fire & Rescue Service,E6123,Fire,106545220,24-Jul-20,Computer Software,3TC SOFTWARE LIMITED,ICT SOFTWARE," 6,650.59 "
Lancs Fire & Rescue Service,E6123,Fire,106545220,24-Jul-20,Computer Software,3TC SOFTWARE LIMITED,ICT SOFTWARE," 11,688.00 "
Lancs Fire & Rescue Service,E6123,Fire,106545220,24-Jul-20,Computer Software,3TC SOFTWARE LIMITED,ICT SOFTWARE," 1,190.71 "
Lancs Fire & Rescue Service,E6123,Fire,106545233,24-Jul-20,Computer Hardware,INSIGHT DIRECT (UK) LTD,ICT SOFTWARE," 4,840.00 "
Lancs Fire & Rescue Service,E6123,Fire,106545234,24-Jul-20,Computer Hardware,INSIGHT DIRECT (UK) LTD,ICT SOFTWARE," 13,310.00 "
Lancs Fire & Rescue Service,E6123,Fire,106545292,24-Jul-20,Electricity,NPOWER,UTILITIES ELECTRICITY," 1,415.21 "
Lancs Fire & Rescue Service,E6123,Fire,106545295,24-Jul-20,Electricity,NPOWER,UTILITIES ELECTRICITY, 519.20 
Lancs Fire & Rescue Service,E6123,Fire,106545297,24-Jul-20,Vehicle Repair & Mtce,LANCASTER BUSINESS IMPROVEMENT DISTRICT (BID),NOT CLASSIFIED," 1,110.00 "
Lancs Fire & Rescue Service,E6123,Fire,106545300,24-Jul-20,Electricity,NPOWER,UTILITIES ELECTRICITY," 3,728.39 "
Lancs Fire & Rescue Service,E6123,Fire,106545838,24-Jul-20,Electricity,NPOWER,UTILITIES ELECTRICITY," 1,145.19 "
Lancs Fire & Rescue Service,E6123,Fire,106545859,24-Jul-20,Electricity,NPOWER,UTILITIES ELECTRICITY, 439.54 
Lancs Fire & Rescue Service,E6123,Fire,106545866,24-Jul-20,Electricity,NPOWER,UTILITIES ELECTRICITY, 490.78 
Lancs Fire & Rescue Service,E6123,Fire,106545867,24-Jul-20,Electricity,NPOWER,UTILITIES ELECTRICITY, 490.78 
Lancs Fire & Rescue Service,E6123,Fire,106545873,24-Jul-20,Electricity,NPOWER,UTILITIES ELECTRICITY, 434.72 
Lancs Fire & Rescue Service,E6123,Fire,106545877,24-Jul-20,Electricity,NPOWER,UTILITIES ELECTRICITY, 796.09 
Lancs Fire & Rescue Service,E6123,Fire,106545881,24-Jul-20,Electricity,NPOWER,UTILITIES ELECTRICITY, 559.26 
Lancs Fire & Rescue Service,E6123,Fire,106545882,24-Jul-20,Electricity,NPOWER,UTILITIES ELECTRICITY, 584.29 
Lancs Fire & Rescue Service,E6123,Fire,106506674,28-Jul-20,Fuel Oil,CERTAS ENERGY UK LTD,UTILITIES HEATING OIL," 1,463.35 "
Lancs Fire & Rescue Service,E6123,Fire,106514330,28-Jul-20,Course Providers,STEPHEN WOOD TRAINING SERVICES LTD,TRAINING, 600.00 
Lancs Fire & Rescue Service,E6123,Fire,106519296,28-Jul-20,Computer Software,SOFTCAT LTD,ICT CALL SYSTEMS," 4,228.72 "
Lancs Fire & Rescue Service,E6123,Fire,106519296,28-Jul-20,Computer Software,SOFTCAT LTD,ICT CALL SYSTEMS," 1,653.91 "
Lancs Fire & Rescue Service,E6123,Fire,106527889,28-Jul-20,Diesel,ALLSTAR BUSINESS SOLUTIONS LTD,VEHICLES FUEL," 18,673.30 "
Lancs Fire & Rescue Service,E6123,Fire,106527889,28-Jul-20,Petrol,ALLSTAR BUSINESS SOLUTIONS LTD,VEHICLES FUEL, 899.21 
Lancs Fire & Rescue Service,E6123,Fire,106528753,28-Jul-20,Professional Services,LAVAT CONSULTING LTD. T/A PSTAX,CONSULTANCY FINANCIAL, 765.00 
Lancs Fire & Rescue Service,E6123,Fire,106532494,28-Jul-20,Day To Day,OTRA LTD,VEHICLES MAINTENANCE, 517.06 
Lancs Fire & Rescue Service,E6123,Fire,106533587,28-Jul-20,Vehicle & Plant R&M (External),OTRA LTD,VEHICLES MAINTENANCE," 1,056.00 "
Lancs Fire & Rescue Service,E6123,Fire,106544480,28-Jul-20,Works Fees (External),ISG CONSTRUCTION LTD,BUILDING MATS&SVCS GEN," 27,414.20 "
Lancs Fire & Rescue Service,E6123,Fire,106551805,28-Jul-20,Fire - Breathing Apparatus,DRAEGER SAFETY UK LTD,HEALTH&SAFETY PRODUCTS," 1,152.70 "
Lancs Fire & Rescue Service,E6123,Fire,106554702,28-Jul-20,Electricity,NPOWER LTD,UTILITIES ELECTRICITY, 596.06 
Lancs Fire & Rescue Service,E6123,Fire,106554709,28-Jul-20,Electricity,NPOWER LTD,UTILITIES ELECTRICITY, 450.84 
Lancs Fire & Rescue Service,E6123,Fire,106554711,28-Jul-20,Electricity,NPOWER LTD,UTILITIES ELECTRICITY, 470.01 
Lancs Fire & Rescue Service,E6123,Fire,106554716,28-Jul-20,Diesel,STANDARD FUEL OILS LTD,UTILITIES HEATING OIL," 2,217.25 "
Lancs Fire & Rescue Service,E6123,Fire,106554719,28-Jul-20,Diesel,STANDARD FUEL OILS LTD,UTILITIES HEATING OIL," 2,217.25 "
Lancs Fire & Rescue Service,E6123,Fire,106554721,28-Jul-20,Vehicle & Plant Insurance Below Excess,RED ROSE WINDSCREENS LIMITED,FRS SPECIALIST EQUIPMENT, 568.00 
Lancs Fire & Rescue Service,E6123,Fire,106554723,28-Jul-20,Vehicle & Plant R&M (External),THOMAS HARDIE COMMERCIALS LTD,VEHICLES COMMERCIAL," 1,035.49 "
